Workbook

Sheet 표지
H2: "사회적 가치실현으로 시민과 상생하는 공기업"
H5: 2024. 12.
A6: 2025년도
A8: 수입·지출 예산서

Sheet 목차
A1: 목 차
D2: 1. 사업운영계획 ……………………………………… | I2: 1
D4: 2. 예산총칙 ……………………………………………………………… | I4: 3
D6: 3. 2025년 예산 총괄표 ……………………………………………………………… | I6: 6
D7: 3-1. 사업예산 총괄표 ……………………… | I7: 8
D8: 3-2. 자본예산 총괄표………………………… | I8: 9
D9: 가. 수입예산 총괄표 ……………………………………………………… | I9: 10
D10: 나. 지출예산 총괄표 ……………………………………………………… | I10: 12
D11: 다. 지출예산 ……………………………………………………………… | I11: 26
D13: 4. 자금운영계획 …………………………………………………… | I13: 73
D14: ○ 수입자금 ……………………………………………………………… | I14: 74
D15: ○ 지출자금 ……………………………………………………………… | I15: 75

Sheet 1.사업운영계획
B10: 1. 사 업 운 영 계 획

Sheet 사업운영계획1장
A1: 1. 사 업 운 영 계 획
A2: 구 분 | C2: 단위 | D2: 당년도 | E2: 전년도 | F2: 증감 | G2: 비고
A3: 1. 시설현황 | B3: 1) 공영주차장수 | C3: 개소 | D3: 35 | E3: 33 | F3: =D3-E3 -> 2 | G3: 신규 : 화장동 / 신기동
B4: 2) 휴양림 관리 | C4: 개소 | D4: 1 | E4: 1 | F4: =D4-E4 -> 0
B5: 3) 야영장 관리 | C5: 개소 | D5: 2 | E5: 2 | F5: =D5-E5 -> 0 | G5: 굴전/금오도
B6: 4) 장애인국민체육센터 관리 | C6: 개소 | D6: 1 | E6: 1 | F6: =D6-E6 -> 0
B7: 5) 수영장관리 | C7: 개소 | D7: 3 | E7: 2 | F7: =D7-E7 -> 1 | G7: 진남/망마/웅천
A8: 2. 업무현황 | B8: 1) 1일주차대수 | C8: 대/일 | D8: 1.6만대/1 | E8: 1.6만대/1
B9: 2) 년간 주차요금수입 | C9: 백만원 | D9: =E9*1.1 -> 2,096 | E9: 1,905 | F9: =D9-E9 -> 191
B10: 3) 년간 휴양림관리수입 | C10: 백만원 | D10: =E10*1.1 -> 391 | E10: 355 | F10: 36
B11: 4) 년간 종량제물품판매수입 | C11: 백만원 | D11: =E11*1.1 -> 6,592 | E11: 5,993 | F11: 599
B12: 5) 년간 수영장관리수입 | C12: 백만원 | D12: =E12*1.1 -> 1,502 | E12: 1,365 | F12: 137
B13: 6) 년간 장애인국민체육센터관리수입 | C13: 백만원 | D13: =E13*1.1 -> 15 | E13: 14 | F13: 1
A14: 3. 대행사업현황 | B14: 1) 공영주차장 관리 운영 | C14: 천원 | D14: ='가. 수입예산 총괄표(사업수익+자본적수입)'!F11+'가. 수입예산 총괄표(사업수익+자본적수입)'!F33 -> 1,727,711 | E14: 1,584,381 | F14: 143,330
B15: 2) 돌산공원주차장 운영 | C15: 천원 | D15: ='가. 수입예산 총괄표(사업수익+자본적수입)'!F12+'가. 수입예산 총괄표(사업수익+자본적수입)'!F34 -> 168,033 | E15: 230,088 | F15: =D15-E15 -> △62,055
B16: 3) 봉황산자연휴양림 운영 | C16: 천원 | D16: ='가. 수입예산 총괄표(사업수익+자본적수입)'!F13+'가. 수입예산 총괄표(사업수익+자본적수입)'!F35 -> 299,424 | E16: 299,424 | F16: 0
B17: 4) 굴전, 금오도 야영장 | C17: 천원 | D17: 400,000 | E17: 0 | F17: 400,000
B18: 5) 생활폐기물수집운반 | C18: 천원 | D18: ='가. 수입예산 총괄표(사업수익+자본적수입)'!F15+'가. 수입예산 총괄표(사업수익+자본적수입)'!F37 -> 22,246,757 | E18: 22,493,349 | F18: △246,592
B19: 6) 종량제물품공급 | C19: 천원 | D19: ='가. 수입예산 총괄표(사업수익+자본적수입)'!F16+'가. 수입예산 총괄표(사업수익+자본적수입)'!F38 -> 100,803 | E19: 101,745 | F19: △942
B20: 7) 진남수영장 | C20: 천원 | D20: ='가. 수입예산 총괄표(사업수익+자본적수입)'!F17+'가. 수입예산 총괄표(사업수익+자본적수입)'!F39 -> 1,024,056 | E20: 1,032,834 | F20: △8,778
B21: 8) 망마국민체육센터 | C21: 천원 | D21: ='가. 수입예산 총괄표(사업수익+자본적수입)'!F18+'가. 수입예산 총괄표(사업수익+자본적수입)'!F40 -> 749,287 | E21: 767,169 | F21: △17,882
B22: 9) 장애인국민체육센터 | C22: 천원 | D22: ='가. 수입예산 총괄표(사업수익+자본적수입)'!F19+'가. 수입예산 총괄표(사업수익+자본적수입)'!F41 -> 225,039 | E22: 224,991 | F22: 48
B23: 10) 도시형폐기물처리시설 | C23: 천원 | D23: ='가. 수입예산 총괄표(사업수익+자본적수입)'!F20+'가. 수입예산 총괄표(사업수익+자본적수입)'!F42 -> 3,808,188 | E23: 6,530,023 | F23: △2,721,835
A24: 4. 인력관리현황 | B24: 계 | C24: 명 | D24: =SUM(D25:D31) -> 485 | E24: =SUM(E25:E31) -> 478 | F24: 7
B25: 1) 임 원 | C25: 명 | D25: 3 | E25: 3 | F25: 0 | G25: 이사장포함
B26: 2) 일 반 직 | C26: 명 | D26: 48 | E26: 48 | F26: 0 | H26: 정원 1 증
B27: 3) 기 능 직 | C27: 명 | D27: 30 | E27: 30 | F27: 0
B28: 4) 환경미화직 | C28: 명 | D28: 274 | E28: 274 | F28: 0 | G28: 정원
B29: 5) 공 무 직 | C29: 명 | D29: 98 | E29: 98 | F29: 0 | G29: " | H29: 정원 3 증(진남 안전강사, 봉황산 기간제 대체 인력)
B30: 6) 기 타 직 | C30: 명 | D30: 2 | E30: 2 | F30: 0 | G30: 市 파견공무원
B31: 7) 기간제근로자등 | C31: 명 | D31: 30 | E31: 23 | F31: 7 | G31: 정원 외
A32: 5. 자산평가액 | B32: 출자 자본금 | C32: 백만원 | D32: 500 | E32: 500 | F32: =D32-E32 -> 0

Sheet 2.예산총칙
C9: 2. 예 산 총 칙

Sheet 예산총칙
A1: 2. 예 산 총 칙
A3: 제1조 (총칙) 2024년 여수시도시관리공단의 예산은 다음과 같이 정한다.
A4: 제2조 (수입 및 지출) 수입 및 지출의 예정액은 다음과 같이 정한다.
D5: (단위 : 천원)
A6: 수 입 | C6: 지 출
A7: 과 목 | B7: 금 액 | C7: 과 목 | D7: 금 액
A8: 합 계 | B8: =B9+B16+B26 -> 47,211,348 | C8: 합 계 | D8: =D9+D16+D26 -> 47,211,348
A9: 소 계 | B9: =B10 -> 45,601,358 | C9: 소 계 | D9: =SUM(D10:D15) -> 45,601,358
A10: 1. 사업수익 | B10: =SUM(B11:B13) -> 45,601,358 | C10: 1. 사업비용 | D10: 0
A11: 가. 영업수익 | B11: =예산총괄표3장!C7 -> 45,601,358 | C11: 가. 교통휴양 대행사업 | D11: =예산총괄표3장!C13 -> 2,228,418
A12: 나. 영업외수익 | B12: =예산총괄표3장!C8 -> 0 | C12: 나. 체육시설 대행사업 | D12: =예산총괄표3장!C14 -> 1,977,742
A13: 다. 특별이익 | B13: 0 | C13: 다. 환경대행사업 | D13: =예산총괄표3장!C15 -> 25,241,148
C14: 라. 행정운영활동 | D14: =예산총괄표3장!C16 -> 16,154,050
A16: 소 계 | B16: =B17 -> 1,609,990 | C16: 소 계 | D16: =D17 -> 1,609,990
A17: 2. 자본수입 | B17: =SUM(B18:B25) -> 1,609,990 | C17: 2. 자본지출 | D17: =SUM(D18:D25) -> 1,609,990
A18: 가. 투자자산 | B18: 0 | C18: 가. 교통휴양 대행사업 | D18: =예산총괄표3장!E13 -> 166,750
A19: 나. 고정자산매각수입 | B19: 0 | C19: 나. 체육시설 대행사업 | D19: =예산총괄표3장!E14 -> 20,640
A20: 다. 고정부채수입 | B20: 0 | C20: 다. 환경대행사업 | D20: =예산총괄표3장!E15 -> 914,600
A21: 라. 비유동부채수입 | B21: 0 | C21: 라. 행정운영활동(일반행정운영 관리) | D21: =예산총괄표3장!E16 -> 8,000
A22: 마. 자본금 | B22: 0 | C22: 마. 예비비 | D22: =예산총괄표3장!E18 -> 500,000
A23: 바. 자본잉여금수입 | B23: ='3-2.자본예산총괄표'!C17 -> 1,109,990
A24: 사. 유보자금 | B24: ='3-2.자본예산총괄표'!C21 -> 500,000
A25: 아. 기타자본수입 | B25: 0
A26: 소 계 | B26: =B27 -> 0 | C26: 소 계 | D26: =D28 -> 0
A27: 3. 이월금 | B27: =SUM(B28:B29) -> 0
A28: 가. 순세계잉여금
A29: 나. 미수금 | B29: 0
A30: 가. 추정손익계산서
A31: 차 변 | C31: 대 변
A32: 비용 | B32: 순이익 | C32: 수익 | D32: 순손실
A33: =TEXT(B8,"#,##0")&"천원" -> 47,211,348천원 | B33: =TEXT(B8,"#,##0")&"천원" -> 47,211,348천원 | C33: =TEXT(D8,"#,##0")&"천원" -> 47,211,348천원 | D33: =TEXT(D8,"#,##0")&"천원" -> 47,211,348천원
A35: 제3조 사업수입액이 사업지출액에 대하여 부족한 금액은 자본예산 차액으로 보전하는 것으로 한다.
A36: 제4조(예산전용금지 과목)다음에 게기하는 과목의 경비는 이사회의 의결을 거치지 않고는 그 경비를 전용할 수 없다.
A37: (1) 인건비
A38: (2) 업무추진비(타 비목으로부터의 전용금지)
A39: 제5조(일시차입금)이사장은 공단의 자금수급 불균형으로 인하여 자금의 일시적 차입이 필요한 때에는 이사회의 결정으로 예산의 5%이내의 금액을 일시 차입하여 사업을 추진할 수 있다.
C45: 2024년 12월 일
B47: 여수시도시관리공단 이사장 김 유 화

Sheet 3.예산총괄표
B9: 3. 예 산 총 괄 표

Sheet 예산총괄표3장
A1: 3. 예 산 총 괄 표
A4: [여수시도시관리공단］ | D4: [본예산] | G4: (단위 : 천원)
A5: 구분 | B5: 사업예산 | D5: 자본예산 | F5: 예산총계
A6: 수 입 | B6: 수입계(A) | C6: =SUM(C7:C10) -> 45,601,358 | D6: 수입계(B) | E6: =SUM(E7:E11) -> 1,609,990 | F6: 수입계(C) | G6: =SUM(G7:G11) -> 47,211,348 | I6: =G6-E6-C6 -> 0
B7: 영업수익 | C7: ='3-1.사업예산총괄표'!C6 -> 45,601,358 | D7: 투자자산처분 | E7: 0 | F7: 영업수익 | G7: =C7 -> 45,601,358
B8: 영업외수입 | C8: ='3-1.사업예산총괄표'!C13 -> 0 | D8: 기타비유동자산처분 | E8: 0 | F8: 영업외수익 | G8: =C8 -> 0
D9: 유동부채수입 | E9: 0 | F9: 유동부채수입 | G9: =C9 -> 0
D10: 자본잉여금수입 | E10: ='3-2.자본예산총괄표'!C17 -> 1,109,990 | F10: 자본잉여금수입 | G10: =E10 -> 1,109,990
D11: 유 보 자 금 | E11: ='3-2.자본예산총괄표'!C21 -> 500,000 | F11: 유보자금 | G11: =E11 -> 500,000
A12: 지 출 | B12: 지출계(A`) | C12: =SUM(C13:C20) -> 45,601,358 | D12: 지출계(B`) | E12: =SUM(E13:E21) -> 1,609,990 | F12: 지출계(C`) | G12: =SUM(G13:G21) -> 47,211,348 | I12: =G12-E12-C12 -> 0
B13: 교통휴양 대행사업 | C13: ='나. 지출예산 총괄표'!H8 -> 2,228,418 | D13: 교통휴양 대행사업 | E13: ='나. 지출예산 총괄표'!H260 -> 166,750 | F13: 교통휴양 대행사업 | G13: =C13+E13 -> 2,395,168
B14: 체육시설 대행사업 | C14: ='나. 지출예산 총괄표'!H87 -> 1,977,742 | D14: 체육시설 대행사업 | E14: ='나. 지출예산 총괄표'!H273 -> 20,640 | F14: 체육시설 대행사업 | G14: =C14+E14 -> 1,998,382
B15: 환경대행사업 | C15: ='나. 지출예산 총괄표'!H138 -> 25,241,148 | D15: 환경대행사업 | E15: ='나. 지출예산 총괄표'!H286 -> 914,600 | F15: 환경대행사업 | G15: =C15+E15 -> 26,155,748
B16: 행정운영활동 | C16: ='나. 지출예산 총괄표'!H202 -> 16,154,050 | D16: 행정운영활동(일반행정운영 관리) | E16: ='나. 지출예산 총괄표'!H309 -> 8,000 | F16: 행정운영활동 | G16: =C16+E16 -> 16,162,050
B17: 법인세등 | C17: ='3-1.사업예산총괄표'!F17 -> 0 | F17: 법인세등 | G17: 0
B18: 예비비 | C18: ='3-1.사업예산총괄표'!F19 -> 0 | D18: 예비비 | E18: 500,000 | F18: 예비비 | G18: =C18+E18 -> 500,000
D19: 투자자산 | E19: 0 | F19: 투자자산 | G19: 0
D20: 유동부채상환 | E20: 0 | F20: 유동부채상환 | G20: 0
D21: 기타자본적지출 | E21: ='3-2.자본예산총괄표'!F24 -> 0 | F21: 기타자본적지출 | G21: 0
B22: 차인(A-A') | C22: =SUM(C6-C12) -> 0 | D22: 차인(B-B') | E22: =SUM(E6-E12) -> 0 | F22: 차인(C-C') | G22: =SUM(G6-G12) -> 0

Sheet 3-1.사업예산총괄표
A1: 3-1. 사업예산 총괄표
F2: (단위 : 천원)
A3: 수 입 의 부 (A) | D3: 비 용 의 부 (B)
A4: 계 정 과 목 | C4: 금 액 | D4: 계 정 과 목 | F4: 금 액
A5: 합 계 (A) | C5: =SUM(C6+C13) -> 45,601,358 | D5: 합 계 (B) | F5: =SUM(F6,F13,F15,F17,F19) -> 45,601,358
A6: 영업수익 | B6: 소 계 | C6: =SUM(C7:C12) -> 45,601,358 | D6: 영업비용 | E6: 소 계 | F6: =F7+F8+F9+F10 -> 45,601,358
B7: 용지매출수익 | C7: 0 | E7: 용 지 매 출 원 가 | F7: 0
B8: 주택판매수익 | C8: =+C29+C51 -> 0 | E8: 주 택 판 매 원 가 | F8: 0
B9: 대행사업수익(직접) | C9: ='가. 수입예산 총괄표(사업수익+자본적수입)'!F10 -> 29,447,308 | E9: 대행사업비(직접) | F9: ='가. 수입예산 총괄표(사업수익+자본적수입)'!F10 -> 29,447,308
B10: 대행사업수익(간접) | C10: ='가. 수입예산 총괄표(사업수익+자본적수입)'!F21 -> 16,154,050 | E10: 대행사업비(간접) | F10: ='가. 수입예산 총괄표(사업수익+자본적수입)'!F21 -> 16,154,050
A13: 영업외수익 | B13: 소 계 | C13: =SUM(C14:C18) -> 0 | D13: 영업외비용 | E13: 소 계 | F13: =SUM(F14) -> 0
B14: 이자수익 | C14: 0 | E14: 기타영업외비용 | F14: ='가. 수입예산 총괄표(사업수익+자본적수입)'!F24 -> 0
B15: 기타영업외수익 | C15: ='가. 수입예산 총괄표(사업수익+자본적수입)'!F24 -> 0 | D15: 특별손실 | E15: 소 계 | F15: =F16 -> 0
E16: 특별손실
D17: 법인세등 | E17: 소 계 | F17: =SUM(F18) -> 0
E18: 법인세등 | F18: 0
D19: 예 비 비 | E19: 예 비 비 | F19: 0
A21: 수입. 비용차감액 (A-B) | D21: =C5-F5 -> 0

Sheet 3-2.자본예산총괄표
A1: 3-2. 자본예산 총괄표
F2: (단위 : 천원)
A3: 수입의부 (A) | D3: 지출의부 (B)
A4: 계 정 과 목 | C4: 금 액 | D4: 계 정 과 목 | F4: 금 액
A5: 합 계 (A) | C5: =C6+C10+C15+C17+C21+C24 -> 1,609,990 | D5: 합 계 (B) | F5: =F6+F10+F15+F17+F19+F21+F23+F25 -> 1,609,990
A6: 투자자산수입 | B6: 소계 | C6: =SUM(C7:C9) -> 0 | D6: 투 자 자 산 | E6: 소계 | F6: =SUM(F7:F9) -> 0
B7: 투자자산 | C7: 0
C8: 0 | E8: 미완성주택 | F8: 0
E9: 지급이자등 | F9: =F36+F63 -> 0
A10: 기타비유동자산처분 | B10: 소계 | C10: =SUM(C11:C13) -> 0 | D10: 유형자산취득 | E10: 소 계 | F10: =C19 -> 1,109,990
B11: 보증금회수수입 | C11: 0 | E11: 구 축 물
C12: =+C39+C66 -> 0 | E12: 기계장치 | F12: ='나. 지출예산 총괄표'!H302 -> 150,000
C13: 0 | E13: 차량운반구
E14: 수탁자산취득비 | F14: =F10-F12 -> 959,990
A15: 유동부채수입 | B15: 소계 | C15: =C16 -> 0 | D15: 무형자산 및 기타비유동자산취득 | E15: 소계 | F15: =F16 -> 0
B16: 기타유동부채수입 | E16: 보증금 | F16: 0
A17: 자본잉여금수입 | B17: 소계 | C17: =C18+C19 -> 1,109,990 | D17: 재고자산 | E17: 소계 | F17: =F18 -> 0
B18: 차량운반구매각수입 | C18: 0 | E18: 투자자산
B19: 수탁자산보조금수입 | C19: ='가. 수입예산 총괄표(사업수익+자본적수입)'!F30 -> 1,109,990 | D19: 고정부채상환 | E19: 소 계
C20: 0 | E20: 기타유동부채상환
A21: 유보자금 | B21: 소계 | C21: =C22 -> 500,000 | D21: 유동부채상환 | E21: 소계 | F21: =F22 -> 0
B22: 유보자금 | C22: ='가. 수입예산 총괄표(사업수익+자본적수입)'!F43 -> 500,000 | E22: 기타유동부채상환
D23: 기타자본적지출 | E23: 소계 | F23: =F24 -> 0
A24: 기타자본적수입 | B24: 소계 | C24: =SUM(C25:C26) -> 0 | E24: 기타자본적지출
B25: 기타자본적수입 | C25: =+C52+C79 -> 0 | D25: 예비비 | E25: 소계 | F25: =F26 -> 500,000
E26: 예비비 | F26: 500,000
A27: 수입. 비용차감액 (A-B) | F27: =C5-F5 -> 0

Sheet 가. 수입예산 총괄표(사업수익+자본적수입)
A1: 가. 수입예산 총괄표(사업수익+자본적수입)
K2: (단위 : 천원)
A3: 과 목 | F3: 당년도예산액 (A) | G3: 전년도예산액 (B) | H3: 증 감 (A-B) | I3: 산 출 기 초
A4: 구분 | B4: 관 | C4: 항 | D4: 세항 | E4: 목
A5: 수입계(사업수익+자본적수입) | F5: =F6+F27 -> 47,211,348 | G5: =G6+G27 -> 49,686,585 | H5: =F5-G5 -> △2,475,237
A6: 사업예산 | F6: =F8+F23 -> 45,601,358 | G6: =G8+G23 -> 46,229,779 | H6: △628,421
B7: 600 사업수익 | F7: =F8+F23 -> 45,601,358 | G7: =G8+G23 -> 46,229,779 | H7: △628,421
C8: 610 영업수익 | F8: =F9 -> 45,601,358 | G8: =G9 -> 46,229,779 | H8: △628,421
D9: 622 대행사업수익 | F9: =F10+F21 -> 45,601,358 | G9: =G10+G21 -> 46,229,779 | H9: △628,421
E10: 623-01 직접관리비수익 | F10: =SUM(F11:F20) -> 29,447,308 | G10: 30,339,594 | H10: △892,286 | K10: =SUM(K11:K20) -> 29,447,308
F11: =K11 -> 1,577,711 | G11: 1,456,881 | H11: =F11-G11 -> 120,830 | I11: ○ 대행사업관리비 수입(공영주차장 관리 운영) | J11: = | K11: ='나. 지출예산 총괄표'!H9 -> 1,577,711
F12: 168,033 | G12: 230,088 | H12: △62,055 | I12: ○ 대행사업관리비 수입(돌산공원주차장 운영) | J12: = | K12: ='나. 지출예산 총괄표'!H31 -> 168,033
F13: 297,674 | G13: 299,424 | H13: △1,750 | I13: ○ 대행사업관리비 수입(봉황산자연휴양림 운영) | J13: = | K13: ='나. 지출예산 총괄표'!H47 -> 297,674
F14: =K14 -> 185,000 | G14: 0 | H14: =F14-G14 -> 185,000 | I14: ○ 대행사업관리비 수입(굴전∙금오도 야영장 운영) | J14: = | K14: ='나. 지출예산 총괄표'!H66 -> 185,000
F15: 21,539,757 | G15: 21,828,236 | H15: △288,479 | I15: ○ 대행사업 관리비 수입(생활폐기물수집운반) | J15: = | K15: ='나. 지출예산 총괄표'!H139 -> 21,539,757
F16: =K16 -> 100,803 | G16: 101,745 | H16: △942 | I16: ○ 대행사업관리비 수입(종량제물품공급) | J16: = | K16: ='나. 지출예산 총괄표'!H163 -> 100,803
F17: 1,004,886 | G17: 1,029,364 | H17: △24,478 | I17: ○ 대행사업관리비 수입(진남수영장) | J17: = | K17: ='나. 지출예산 총괄표'!H88 -> 1,004,886
F18: 747,817 | G18: 745,283 | H18: 2,534 | I18: ○ 대행사업관리비 수입(망마국민체육센터) | J18: = | K18: ='나. 지출예산 총괄표'!H108 -> 747,817
F19: 225,039 | G19: 224,991 | H19: 48 | I19: ○ 대행사업관리비 수입(장애인국민체육센터) | J19: = | K19: ='나. 지출예산 총괄표'!H124 -> 225,039
F20: 3,600,588 | G20: 4,423,582 | H20: △822,994 | I20: ○ 대행사업관리비 수입(도시형폐기물처리시설) | J20: = | K20: ='나. 지출예산 총괄표'!H178 -> 3,600,588
E21: 623-02 간접관리비수익 | F21: 16,154,050 | G21: 15,890,185 | H21: =F21-G21 -> 263,865 | I21: 623-02 간접관리비수익 | K21: =K22 -> 16,154,050
I22: ○ 사업수행에 따른 공통경비등 간접관리비 수입 | J22: = | K22: ='나. 지출예산 총괄표'!H202-'나. 지출예산 총괄표'!H235 -> 16,154,050
C23: 670 영업외수익 | F23: =F24 -> 0 | G23: =G24 -> 0 | H23: =H24 -> 0
D24: 679 기타영업외수익 | F24: =K25 -> 0 | G24: =L25 -> 0 | H24: =F24-G24 -> 0
E25: 679-09 기타영업외수익 | F25: =K25 -> 0 | G25: =L25 -> 0 | H25: =F25-G25 -> 0 | K25: =K26 -> 0
I26: ○ 신용카드 포인트 등 | J26: = | K26: ='나. 지출예산 총괄표'!H235 -> 0
A27: 자본예산 | F27: =F28 -> 1,609,990 | G27: =G28 -> 3,456,806 | H27: =F27-G27 -> △1,846,816
B28: 100 자본적수입 | F28: =F29+F43 -> 1,609,990 | G28: =G29+G43 -> 3,456,806 | H28: =F28-G28 -> △1,846,816
C29: 170 자본잉여금수입 | F29: =F30 -> 1,109,990 | G29: =G30 -> 2,956,806 | H29: △1,846,816 | K29: =K30 -> 0
D30: 176 수탁자산보조금수입 | F30: =F31 -> 1,109,990 | G30: =G31 -> 2,956,806 | H30: △1,846,816
E31: 176-01 수탁자산보조금수입 | F31: =SUM(F32:F42) -> 1,109,990 | G31: 2,956,806 | H31: △1,846,816 | K31: =SUM(K32:K42) -> 1,109,990
F32: =K32 -> 8,000 | G32: 32,396 | H32: =F32-G32 -> △24,396 | I32: ○ 수탁자산취득비(경영본부) | J32: = | K32: ='나. 지출예산 총괄표'!H309 -> 8,000
F33: 150,000 | G33: 127,500 | H33: =F33-G33 -> 22,500 | I33: ○ 수탁자산취득비(공영주차장) | J33: = | K33: ='나. 지출예산 총괄표'!H261 -> 150,000
F34: =K34 -> 0 | G34: 0 | H34: 0 | I34: ○ 수탁자산취득비(돌산공원주차장) | J34: = | K34: 0
F35: =K35 -> 1,750 | G35: 0 | H35: 1,750 | I35: ○ 수탁자산취득비(봉황산자연휴양림) | J35: = | K35: ='나. 지출예산 총괄표'!H265 -> 1,750
F36: =K36 -> 15,000 | G36: 0 | H36: =F36-G36 -> 15,000 | I36: ○ 수착자산취득비(굴전∙금오도 야영장 운영) | J36: = | K36: ='나. 지출예산 총괄표'!H269 -> 15,000
F37: 707,000 | G37: 665,113 | H37: 41,887 | I37: ○ 수탁자산취득비(생활폐기물수집운반) | J37: = | K37: ='나. 지출예산 총괄표'!H287 -> 707,000
F38: =K38 -> 0 | G38: 0 | H38: 0 | I38: ○ 수탁자산취득비(종량제물품공급) | J38: = | K38: ='나. 지출예산 총괄표'!H294 -> 0
F39: 19,170 | G39: 3,470 | H39: 15,700 | I39: ○ 수탁자산취득비(진남수영장) | J39: = | K39: ='나. 지출예산 총괄표'!H274 -> 19,170
F40: 1,470 | G40: 21,886 | H40: △20,416 | I40: ○ 수탁자산취득비(망마국민체육센터) | J40: = | K40: ='나. 지출예산 총괄표'!H278 -> 1,470
F41: =K41 -> 0 | G41: 0 | H41: 0 | I41: ○ 수탁자산취득비(장애인국민체육센터) | J41: = | K41: ='나. 지출예산 총괄표'!H282 -> 0
F42: 207,600 | G42: 2,106,441 | H42: △1,898,841 | I42: ○ 시설비및부대비,수탁자산취득비(도시형폐기물처리시설) | J42: = | K42: ='나. 지출예산 총괄표'!H298 -> 207,600
C43: 180 유보자금 | F43: =F44 -> 500,000 | G43: 500,000 | H43: 0
D44: 181 순세계잉여금 | F44: =F45 -> 500,000 | G44: 500,000 | H44: 0
E45: 181-01 순세계잉여금 | F45: 500,000 | G45: 500,000 | H45: 0 | K45: =K46 -> 500,000
I46: ○ 유보자금 | J46: = | K46: ='나. 지출예산 총괄표'!H313 -> 500,000

Sheet 나. 지출예산 총괄표
A1: 나. 지출예산 총괄표(사업수익+자본적수입)
J2: (단위 : 천원)
A3: 과 목 | H3: 당년도예산액 (A) | I3: 전년도예산액 (B) | J3: 증 감 (A-B)
A4: 구분 | B4: 분야부분 | C4: 정책사업 | D4: 단위사업 | E4: 세부사업 | F4: 목 | G4: 세목
A5: 총계(사업예산+자본예산) | H5: =H6+H258 -> 47,211,348 | I5: =I6+I258 -> 49,686,585 | J5: =H5-I5 -> △2,475,237
A6: 사업예산 | H6: =H7 -> 45,601,358 | I6: =I7 -> 46,229,779 | J6: =H6-I6 -> △628,421
B7: 0110_013 지방행정, 재정지원 | H7: =H8+H87+H138+H202 -> 45,601,358 | I7: =I8+I87+I138+I202 -> 46,229,779 | J7: =H7-I7 -> △628,421
C8: 교통∙휴양 대행사업 | H8: =H9+H31+H47+H66 -> 2,228,418 | I8: =I9+I31+I47+I66 -> 1,986,393 | J8: 242,025
D9: 공영주차장 수탁 대행사업 | H9: =H10+H28 -> 1,577,711 | I9: =I10+I28 -> 1,456,881 | J9: 120,830
E10: 공영주차장 관리운영 | H10: =H11+H13+H20+H22+H24+H26 -> 1,396,852 | I10: =I11+I13+I20+I22+I24+I26 -> 1,271,881 | J10: 124,971
F11: 인건비 | H11: =교통휴양시설부!H9 -> 374,709 | I11: =교통휴양시설부!I9 -> 491,919 | J11: △117,210
G12: 기간제근로자보수 | H12: =교통휴양시설부!H11 -> 374,709 | I12: =교통휴양시설부!I11 -> 491,919 | J12: △117,210
F13: 일반운영비 | H13: =교통휴양시설부!H25 -> 992,443 | I13: =교통휴양시설부!I25 -> 651,602 | J13: 340,841
G14: 사무관리비 | H14: =교통휴양시설부!H26 -> 184,250 | I14: =교통휴양시설부!I26 -> 107,062 | J14: =H14-I14 -> 77,188
G15: 지급수수료 | H15: =교통휴양시설부!H38 -> 315,689 | I15: =교통휴양시설부!I38 -> 170,510 | J15: =H15-I15 -> 145,179
G16: 임차료 | H16: =교통휴양시설부!H60 -> 52,204 | I16: =교통휴양시설부!I60 -> 45,593 | J16: 6,611
G17: 복리후생비 | H17: =교통휴양시설부!H75 -> 39,500 | I17: =교통휴양시설부!I75 -> 28,350 | J17: 11,150
G18: 공공요금및제세 | H18: =교통휴양시설부!H81 -> 397,200 | I18: =교통휴양시설부!I81 -> 294,792 | J18: 102,408
G19: 차량선박비 | H19: =교통휴양시설부!H87 -> 3,600 | I19: =교통휴양시설부!I87 -> 5,295 | J19: △1,695
F20: 여비 | H20: =교통휴양시설부!H89 -> 16,400 | I20: =교통휴양시설부!I89 -> 15,060 | J20: 1,340
G21: 국내여비 | H21: =교통휴양시설부!H90 -> 16,400 | I21: =교통휴양시설부!I90 -> 15,060 | J21: =H21-I21 -> 1,340
F22: 연구개발비 | H22: =교통휴양시설부!H93 -> 0 | I22: =교통휴양시설부!I93 -> 100,000 | J22: =H22-I22 -> △100,000
G23: 전산개발비 | H23: =교통휴양시설부!H94 -> 0 | I23: =교통휴양시설부!I94 -> 100,000 | J23: =H23-I23 -> △100,000
F24: 관서업무비 | H24: =교통휴양시설부!H95 -> 6,300 | I24: =교통휴양시설부!I95 -> 6,300 | J24: 0
G25: 부서업무비 | H25: =교통휴양시설부!H96 -> 6,300 | I25: =교통휴양시설부!I96 -> 6,300 | J25: =H25-I25 -> 0
F26: 배상금등 | H26: =교통휴양시설부!H101 -> 7,000 | I26: =교통휴양시설부!I101 -> 7,000 | J26: 0
G27: 배상금등 | H27: =교통휴양시설부!H102 -> 7,000 | I27: =교통휴양시설부!I102 -> 7,000 | J27: =H27-I27 -> 0
E28: 공영주차장 시설 유지보수 | H28: =H29 -> 180,859 | I28: =I29 -> 185,000 | J28: △4,141
F29: 수선유지교체비 | H29: =교통휴양시설부!H106 -> 180,859 | I29: =교통휴양시설부!I106 -> 185,000 | J29: △4,141
G30: 수선유지비 | H30: =교통휴양시설부!H107 -> 180,859 | I30: =교통휴양시설부!I107 -> 185,000 | J30: =H30-I30 -> △4,141
D31: 돌산 공원주차장 수탁 대행사업 | H31: =H32+H44 -> 168,033 | I31: =I32+I44 -> 230,088 | J31: △62,055
E32: 돌산 공원주차장 관리운영 | H32: =H33+H35+H40+H42 -> 158,033 | I32: =I33+I35+I40+I42 -> 220,888 | J32: △62,855
F33: 인건비 | H33: =교통휴양시설부!H112 -> 142,285 | I33: =교통휴양시설부!I112 -> 204,758 | J33: △62,473
G34: 기간제근로자보수 | H34: =교통휴양시설부!H114 -> 142,285 | I34: =교통휴양시설부!I114 -> 204,758 | J34: =H34-I34 -> △62,473
F35: 일반운영비 | H35: =교통휴양시설부!H121 -> 13,548 | I35: =교통휴양시설부!I121 -> 12,030 | J35: 1,518
G36: 사무관리비 | H36: =교통휴양시설부!H122 -> 2,388 | I36: =교통휴양시설부!I122 -> 2,400 | J36: △12
G37: 지급수수료 | H37: =교통휴양시설부!H124 -> 360 | I37: =교통휴양시설부!I124 -> 330 | J37: 30
G38: 복리후생비 | H38: =교통휴양시설부!H126 -> 2,400 | I38: =교통휴양시설부!I126 -> 2,700 | J38: △300
G39: 공공요금및제세 | H39: =교통휴양시설부!H130 -> 8,400 | I39: =교통휴양시설부!I130 -> 6,600 | J39: 1,800
F40: 관서업무비 | H40: =교통휴양시설부!H133 -> 1,200 | I40: =교통휴양시설부!I133 -> 2,100 | J40: △900
G41: 부서업무비 | H41: =교통휴양시설부!H134 -> 1,200 | I41: =교통휴양시설부!I134 -> 2,100 | J41: =H41-I41 -> △900
F42: 배상금등 | H42: =교통휴양시설부!H138 -> 1,000 | I42: =교통휴양시설부!I138 -> 2,000 | J42: △1,000
G43: 배상금등 | H43: =교통휴양시설부!H139 -> 1,000 | I43: =교통휴양시설부!I139 -> 2,000 | J43: =H43-I43 -> △1,000
E44: 돌산 공원주차장 시설 유지보수 | H44: =H45 -> 10,000 | I44: =I45 -> 9,200 | J44: 800
F45: 수선유지교체비 | H45: =교통휴양시설부!H143 -> 10,000 | I45: =교통휴양시설부!I143 -> 9,200 | J45: 800
G46: 수선유지비 | H46: =교통휴양시설부!H144 -> 10,000 | I46: =교통휴양시설부!I144 -> 9,200 | J46: =H46-I46 -> 800
D47: 휴양림 수탁 대행사업 | H47: =H48+H63 -> 297,674 | I47: =I48+I63 -> 299,424 | J47: △1,750
E48: 봉황산자연휴양림 운영 | H48: =H49+H51+H59+H61 -> 273,218 | I48: =I49+I51+I59+I61 -> 268,752 | J48: 4,466
F49: 인건비 | H49: =교통휴양시설부!H149 -> 67,696 | I49: =교통휴양시설부!I149 -> 64,392 | J49: 3,304
G50: 기간제근로자보수 | H50: =교통휴양시설부!H150 -> 67,696 | I50: =교통휴양시설부!I150 -> 64,392 | J50: =H50-I50 -> 3,304
F51: 일반운영비 | H51: =교통휴양시설부!H159 -> 199,952 | I51: =교통휴양시설부!I159 -> 198,790 | J51: 1,162
G52: 사무관리비 | H52: =교통휴양시설부!H160 -> 27,762 | I52: =교통휴양시설부!I160 -> 38,145 | J52: △10,383
G53: 공공운영비 | H53: =교통휴양시설부!H168 -> 500 | I53: =교통휴양시설부!I168 -> 500 | J53: =#REF! -> 
G54: 지급수수료 | H54: =교통휴양시설부!H170 -> 28,290 | I54: =교통휴양시설부!I170 -> 26,730 | J54: 1,560
G55: 임차료 | H55: =교통휴양시설부!H178 -> 14,580 | I55: =교통휴양시설부!I178 -> 13,320 | J55: 1,260
G56: 복리후생비 | H56: =교통휴양시설부!H185 -> 5,040 | I56: =교통휴양시설부!I185 -> 2,960 | J56: 2,080
G57: 공공요금및제세 | H57: =교통휴양시설부!H190 -> 122,100 | I57: =교통휴양시설부!I190 -> 115,536 | J57: 6,564
G58: 차량선박비 | H58: =교통휴양시설부!H195 -> 1,680 | I58: =교통휴양시설부!I195 -> 1,599 | J58: 81
F59: 여비 | H59: =교통휴양시설부!H197 -> 2,570 | I59: =교통휴양시설부!I197 -> 2,570 | J59: 0
G60: 국내여비 | H60: =교통휴양시설부!H198 -> 2,570 | I60: =교통휴양시설부!I198 -> 2,570 | J60: =H60-I60 -> 0
F61: 관서업무비 | H61: =교통휴양시설부!H201 -> 3,000 | I61: =교통휴양시설부!I201 -> 3,000 | J61: 0
G62: 부서업무비 | H62: =교통휴양시설부!H202 -> 3,000 | I62: =교통휴양시설부!I202 -> 3,000 | J62: =H62-I62 -> 0
E63: 봉황산자연휴양림 시설 유지보수 | H63: =H64 -> 24,456 | I63: =I64 -> 30,672 | J63: △6,216
F64: 수선유지교체비 | H64: =교통휴양시설부!H206 -> 24,456 | I64: =교통휴양시설부!I206 -> 30,672 | J64: △6,216
G65: 수선유지비 | H65: =교통휴양시설부!H207 -> 24,456 | I65: =교통휴양시설부!I207 -> 30,672 | J65: =H65-I65 -> △6,216
D66: 야영장 수탁 대행사업 | H66: =H67+H84 -> 185,000 | I66: =I67+I84 -> 0 | J66: =H66-I66 -> 185,000
E67: 굴전∙금오도 야영장 운영 | H67: =H68+H70+H78+H80+H82 -> 169,301 | I67: =I68+I70+I78+I80+I82 -> 0 | J67: 169,301
F68: 인건비 | H68: =교통휴양시설부!H212 -> 60,909 | I68: =교통휴양시설부!I212 -> 0 | J68: 60,909
G69: 기간제근로자보수 | H69: =교통휴양시설부!H214 -> 60,909 | I69: =교통휴양시설부!I214 -> 0 | J69: =H69-I69 -> 60,909
F70: 일반운영비 | H70: =교통휴양시설부!H226 -> 99,512 | I70: =교통휴양시설부!I226 -> 0 | J70: =H70-I70 -> 99,512
G71: 사무관리비 | H71: =교통휴양시설부!H227 -> 14,914 | I71: =교통휴양시설부!I227 -> 0 | J71: 14,914
G72: 공공운영비 | H72: =교통휴양시설부!H236 -> 500 | I72: =교통휴양시설부!I236 -> 0 | J72: =[1]교통휴양시설부!J202 -> 0
G73: 지급수수료 | H73: =교통휴양시설부!H238 -> 17,930 | I73: =교통휴양시설부!I238 -> 0 | J73: =H73-I73 -> 17,930
G74: 임차료 | H74: =교통휴양시설부!H246 -> 11,760 | I74: =교통휴양시설부!I246 -> 0 | J74: 11,760
G75: 복리후생비 | H75: =교통휴양시설부!H250 -> 6,540 | I75: =교통휴양시설부!I250 -> 0 | J75: 6,540
G76: 공공요금및제세 | H76: =교통휴양시설부!H255 -> 46,428 | I76: =교통휴양시설부!I255 -> 0 | J76: 46,428
G77: 차량선박비 | H77: =교통휴양시설부!H261 -> 1,440 | I77: =교통휴양시설부!I261 -> 0 | J77: 1,440
F78: 여비 | H78: =교통휴양시설부!H263 -> 6,480 | I78: =교통휴양시설부!I263 -> 0 | J78: 6,480
G79: 국내여비 | H79: =교통휴양시설부!H264 -> 6,480 | I79: =교통휴양시설부!I264 -> 0 | J79: =H79-I79 -> 6,480
F80: 연구개발비 | H80: =교통휴양시설부!H267 -> 0 | I80: =교통휴양시설부!I267 -> 0 | J80: =H80-I80 -> 0
G81: 전산개발비 | H81: =교통휴양시설부!H268 -> 0 | I81: =교통휴양시설부!I268 -> 0 | J81: =H81-I81 -> 0
F82: 관서업무비 | H82: =교통휴양시설부!H270 -> 2,400 | I82: =교통휴양시설부!I270 -> 0 | J82: =H82-I82 -> 2,400
G83: 부서업무비 | H83: =교통휴양시설부!H271 -> 2,400 | I83: =교통휴양시설부!I271 -> 0 | J83: =H83-I83 -> 2,400
E84: 굴전∙금오도 시설 유지보수 | H84: =H85 -> 15,699 | I84: =I85 -> 0 | J84: =H84-I84 -> 15,699
F85: 수선유지교체비 | H85: =교통휴양시설부!H275 -> 15,699 | I85: =교통휴양시설부!I275 -> 0 | J85: 15,699
G86: 수선유지비 | H86: =교통휴양시설부!H276 -> 15,699 | I86: =교통휴양시설부!I276 -> 0 | J86: =H86-I86 -> 15,699
C87: 체육시설 대행사업 | H87: =H88+H108+H124 -> 1,977,742 | I87: =I88+I108+I124 -> 1,999,638 | J87: △21,896
D88: 진남수영장 수탁 대행사업 | H88: =H89+H102 -> 1,004,886 | I88: =I89+I102 -> 1,029,364 | J88: △24,478
E89: 진남수영장 운영 및 관리 | H89: =H90+H92+H98+H100 -> 950,032 | I89: =I90+I92+I98+I100 -> 958,110 | J89: △8,078
F90: 인건비 | H90: =체육시설부!H10 -> 147,745 | I90: =체육시설부!I10 -> 171,587 | J90: △23,842
G91: 기간제근로자보수 | H91: =체육시설부!H11 -> 147,745 | I91: =체육시설부!I11 -> 171,587 | J91: =H91-I91 -> △23,842
F92: 일반운영비 | H92: =체육시설부!H21 -> 767,007 | I92: =체육시설부!I21 -> 751,243 | J92: 15,764
G93: 사무관리비 | H93: =체육시설부!H22 -> 21,658 | I93: =체육시설부!I22 -> 23,800 | J93: △2,142
G94: 지급수수료 | H94: =체육시설부!H39 -> 123,460 | I94: =체육시설부!I39 -> 122,198 | J94: 1,262
G95: 임차료 | H95: =체육시설부!H63 -> 14,808 | I95: =체육시설부!I63 -> 8,100 | J95: 6,708
G96: 복리후생비 | H96: =체육시설부!H69 -> 33,806 | I96: =체육시설부!I69 -> 33,470 | J96: 336
G97: 공공요금및제세 | H97: =체육시설부!H79 -> 573,275 | I97: =체육시설부!I79 -> 563,675 | J97: 9,600
F98: 여비 | H98: =체육시설부!H90 -> 23,580 | I98: =체육시설부!I90 -> 23,580 | J98: 0
G99: 국내여비 | H99: =체육시설부!H91 -> 23,580 | I99: =체육시설부!I91 -> 23,580 | J99: =H99-I99 -> 0
F100: 관서업무비 | H100: =체육시설부!H94 -> 11,700 | I100: =체육시설부!I94 -> 11,700 | J100: 0
G101: 부서업무비 | H101: =체육시설부!H95 -> 11,700 | I101: =체육시설부!I95 -> 11,700 | J101: =H101-I101 -> 0
E102: 진남수영장 시설 유지보수 | H102: =H103+H106 -> 54,854 | I102: =I103+I106 -> 71,254 | J102: △16,400
F103: 재료비 | H103: =체육시설부!H102 -> 10,354 | I103: =체육시설부!I102 -> 10,354 | J103: 0
G104: 일반재료비 | H104: =체육시설부!H103 -> 1,000 | I104: =체육시설부!I103 -> 1,000 | J104: 0
G105: 약품비 | H105: =체육시설부!H105 -> 9,354 | I105: =체육시설부!I105 -> 9,354 | J105: 0
F106: 수선유지교체비 | H106: =체육시설부!H111 -> 44,500 | I106: =체육시설부!I111 -> 60,900 | J106: △16,400
G107: 수선유지비 | H107: =체육시설부!H112 -> 44,500 | I107: =체육시설부!I112 -> 60,900 | J107: =H107-I107 -> △16,400
D108: 망마국민체육센터 수탁 대행사업 | H108: =H109+H118 -> 747,817 | I108: =I109+I118 -> 745,283 | J108: =H108-I108 -> 2,534
E109: 망마국민체육센터 운영 및 관리 | H109: =H110+H112 -> 677,961 | I109: =I110+I112 -> 673,743 | J109: 4,218
F110: 인건비 | H110: =체육시설부!H137 -> 126,328 | I110: =체육시설부!I137 -> 156,863 | J110: △30,535
G111: 기간제근로자보수 | H111: =체육시설부!H139 -> 126,328 | I111: =체육시설부!I139 -> 156,863 | J111: =H111-I111 -> △30,535
F112: 일반운영비 | H112: =체육시설부!H150 -> 551,633 | I112: =체육시설부!I150 -> 516,880 | J112: 34,753
G113: 사무관리비 | H113: =체육시설부!H151 -> 23,560 | I113: =체육시설부!I151 -> 25,660 | J113: △2,100
G114: 지급수수료 | H114: =체육시설부!H166 -> 55,360 | I114: =체육시설부!I166 -> 63,933 | J114: △8,573
G115: 임차료 | H115: =체육시설부!H181 -> 14,904 | I115: =체육시설부!I181 -> 5,112 | J115: 9,792
G116: 복리후생비 | H116: =체육시설부!H187 -> 6,860 | I116: =체육시설부!I187 -> 7,640 | J116: △780
G117: 공공요금및제세 | H117: =체육시설부!H191 -> 450,949 | I117: =체육시설부!I191 -> 414,535 | J117: 36,414
E118: 망마국민체육센터 시설 유지보수 | H118: =H119+H122 -> 69,856 | I118: =I119+I122 -> 71,540 | J118: △1,684
F119: 재료비 | H119: =체육시설부!H203 -> 5,656 | I119: =체육시설부!I203 -> 7,040 | J119: △1,384
G120: 일반재료비 | H120: =체육시설부!H204 -> 500 | I120: =체육시설부!I204 -> 800 | J120: △300
G121: 약품비 | H121: =체육시설부!H206 -> 5,156 | I121: =체육시설부!I206 -> 6,240 | J121: △1,084
F122: 수선유지교체비 | H122: =체육시설부!H210 -> 64,200 | I122: =체육시설부!I210 -> 64,500 | J122: △300
G123: 수선유지비 | H123: =체육시설부!H211 -> 64,200 | I123: =체육시설부!I211 -> 64,500 | J123: =H123-I123 -> △300
D124: 장애인국민체육센터 수탁 대행사업 | H124: =H125+H133 -> 225,039 | I124: =I125+I133 -> 224,991 | J124: =H124-I124 -> 48
E125: 장애인국민체육센터 운영 및 관리 | H125: =H126 -> 190,795 | I125: =I126 -> 187,895 | J125: 2,900
F126: 일반운영비 | H126: =체육시설부!H232 -> 190,795 | I126: =체육시설부!I232 -> 187,895 | J126: 2,900
G127: 사무관리비 | H127: =체육시설부!H233 -> 17,972 | I127: =체육시설부!I233 -> 18,232 | J127: △260
G128: 공공운영비 | H128: =체육시설부!H249 -> 0 | I128: =체육시설부!I249 -> 100 | J128: △100
G129: 지급수수료 | H129: =체육시설부!H251 -> 32,880 | I129: =체육시설부!I251 -> 36,700 | J129: △3,820
G130: 임차료 | H130: =체육시설부!H264 -> 6,600 | I130: =체육시설부!I264 -> 4,320 | J130: 2,280
G131: 복리후생비 | H131: =체육시설부!H268 -> 500 | I131: =체육시설부!I268 -> 500 | J131: 0
G132: 공공요금및제세 | H132: =체육시설부!H270 -> 132,843 | I132: =체육시설부!I270 -> 128,043 | J132: 4,800
E133: 장애인국민체육센터 시설 유지보수 | H133: =H134+H136 -> 34,244 | I133: =I134+I136 -> 37,096 | J133: △2,852
F134: 재료비 | H134: =체육시설부!H282 -> 395 | I134: =체육시설부!I282 -> 747 | J134: △352
G135: 일반재료비 | H135: =체육시설부!H283 -> 395 | I135: =체육시설부!I283 -> 747 | J135: =H135-I135 -> △352
F136: 수선유지교체비 | H136: =체육시설부!H286 -> 33,849 | I136: =체육시설부!I286 -> 36,349 | J136: △2,500
G137: 수선유지비 | H137: =체육시설부!H287 -> 33,849 | I137: =체육시설부!I287 -> 36,349 | J137: =H137-I137 -> △2,500
C138: 환경대행사업 | H138: =H139+H163+H178 -> 25,241,148 | I138: =I139+I163+I178 -> 26,353,563 | J138: △1,112,415
D139: 생활폐기물 수집운반∙가로청소 수탁 대행사업 | H139: =H140+H156+H159 -> 21,539,757 | I139: =I140+I156+I159 -> 21,828,236 | J139: △288,479
E140: 생활폐기물 수집운반 및 가로청소 운영관리 | H140: =H141+H144+H152+H154 -> 20,452,402 | I140: =I141+I144+I152+I154 -> 20,789,419 | J140: △337,017
F141: 인건비 | H141: =도시미화부!H9 -> 18,499,480 | I141: =도시미화부!I9 -> 18,866,047 | J141: △366,567
G142: 무기계약직근로자보수 | H142: =도시미화부!H11 -> 18,427,286 | I142: =도시미화부!I11 -> 18,793,855 | J142: △366,569
G143: 기간제근로자보수 | H143: =도시미화부!H62 -> 72,194 | I143: =도시미화부!I62 -> 72,192 | J143: 2
F144: 일반운영비 | H144: =도시미화부!H67 -> 1,905,562 | I144: =도시미화부!I67 -> 1,875,532 | J144: 30,030
G145: 사무관리비 | H145: =도시미화부!H68 -> 49,295 | I145: =도시미화부!I68 -> 50,980 | J145: △1,685
G146: 공공운영비 | H146: =도시미화부!H94 -> 400 | I146: =도시미화부!I94 -> 0 | J146: 400
G147: 행사운영비 | H147: =도시미화부!H96 -> 0 | I147: =도시미화부!I96 -> 1,900 | J147: △1,900
G148: 지급수수료 | H148: =도시미화부!H99 -> 100,778 | I148: =도시미화부!I99 -> 16,458 | J148: 84,320
G149: 임차료 | H149: =도시미화부!H107 -> 74,091 | I149: =도시미화부!I107 -> 74,477 | J149: △386
G150: 공공요금및제세 | H150: =도시미화부!H117 -> 239,797 | I150: =도시미화부!I117 -> 286,569 | J150: △46,772
G151: 차량선박비 | H151: =도시미화부!H126 -> 1,441,201 | I151: =도시미화부!I126 -> 1,445,148 | J151: =H151-I151 -> △3,947
F152: 여비 | H152: =도시미화부!H134 -> 27,620 | I152: =도시미화부!I134 -> 27,620 | J152: 0
G153: 국내여비 | H153: =도시미화부!H135 -> 27,620 | I153: =도시미화부!I135 -> 27,620 | J153: =H153-I153 -> 0
F154: 관서업무비 | H154: =도시미화부!H143 -> 19,740 | I154: =도시미화부!I143 -> 20,220 | J154: △480
G155: 부서업무비 | H155: =도시미화부!H144 -> 19,740 | I155: =도시미화부!I144 -> 20,220 | J155: =H155-I155 -> △480
E156: 환경사원 안전개선 사업 | H156: =H157 -> 660,555 | I156: =I157 -> 727,617 | J156: △67,062
F157: 일반운영비 | H157: =도시미화부!H149 -> 660,555 | I157: =도시미화부!I149 -> 727,617 | J157: =H157-I157 -> △67,062
G158: 복리후생비 | H158: =도시미화부!H150 -> 660,555 | I158: =도시미화부!I150 -> 727,617 | J158: =H158-I158 -> △67,062
E159: 환경사원 복지관 및 청소차량 유지보수 | H159: =H160+H161 -> 426,800 | I159: =I160+I161 -> 311,200 | J159: 115,600
F160: 재료비 | H160: 0 | I160: 0 | J160: 0
F161: 수선유지교체비 | H161: =도시미화부!H180 -> 426,800 | I161: =도시미화부!I180 -> 311,200 | J161: 115,600
G162: 수선유지비 | H162: =도시미화부!H181 -> 426,800 | I162: =도시미화부!I181 -> 311,200 | J162: =H162-I162 -> 115,600
D163: 종량제물품 공급관리 수탁 대행사업 | H163: =H164 -> 100,803 | I163: =I164 -> 101,745 | J163: =H163-I163 -> △942
E164: 종량제물품 공급관리 | H164: =H165+H172+H174+H176 -> 100,803 | I164: =I165+I172+I174+I176 -> 101,745 | J164: △942
F165: 일반운영비 | H165: =도시미화부!H190 -> 98,403 | I165: =도시미화부!I190 -> 98,745 | J165: △342
G166: 사무관리비 | H166: =도시미화부!H191 -> 3,078 | I166: =도시미화부!I191 -> 3,678 | J166: △600
G167: 지급수수료 | H167: =도시미화부!H199 -> 66,271 | I167: =도시미화부!I199 -> 66,271 | J167: 0
G168: 임차료 | H168: =도시미화부!H206 -> 11,616 | I168: =도시미화부!I206 -> 10,896 | J168: 720
G169: 복리후생비 | H169: =도시미화부!H212 -> 2,460 | I169: =도시미화부!I212 -> 2,460 | J169: 0
G170: 공공요금및제세 | H170: =도시미화부!H219 -> 9,740 | I170: =도시미화부!I219 -> 9,740 | J170: 0
G171: 차량선박비 | H171: =도시미화부!H228 -> 5,238 | I171: =도시미화부!I228 -> 5,700 | J171: △462
F172: 여비 | H172: =도시미화부!H232 -> 1,200 | I172: =도시미화부!I232 -> 1,800 | J172: △600
G173: 국내여비 | H173: =도시미화부!H233 -> 1,200 | I173: =도시미화부!I233 -> 1,800 | J173: =H173-I173 -> △600
F174: 수선유지교체비 | H174: 0 | I174: 0 | J174: 0
G175: 수선유지비 | H175: 0 | I175: 0 | J175: =H175-I175 -> 0
F176: 관서업무비 | H176: =도시미화부!H235 -> 1,200 | I176: =도시미화부!I235 -> 1,200 | J176: 0
G177: 부서업무비 | H177: =도시미화부!H236 -> 1,200 | I177: =도시미화부!I236 -> 1,200 | J177: =H177-I177 -> 0
D178: 도시형 폐기물 처리시설 수탁 대행사업 | H178: =H179+H193 -> 3,600,588 | I178: =I179+I193 -> 4,423,582 | J178: =H178-I178 -> △822,994
E179: 도시형 폐기물 처리시설 운영 | H179: =H180+H182+H189+H191 -> 788,376 | I179: =I180+I182+I189+I191 -> 821,676 | J179: △33,300
F180: 인건비 | H180: 0 | I180: 0 | J180: 0
G181: 기간제근로자보수 | H181: 0 | I181: 0 | J181: =H181-I181 -> 0
F182: 일반운영비 | H182: =환경자원사업소!H10 -> 775,416 | I182: =환경자원사업소!I10 -> 808,716 | J182: △33,300
G183: 사무관리비 | H183: =환경자원사업소!H11 -> 30,220 | I183: =환경자원사업소!I11 -> 40,170 | J183: △9,950
G184: 지급수수료 | H184: =환경자원사업소!H33 -> 514,560 | I184: =환경자원사업소!I33 -> 557,272 | J184: △42,712
G185: 임차료 | H185: =환경자원사업소!H63 -> 34,000 | I185: =환경자원사업소!I63 -> 26,224 | J185: 7,776
G186: 복리후생비 | H186: =환경자원사업소!H74 -> 65,840 | I186: =환경자원사업소!I74 -> 54,360 | J186: 11,480
G187: 공공요금및제세 | H187: =환경자원사업소!H87 -> 128,696 | I187: =환경자원사업소!I87 -> 124,264 | J187: 4,432
G188: 차량선박비 | H188: =환경자원사업소!H106 -> 2,100 | I188: =환경자원사업소!I106 -> 6,426 | J188: △4,326
F189: 여비 | H189: =환경자원사업소!H111 -> 7,440 | I189: =환경자원사업소!I111 -> 7,440 | J189: 0
G190: 국내여비 | H190: =환경자원사업소!H112 -> 7,440 | I190: =환경자원사업소!I112 -> 7,440 | J190: =H190-I190 -> 0
F191: 관서업무비 | H191: =환경자원사업소!H115 -> 5,520 | I191: =환경자원사업소!I115 -> 5,520 | J191: 0
G192: 부서업무비 | H192: =환경자원사업소!H116 -> 5,520 | I192: =환경자원사업소!I116 -> 5,520 | J192: =H192-I192 -> 0
E193: 도시형 폐기물 처리시설 유지보수 | H193: =H194+H198+H200+H196 -> 2,812,212 | I193: =I194+I198+I200+I196 -> 3,601,906 | J193: =H193-I193 -> △789,694
F194: 재료비 | H194: =환경자원사업소!H120 -> 612,612 | I194: =환경자원사업소!I120 -> 625,233 | J194: △12,621
G195: 약품비 | H195: =환경자원사업소!H121 -> 612,612 | I195: =환경자원사업소!I121 -> 625,233 | J195: =H195-I195 -> △12,621
F196: 연구개발비 | H196: =환경자원사업소!H138 -> 12,000 | I196: =환경자원사업소!I138 -> 21,000 | J196: =H196-I196 -> △9,000
G197: 시험연구비 | H197: =환경자원사업소!H139 -> 12,000 | I197: =환경자원사업소!I139 -> 21,000 | J197: =H197-I197 -> △9,000
F198: 수선유지교체비 | H198: =환경자원사업소!H140 -> 1,289,180 | I198: =환경자원사업소!I140 -> 2,187,850 | J198: △898,670
G199: 수선유지비 | H199: =환경자원사업소!H141 -> 1,289,180 | I199: =환경자원사업소!I141 -> 2,187,850 | J199: =H199-I199 -> △898,670
F200: 동력비 | H200: =환경자원사업소!H167 -> 898,420 | I200: =환경자원사업소!I167 -> 767,823 | J200: =H200-I200 -> 130,597
... 116 more rows

Sheet 경영본부
A1: 다. 지출예산(세부사업) - 경영본부 | M1: 단위 : 천원
A2: 구 분 | B2: 사업 | E2: 편성목 | H2: 당년도예산액 (A) | I2: 전년도예산액 (B) | J2: 증 감 (A-B) | K2: 산 출 기 초
B3: 정책 | C3: 단위 | D3: 세부 | E3: 그룹 | F3: 목 | G3: 세목
A4: 총계(사업예산+자본예산) | H4: =H5+H519 -> 16,662,050 | I4: 16,422,581 | J4: =H4-I4 -> 239,469
A5: 사업예산 | H5: =H6 -> 16,154,050 | I5: 15,890,185 | J5: 263,865
B6: 행정운영활동 | H6: =H310+H7 -> 16,154,050 | I6: 15,890,185 | J6: 263,865
C7: 일반행정운영 관리 | H7: =H8+H258 -> 5,219,217 | I7: 5,298,338 | J7: △79,121
D8: 행정운영 | H8: =H9+H234+H256 -> 5,130,718 | I8: 5,141,908 | J8: △11,190
E9: 200 물건비 | H9: =H10+H197+H203+H207+H226 -> 1,504,983 | I9: 1,468,396 | J9: 36,587 | M9: =M10+M197+M203+M207+M226 -> 1,504,983
F10: 201 일반운영비 | H10: =H11+H76+H79+H82+H97+H130+H146+H158+H184+H194 -> 1,247,836 | I10: 1,363,391 | J10: △115,555 | M10: =H11+H76+H79+H82+H97+H130+H146+H158+H184+H194 -> 1,247,836
G11: 01 사무관리비 | H11: =M11+M51 -> 59,506 | I11: 64,394 | J11: △4,888 | K11: [일반수용비] | M11: =M12+M15+M17+M23+M24+M25+M31+M32+M49+M46+M40+M41+M45+M50 -> 41,056 | P11: 금액(원) | Q11: 수량 | R11: 단위 | S11: 개월 | T11: 산출액 합계
K12: ○ 사무용품 구입 | M12: =M13+M14 -> 5,712 | N12: ○ 사무용품 구입 | T12: 6,705,600 | V12: 사유 | W12: 이전 | X12: 현재
K13: - 복사용지 구입 : 23,000원 * 12박스 * 12월 | L13: = | M13: =T13/1000 -> 3,312 | N13: - 복사용지 구입 : | P13: 23,000 | Q13: 12 | R13: 박스 | S13: 12 | T13: =P13*Q13*S13 -> 3,312,000 | V13: 박스당 단가 상승 | W13: 27,900 | X13: 29,900
K14: - 사무용품 구입 : 200,000원 * 1회 * 12월 | L14: = | M14: 2,400 | N14: - 사무용품 구입 : | P14: 200,000 | Q14: 1 | R14: 회 | S14: 12 | T14: 2,400,000
K15: ○ 기록물 관리 | M15: =M16 -> 400 | N15: ○ 기록물 관리 | T15: 400,000
K16: - 기록관 환경정비 물품 구입 : 200,000원 * 2개 | L16: = | M16: 400 | N16: - 기록관 환경정비 물품 구입 : | P16: 200,000 | Q16: 2 | R16: 개 | T16: 400,000
K17: ○ 전산소모 비품비(토너, 드럼) | M17: =M18+M19+M20+M21+M22 -> 7,200 | N17: ○ 전산소모 비품비(토너, 드럼) | T17: 8,200,000
K18: - 컬러복합기 토너 : 200,000원 * 20개 | L18: = | M18: =T18/1000 -> 4,000 | N18: - 컬러복합기 토너 : | P18: 200,000 | Q18: 20 | R18: 개 | T18: =P18*Q18 -> 4,000,000
K19: - 컬러복합기 폐토너통 : 110,000원 * 10개 | L19: = | M19: 1,100 | N19: - 컬러복합기 폐토너통 : | P19: 110,000 | Q19: 10 | R19: 개 | T19: 1,100,000
K20: - 흑백복합기 추가인쇄료 : 11원 * 100,000매 | L20: = | M20: 1,100 | N20: - 흑백복합기 추가인쇄료 : | P20: 11 | Q20: 100,000 | R20: 매 | T20: 1,100,000
K21: - 임원실 토너 : 200,000원 * 3개 | L21: = | M21: 600 | N21: - 임원실 토너 : | P21: 200,000 | Q21: 3 | R21: 개 | T21: 600,000
K22: - 전산 소모품 : 20,000원 * 20회 | L22: = | M22: 400 | N22: - 전산 소모품 : | P22: 20,000 | Q22: 20 | R22: 회 | T22: 400,000
K23: ○ 사무실 위생용품(종량제봉투 등) 구입 : 400,000원 * 12월 | L23: = | M23: 4,800 | N23: ○ 사무실 위생용품(종량제봉투 등) 구입 : | P23: 400,000 | S23: 12 | T23: 4,800,000
K24: ○ 개인정보 홍보물품 등 홍보물(현수막, 간판, 상패 등) 제작 : 2,600,000원 | L24: = | M24: 2,600 | N24: ○ 개인정보 홍보물품 등 홍보물(현수막, 간판, 상패 등) 제작 : | P24: 2,600,000 | T24: 2,600,000
K25: ○ 신문구독료 | M25: =M26+M27+M28+M29+M30 -> 1,020 | N25: ○ 신문 구독료 | T25: 1,020,000 | V25: 사유
K26: - 서울신문 : 20,000원 * 1부 * 12월 | L26: = | M26: 240 | N26: - 서울신문 : | P26: 20,000 | Q26: 1 | R26: 부 | S26: 12 | T26: 240,000
K27: - 광주일보 : 15,000원 * 1부 * 12월 | L27: = | M27: 180 | N27: - 광주일보 : | P27: 15,000 | Q27: 1 | R27: 부 | S27: 12 | T27: 180,000
K28: - 경향신문 : 20,000원 * 1부 * 12월 | L28: = | M28: 240 | N28: - 경향신문 : | P28: 20,000 | Q28: 1 | R28: 부 | S28: 12 | T28: 240,000
K29: - 여수넷통 : 10,000원 * 1부 * 12월 | L29: = | M29: 120 | N29: - 여수넷통 : | P29: 10,000 | Q29: 1 | R29: 부 | S29: 12 | T29: 120,000 | V29: 신규
K30: - 매일경제 : 20,000원 * 1부 * 12월 | L30: = | M30: 240 | N30: - 매일경제 : | P30: 20,000 | Q30: 1 | R30: 부 | S30: 12 | T30: 240,000
K31: ○ 기술서적 및 업무용 자료 구입 : 50,000원 * 2권 * 3월 | L31: = | M31: 300
K32: ○ 유인물인쇄 | M32: =M33+M34+M35+M36+M37+M38+M39 -> 3,020
K33: - 업무보고자료 : 5,000원 * 60부 * 2회 | L33: = | M33: 600 | P33: 5,000 | Q33: 60 | R33: 2 | T33: 600,000
K34: - 이사회 부의자료 : 200,000원 * 4회 | L34: = | M34: 800 | P34: 200,000 | Q34: 1 | R34: 4 | T34: 800,000
K35: - 예,결산서 유인 : 5,000원 * 30부 * 2종 * 2회 | L35: = | M35: 600 | P35: 5,000 | Q35: 30 | R35: 4 | T35: 600,000
K36: - 내부경영성과 평가 결과보고 : 5,000원 * 20부 | L36: = | M36: 100 | P36: 5,000 | Q36: 20 | T36: 100,000
K37: - 내부경영성과 평가 편람: 5,000원 * 20부 | L37: = | M37: 100 | P37: 5,000 | Q37: 20 | T37: 100,000
K38: - 경영평가실적보고서 : 16,000원 * 20부 | L38: = | M38: 320 | P38: 16,000 | Q38: 20 | T38: 320,000
K39: - 복사/제본 : 10,000원 * 5종 * 10회 | L39: = | M39: 500 | P39: 10,000 | Q39: 5 | R39: 10 | T39: 500,000
K40: ○ TV,신문,잡지등에 의한 공고료 : 6,600,000원*1식 | L40: = | M40: 6,600
K41: ○ 소프트웨어 구매 및 리스료 | M41: =M42+M43+M44 -> 1,554 | N41: ○ 소프트웨어 구매 및 리스료 | T41: 1,554,000 | V41: 사유 | W41: 이전 | X41: 현재
K42: - 한글 2022 : 250,000원 * 1대 | L42: = | M42: 250 | N42: - 한글 2022 : | P42: 250,000 | Q42: 1 | R42: 대 | T42: 250,000 | V42: PC 증가 | W42: 33대 | X42: 34대
K43: - Microsoft Office : 420,000원 * 1대 | L43: = | M43: 420 | N43: - Microsoft Office : | P43: 420,000 | Q43: 1 | R43: 대 | T43: 420,000
K44: - 알약 : 26,000원 * 34대 | L44: = | M44: 884 | N44: - 알약 : | P44: 26,000 | Q44: 34 | R44: 대 | T44: 884,000
K45: ○ 공단 업무용 수첩 제작 : 50,000원 * 80부 | L45: = | M45: =T45/1000 -> 4,000 | N45: ○ 공단 업무용 수첩 제작 : | P45: 50,000 | Q45: 80 | R45: 부 | T45: =P45*Q45 -> 4,000,000
K46: ○ 소비자중심경영 서비스 제공 관리 | M46: =M47+M48 -> 650
K47: - 고객정보제공 및 수요분석 설문조사(홈페이지) : 10,000원 * 20명 * 1회 | L47: = | M47: 200 | P47: 10,000 | Q47: 20 | R47: 1 | T47: 200,000
K48: - 고객응대표준매뉴얼 인쇄물 제작 : 15,000원 * 30권 * 1회 | L48: = | M48: 450 | P48: 15,000 | Q48: 30 | R48: 1 | T48: 450,000
K49: ○ 적극행정 및 청렴캠페인 관련 직원 홍보물 제작 : 800,000원 * 1식 | L49: = | M49: 800 | P49: 1,000,000 | Q49: 1 | R49: 1 | T49: 1,000,000
K50: ○ 청사 관리비 : 200,000원 * 12월 | M50: 2,400 | P50: 200,000 | Q50: 12 | T50: 2,400,000
K51: [위원회 등 운영수당] | M51: =M52+M55+M58+M61+M63+M65+M68+M69+M70+M72+M73+M74+M75 -> 18,450 | P51: 금액(원) | Q51: 인원(명) | R51: 횟수 | T51: 산출액 합계
K52: ○ 이사회 참석수당 | M52: =M53+M54 -> 4,200 | T52: 4,600,000
K53: - 기본(참석수당) : 100,000원 * 4명 * 9회 | L53: = | M53: =T53/1000 -> 3,600 | P53: 100,000 | Q53: 4 | R53: 9 | T53: =P53*Q53*R53 -> 3,600,000
K54: - 초과(2시간이상) : 50,000원 * 4명 * 3회 | L54: = | M54: 600 | P54: 50,000 | Q54: 4 | R54: 3 | T54: 600,000
K55: ○ 임원추천위원회 참석/심사 수당 | M55: =M56+M57 -> 4,200 | T55: 11,600,000
K56: - 기본(참석수당) : 100,000원 * 7명 * 5회 | L56: = | M56: =T56/1000 -> 3,500 | P56: 100,000 | Q56: 7 | R56: 5 | T56: =P56*Q56*R56 -> 3,500,000
K57: - 초과(2시간이상) : 50,000원 * 7명 * 2회 | L57: = | M57: =T57/1000 -> 700 | P57: 50,000 | Q57: 7 | R57: 2 | T57: =P57*Q57*R57 -> 700,000
K58: ○ 인사(징계)위원회 참석수당 | M58: =M59+M60 -> 3,600 | P58: 100,000 | Q58: 3 | R58: 6 | T58: 1,800,000
K59: - 기본(참석수당) : 100,000원 * 3명 * 8회 | L59: = | M59: =T59/1000 -> 2,400 | P59: 100,000 | Q59: 3 | R59: 8 | T59: =P59*Q59*R59 -> 2,400,000
K60: - 초과(2시간이상) : 50,000원 * 3명 * 8회 | L60: = | M60: =T60/1000 -> 1,200 | P60: 50,000 | Q60: 3 | R60: 8 | T60: =P60*Q60*R60 -> 1,200,000
K61: ○ 계약 심의위원회 참석/심사수당 | M61: =M62 -> 500 | T61: 500,000
K62: - 기본(참석수당) : 100,000원 * 5명 * 1회 | L62: = | M62: 500 | P62: 100,000 | Q62: 5 | R62: 1 | T62: 500,000
K63: ○ 소프트웨어사업 과업심의위원회 참석수당 | M63: =M64 -> 300 | T63: 300,000
K64: - 기본(참석수당) : 100,000원 * 3명 * 1회 | L64: = | M64: 300 | P64: 100,000 | Q64: 3 | R64: 1 | T64: 300,000
K65: ○ 기록물평가심의회 참석수당 | M65: =M66+M67 -> 250 | T65: 250,000
K66: - 외부위원 참석수당 : 100,000원 * 2명 * 1회 | L66: = | M66: 200 | P66: 100,000 | Q66: 2 | R66: 1 | T66: 200,000
K67: - 외부위원 원격지 교통비 : 50,000원 * 1명 | L67: = | M67: 50 | P67: 50,000 | Q67: 1 | R67: 1 | T67: 50,000
K68: ○ 혁신 과제(우수사례) 선정 위원 참석수당 : 100,000원 * 4명 * 1회 | L68: = | M68: 400
K69: ○ ESG경영위원회 참석수당 : 100,000원 * 7명 * 2회 | L69: = | M69: 1,400 | P69: 100,000 | Q69: 7 | R69: 2 | T69: 2,100,000
K70: ○ 성과관리 위원회 참석/심사수당 | M70: =M71 -> 800
K71: - 성과관리 외부위원회 참석수당 : 100,000원 * 4명 * 2회 | L71: = | M71: 800
K72: ○ 주민참여예산위원회 참석수당 : 100,000원 * 5명 * 1회 | L72: = | M72: 500 | P72: 100,000 | Q72: 5 | R72: 1 | T72: 500,000
K73: ○ 적극행정 지원위원회 참석수당 : 100,000원 * 4명 * 2회 | L73: = | M73: 800 | P73: 100,000 | Q73: 4 | R73: 2 | T73: 800,000
K74: ○ 직장 내 괴롭힘 심의위원회 참석수당 : 100,000원 * 5명 * 1회 | L74: = | M74: 500 | P74: 100,000 | Q74: 5 | R74: 1 | T74: 500,000
K75: ○ 성희롱·성폭력·스토킹 고충심의위원회 참석수당 : 100,000원 * 5명 * 2회 | L75: = | M75: 1,000 | P75: 100,000 | Q75: 5 | R75: 2 | T75: 1,500,000
G76: 02 공공운영비 | H76: =M76 -> 6,500 | I76: 0 | J76: =H76-I76 -> 6,500 | M76: =M77+M78 -> 6,500
K77: ○ (법정)건강관리실 기구 및 약품 구입비 : 500,000원 * 1회 | L77: = | M77: 500
K78: ○ (신규)공상치료비 : 500,000원 * 12개월 | L78: = | M78: 6,000
G79: 03 행사운영비 | H79: =M79 -> 14,800 | I79: 16,800 | J79: =H79-I79 -> △2,000 | K79: [행사운영비] | M79: =M80+M81 -> 14,800 | T79: =SUM(T80:T81) -> 14,800,000
K80: ○ 창립기념일, 정년퇴임식 행사 등 : 5,000,000원 * 2회 | L80: = | M80: =T80/1000 -> 10,000 | P80: 5,000,000 | R80: 2 | T80: =P80*R80 -> 10,000,000
K81: ○ 직원 화합 워크숍 : 4,800,000원 * 1회 | L81: = | M81: 4,800 | P81: 4,800,000 | R81: 1 | T81: =P81*R81 -> 4,800,000
G82: 11 지급수수료 | H82: =M82 -> 132,356 | I82: 212,622 | J82: =H82-I82 -> △80,266 | K82: [지급수수료] | M82: =M83+M84+M85+M86+M89+M90+M94+M95+M96 -> 132,356 | P82: 금액(원) | Q82: 인원(대수) | R82: 횟수 | S82: 개월 | T82: 산출액 합계
K83: ○ 직원 채용 위탁수수료(상.하반기,수시) : 22,000,000원 * 3회 | L83: = | M83: 66,000 | P83: 22,000,000 | Q83: 1 | R83: 3 | S83: 1 | T83: 66,000,000
K84: ○ 자문 노무사 자문료 : 400,000원 * 2명 * 12월 | L84: = | M84: 9,600 | P84: 400,000 | Q84: 2 | R84: 1 | S84: 12 | T84: 9,600,000
K85: ○ 법률 고문 자문료 : 400,000원 * 1명 * 12월 | L85: = | M85: 4,800 | P85: 400,000 | Q85: 1 | R85: 1 | S85: 12 | T85: 4,800,000
K86: ○ 사건수임료 | M86: =M87+M88 -> 26,400 | T86: 1,978,999,400
K87: - 노무관련 사건 수임료 : 3,300,000원 * 3회 | L87: = | M87: 9,900 | P87: 3,300,000 | Q87: 1 | R87: 3 | S87: 1 | T87: 9,900,000
K88: - 변호사 사건 수임료 : 5,500,000원 * 3회 | L88: = | M88: 16,500 | P88: 5,500,000 | Q88: 1 | R88: 3 | S88: 1 | T88: 16,500,000
K89: ○ 회계감사 수수료 : 12,000,000원 * 1회 | L89: = | M89: 12,000 | P89: 12,000,000 | Q89: 1 | R89: 1 | S89: 1 | T89: 12,000,000
K90: ○ 기타 지급수수료 : | M90: =M91+M92+M93 -> 2,856
K91: - 무인방범 근태관리시스템 수수료 : 88,000원 * 12월 | L91: = | M91: 1,056 | P91: 88,000 | Q91: 1 | R91: 1 | S91: 12 | T91: 1,056,000
K92: - 법인등기부등본 변경 등 업무수수료 : 300,000원 * 4회 | L92: = | M92: 1,200 | P92: 300,000 | Q92: 1 | R92: 1 | S92: 4 | T92: 1,200,000
K93: - 고속도로 통행료, 주차료 및 차고료 : 100,000원 * 6월 | L93: = | M93: 600 | P93: 100,000 | Q93: 1 | R93: 1 | S93: 6 | T93: 600,000
K94: ○ 폐기대상 기록물 파쇄 수수료 : 500,000원 * 1회 | L94: = | M94: 500 | P94: 500,000 | R94: 1 | T94: 500,000
K95: ○ 기록관리시스템 전자기록물 이관 용역비 : 6,600,000원 * 1회 | L95: = | M95: 6,600
K96: ○ (법정)산업보건의 업무수행 수수료 : 300,000원 * 12회 | L96: = | M96: 3,600
G97: 12 교육훈련비 | H97: =M97 -> 43,050 | I97: 44,080 | J97: =H97-I97 -> △1,030 | K97: [본부 일괄 편성] | M97: =M98+M99+M100+M101+M102+M118+M119+M120+M121+M122+M123+M128+M129 -> 43,050 | P97: 금액(원) | Q97: 인원 | R97: 횟수 | S97: 개월 | T97: 산출액 합계
K98: ○ 교육여비 : 400,000원 * 10명 * 1회 | L98: = | M98: =T98/1000 -> 4,000 | N98: ○ 교육여비 : | P98: 400,000 | Q98: 10 | R98: 1 | T98: =P98*Q98*R98 -> 4,000,000
K99: ○ 관리자과정교육(2급이상) : 500,000원 * 2명 * 1회 | L99: = | M99: =T99/1000 -> 1,000 | N99: ○ 관리자과정교육(2급이상) : | P99: 500,000 | Q99: 2 | R99: 1 | T99: =P99*Q99*R99 -> 1,000,000
K100: ○ 실무자과정교육(부장급) : 400,000원 * 5명 * 1회 | L100: = | M100: =T100/1000 -> 2,000 | N100: ○ 실무자과정교육(부장급) : | P100: 400,000 | Q100: 5 | R100: 1 | T100: =P100*Q100*R100 -> 2,000,000
K101: ○ 실무자과정교육(4급이하) : 300,000원 * 35명 * 1회 | L101: = | M101: =T101/1000 -> 10,500 | N101: ○ 실무자과정교육(4급이하) : | P101: 300,000 | Q101: 35 | R101: 1 | T101: =P101*Q101*R101 -> 10,500,000
K102: ○ (법정)기술분야 담당자 직무 교육 | M102: =SUM(M103:M117) -> 12,540
K103: - 건설기계(지게차) 교육 : 300,000원 * 4명 | L103: = | M103: 1,200 | T103: -
K104: - 기계설비유지 직무교육 : 300,000원 * 1명 | L104: = | M104: 300 | T104: -
K105: - 대기,수질,폐기물처리 환경관리인 : 100,000원 * 1명 | L105: = | M105: 100 | T105: -
K106: - 목욕업 위생교육 : 60,000원 * 1명 | L106: = | M106: 60 | T106: -
K107: - 보일러 검사기기대상 관리자 : 100,000원 * 3명 | L107: = | M107: 300 | T107: -
K108: - 소방안전 관리자 보수교육 : 55,000원 * 20명 | L108: = | M108: 1,100 | T108: -
K109: - 수도시설 관리자 : 100,000원 * 1명 | L109: = | M109: 100 | T109: -
K110: - 승강기 안전관리자 : 100,000원 * 2명 | L110: = | M110: 200
K111: - 전기안전관리자 : 150,000원 * 2명 | L111: = | M111: 300
K112: - 고압가스사용자자동차운전자(온라인) 교육 : 21,000원 * 10명 | L112: = | M112: 210 | T112: -
K113: - 간호사 보수교육 : 200,000원*1회 | L113: = | M113: 200
K114: - 관리감독자 법정교육 : 208,000원*25명 | L114: = | M114: 5,200
K115: - 안전보건관리책임자 신규교육 : 70,000원*1회 | L115: = | M115: 70
K116: - 공공기관 에너지 담당자 교육 : 250,000원*8명 | L116: = | M116: 2,000
K117: - 재난안전분야 종사자 교육 : 600,000원*2명 | L117: = | M117: 1,200
K118: ○ 안전보건경영시스템 내부심사원 교육 : 450,000원*2명 | L118: = | M118: 900
K119: ○ 안전보건관련 정기교육, 전문화교육 강사료 : 400,000*4회 | L119: = | M119: 1,600
K120: ○ 환경경영시스템 내부심사원 교육 : 440,000원*2명 | L120: = | M120: 880
K121: ○ (신규)시설관리경영시스템 내부심사원 교육 : 440,000원*2명 | L121: = | M121: 880
K122: ○ (신규)시설물 유지관리 역량강화 교육 : 400,000원*8명 | L122: = | M122: 3,200
K123: ○ 소비자중심경영 전문기관 위탁교육비 | M123: =M124+M125+M126+M127 -> 4,400
K124: - 전문강사 초빙 직원 친절 교육 : 600,000원 * 1명 * 2회 | L124: = | M124: 1,200 | P124: 600,000 | Q124: 1 | R124: 2 | T124: 1,200,000
K125: - 고객접점직원 직무역량교육비 : 350,000원 * 3명 * 2회 | L125: = | M125: 2,100 | P125: 350,000 | Q125: 3 | R125: 2 | T125: 2,100,000
K126: - 소비자중심경영 정기교육비 : 250,000원 * 1회 * 2명 | L126: = | M126: 500 | N126: (기존) 고객관리과정 교육비 -> 소비자중심경영 정기교육 | P126: 250,000 | Q126: 1 | R126: 2 | T126: 500,000
K127: - 사내 CS 강사 양성교육 : 600,000원 * 1회 | L127: = | M127: 600 | P127: 600,000 | Q127: 1 | R127: 1 | T127: 600,000
K128: ○ 부패방지(청렴) 교육 외부 강사료 : 750,000원 * 1명 * 1회 | L128: = | M128: 750 | P128: 750,000 | Q128: 1 | R128: 1 | T128: 750,000
K129: ○ 부패방지 및 준법경영시스템 내부심사원 교육비 : 400,000원*1인*1회 | L129: = | M129: 400 | P129: 400,000 | Q129: 1 | R129: 1 | T129: 400,000
G130: 13 임차료 | H130: =M130 -> 99,031 | I130: 99,445 | J130: =H130-I130 -> △414 | K130: [임차료] | M130: =M131+M133+M136+M141+M144+M145+M139+M140+M132 -> 99,031 | P130: 금액(원) | Q130: 수량(대) | R130: 횟수 | S130: 개월 | T130: 산출액 합계
K131: ○ 차량 임차료(전기차, 사무실용 승용) : 1,000,000원 * 1대 * 12월 | L131: = | M131: =T131/1000 -> 12,000 | P131: 1,000,000 | Q131: 1 | S131: 12 | T131: =P131*Q131*S131 -> 12,000,000
K132: ○ 차량 임차료(수소차, 사무실용 승용) : 570,000원 * 1대 * 12월 | L132: = | M132: 6,840 | P132: 570,000 | Q132: 1 | S132: 12 | T132: =P132*Q132*S132 -> 6,840,000
K133: ○ 얼음정수기 임차료 | M133: =M134+M135 -> 1,222 | N133: =19200+1222+575+1380+72000+816+1740 -> 96933 | T133: =SUM(T134:T135) -> 1,221,600
K134: - 본부사무실 얼음정수기 임차료 : 47,900원 * 1대 * 12월 | L134: = | M134: 575 | P134: 47,900 | Q134: 1 | S134: 12 | T134: 574,800
K135: - 이사장실 얼음정수기 임차료 : 53,900원 * 1대 * 12월 | L135: = | M135: 647 | P135: 53,900 | Q135: 1 | S135: 12 | T135: 646,800
K136: ○ 커피머신 임차료 | M136: =M137+M138 -> 574 | T136: =SUM(T137:T138) -> 573,600
K137: - 본부사무실 커피머신 임차료 : 23,900원 1대 * 12월 | L137: = | M137: 287 | P137: 23,900 | Q137: 1 | S137: 12 | T137: 286,800
K138: - 이사장실 커피머신 임차료 : 23,900원 * 1대 * 12월 | L138: = | M138: 287 | P138: 23,900 | Q138: 1 | S138: 12 | T138: 286,800
K139: =N139&TEXT(P139," #,###원")&" * "&TEXT(S139,"#분기") -> ○ 컬러복합기 렌탈료 : 613,000원 * 4분기 | L139: = | M139: =T139/1000 -> 2,452 | N139: ○ 컬러복합기 렌탈료 : | P139: 613,000 | Q139: 1 | S139: 4 | T139: =P139*S139*Q139 -> 2,452,000
K140: =N140&TEXT(P140," #,###원")&" * "&TEXT(S140,"#분기") -> ○ 흑백복합기 렌탈료 : 450,000원 * 4분기 | L140: = | M140: =T140/1000 -> 1,800 | N140: ○ 흑백복합기 렌탈료 : | P140: 450,000 | S140: 4 | T140: =P140*S140 -> 1,800,000
K141: ○ 공기청정기 임차료 | M141: =SUM(M142:M143) -> 1,380
K142: - 본부사무실 공기청정기 임차료 : 40,000원 * 1대 * 12월 | L142: = | M142: 480 | P142: 40,000 | Q142: 1 | S142: 12 | T142: =P142*S142 -> 480,000
K143: - 이사장실, 본부장실 공기청정기 임차료 : 25,000원 * 3대 * 12월 | L143: = | M143: 900 | P143: 25,000 | Q143: 3 | S143: 12 | T143: =P143*Q143*S143 -> 900,000
K144: ○ 비데 임차료 : 15,900원 * 4대 * 12월 | L144: = | M144: 763 | P144: 15,900 | Q144: 4 | S144: 12 | T144: =P144*Q144*S144 -> 763,200
K145: ○ 사무실 임차료 : 6,000,000원 * 12월 | L145: = | M145: 72,000 | P145: 600,000 | Q145: 1 | S145: 12 | T145: =P145*Q145*S145 -> 7,200,000
G146: 14 회의비 | H146: =M146 -> 4,500 | I146: 4,650 | J146: =H146-I146 -> △150 | K146: [회의비] | M146: =M147+M148+M149+M150+M151+M152+M153+M154+M157 -> 4,500 | P146: 금액(원) | Q146: 인원 | R146: 횟수 | S146: 개월 | T146: 산출액 합계
K147: ○ 임원추천위원회 간담회 및 운영비 : 25,000원 * 7명 * 3회 | L147: = | M147: =T147/1000 -> 525 | P147: 25,000 | Q147: 7 | R147: 3 | S147: 1 | T147: =P147*Q147*R147*S147 -> 525,000
K148: ○ 이사회 간담회 및 운영비 : 25,000원 * 10명 * 4회 | L148: = | M148: 1,000 | P148: 25,000 | Q148: 10 | R148: 4 | S148: 1 | T148: 1,000,000
K149: ○ 인사 위원회 간담회 및 운영비 : 25,000원 * 5명 * 3회 | L149: = | M149: 375 | P149: 25,000 | Q149: 5 | R149: 3 | S149: 1 | T149: 375,000
K150: ○ 노사협의회 운영비 : 25,000원 * 10명 * 2회 | L150: = | M150: 500 | P150: 25,000 | Q150: 10 | R150: 2 | S150: 1 | T150: 500,000
K151: ○ 개인정보 자문회 등 기타 위원회별 간담회 및 운영비 : 25,000원 * 10명 * 1회 | L151: = | M151: 250 | P151: 25,000 | Q151: 10 | R151: 1 | S151: 1 | T151: 250,000
K152: ○ ESG경영위원회 간담회 및 운영비 : 25,000원 * 9명 * 1회 | L152: = | M152: 225 | P152: 25,000 | Q152: 1 | R152: 9 | T152: =P152*Q152*R152 -> 225,000
K153: ○ 산업안전보건위원회 간담회 : 25,000원*14명*3회 | L153: = | M153: 1,050 | P153: 25,000 | Q153: 14 | R153: 3 | T153: =P153*Q153*R153 -> 1,050,000
K154: ○ 소비자중심경영 참여예산 | M154: =SUM(M155:M156) -> 475
K155: - 주민참여예산위원회 간담회 : 25,000원 * 7명 * 1회 | L155: = | M155: =T155/1000 -> 175 | P155: 25,000 | Q155: 7 | R155: 1 | T155: =P155*Q155*R155 -> 175,000
K156: - 고객모니터링단 간담회 : 25,000원 * 12명 * 1회 | L156: = | M156: =T156/1000 -> 300 | P156: 25,000 | Q156: 12 | R156: 1 | T156: 300,000
K157: ○ 적극행정 지원위원회 간담회 : 25,000원 * 4명 * 1회 | L157: = | M157: =T157/1000 -> 100 | P157: 25,000 | Q157: 4 | R157: 1 | T157: 100,000
G158: 15 복리후생비 | H158: =M158 -> 823,810 | I158: 854,370 | J158: =H158-I158 -> △30,560 | K158: [복리후생비] | M158: =M159+M162+M165+M167+M170+M171+M178+M182 -> 823,810
K159: ○ 맞춤형 복지제도(공단 전 직원) | M159: =T159/1000 -> 510,000 | T159: =SUM(T160:T161) -> 510,000,000
K160: - 복지포인트(일반직,기능직,공무직,환경사원) : 1,100,000원 * 450명 | L160: = | M160: 495,000 | P160: 1,100,000 | Q160: 450 | T160: =P160*Q160 -> 495,000,000
K161: - 기간제근로자 상품권 : 300,000원 * 50명 | L161: = | M161: 15,000 | P161: 300,000 | Q161: 50 | T161: =P161*Q161 -> 15,000,000
K162: ○ 건강문화체험활동비 지원(일반직, 기능직, 공무직, 환경사원) | L162: = | M162: =M163+M164 -> 201,800
K163: - 임원,일반직,기능직,환경사원 : 300,000원 * 356명 | L163: = | M163: =300*356 -> 106,800
K164: - 공무직 : 1,000,000원 * 95명 | L164: = | M164: =1000*95 -> 95,000
K165: ○ 건강검진 지원비(일반직, 기능직, 공무직, 환경사원) | M165: 69,000 | T165: =SUM(T166) -> 69,000,000
K166: - 짝수 년생 직원 : 300,000원 * 230명 | L166: = | M166: 69,000 | P166: 300,000 | Q166: 230 | T166: =P166*Q166 -> 69,000,000
K167: ○ 신규직원 채용 신체검사비 | M167: =SUM(M168:M169) -> 2,100 | T167: =SUM(T168:T169) -> 2,100,000
K168: - 일반 채용 신체검사 : 40,000원 * 48명 | L168: = | M168: 1,920 | P168: 40,000 | Q168: 48 | T168: =P168*Q168 -> 1,920,000
K169: - 환경미화원 채용 신체검사 : 45,000원 * 4명 | L169: = | M169: 180 | P169: 45,000 | Q169: 4 | T169: =P169*Q169 -> 180,000
K170: ○ 야간근무자 급량비 : 9,000원 * 20명 * 10일 * 10월 | L170: = | M170: =T170/1000 -> 18,000 | P170: 9,000 | Q170: 20 | R170: 10 | S170: 10 | T170: =P170*Q170*R170*S170 -> 18,000,000
K171: ○ (법정)특수건강진단비용 | M171: =SUM(M172:M177) -> 12,145
K172: - 주차장 야간작업자 :45,000 *35명 | L172: = | M172: 1,575 | P172: 45,000 | Q172: 35 | R172: 1 | S172: 1 | T172: =P172*Q172*R172*S172 -> 1,575,000
K173: - 휴양림 시설관리자 : 140,000 *5명 | L173: = | M173: 700 | P173: 140,000 | Q173: 5 | R173: 1 | S173: 1 | T173: 700,000
K174: - 도시미화팀 야간작업 : 45,000 *2명 | L174: = | M174: 90 | P174: 45,000 | Q174: 2 | R174: 1 | S174: 1 | T174: 90,000
K175: - 도시미화팀 정비고 : 90,000 *3명 | L175: = | M175: 270 | P175: 90,000 | Q175: 3 | R175: 1 | S175: 1 | T175: 270,000
K176: - 체육시설팀 기술직 : 150,000 *10명 | L176: = | M176: 1,500 | P176: 150,000 | Q176: 10 | R176: 1 | S176: 1 | T176: 1,500,000
K177: - 환경자원사업소 근무자 : 178,000 *45명 | L177: = | M177: 8,010 | P177: 178,000 | Q177: 45 | R177: 1 | S177: 1 | T177: 8,010,000
K178: ○ 환경미화원 예방접종 | M178: =M179+M180+M181 -> 10,555 | T178: 19,305,000
K179: - 환경미화원 폐렴구균 예방접종 : 100,000 *5명 | L179: = | M179: 500 | P179: 100,000 | Q179: 55 | R179: 1 | S179: 1 | T179: 5,500,000
K180: - 독감 예방접종 35,000* 환경사원 273명 | L180: = | M180: 9,555 | P180: 35,000 | Q180: 273 | R180: 1 | S180: 1 | T180: 9,555,000
K181: - 파상풍 예방접종 :25,000*20명(환경미화직 신입직원 20명) | L181: = | M181: 500 | P181: 25,000 | Q181: 170 | R181: 1 | S181: 1 | T181: 4,250,000
K182: ○ (법정, 신규)특수건강진단비용 | M182: =M183 -> 210
K183: - 일반검진비용 30,000 *미가입자 7명(2024년 현황) | L183: = | M183: =30*7 -> 210 | P183: 25,000 | Q183: 170 | R183: 1 | S183: 1 | T183: 4,250,000
G184: 21 공공요금및제세 | H184: =M184 -> 59,403 | I184: 61,750 | J184: =H184-I184 -> △2,347 | K184: [공공요금및제세] | M184: =SUM(M185:M193) -> 59,403 | T184: =SUM(T185:T193) -> 59,403,000
K185: ○ 사무실 전기요금 및 상하수도료 : 1,000,000원 * 12월 | L185: = | M185: =T185/1000 -> 12,000 | P185: 1,000,000 | R185: 1 | S185: 12 | T185: =P185*R185*S185 -> 12,000,000
K186: ○ 택배 및 우편발송 요금 : 15,000원 * 10건 *12월 | L186: = | M186: 1,800 | P186: 15,000 | R186: 10 | S186: 12 | T186: =P186*R186*S186 -> 1,800,000
K187: ○ 일반전화 및 인터넷회선요금 등 : 1,045,000원 * 12월 | L187: = | M187: 12,540 | P187: 1,045,000 | R187: 1 | S187: 12 | T187: =P187*R187*S187 -> 12,540,000
K188: ○ 계약 수입인지세 부담금 : 20,000원 * 90건 | L188: = | M188: 1,800 | P188: 20,000 | R188: 90 | T188: =P188*R188 -> 1,800,000
K189: ○ 장애인고용부담금 : 1,207,000원 * 2명 * 12월 | L189: = | M189: 28,968 | P189: 1,207,000 | Q189: 2 | R189: 1 | S189: 12 | T189: =P189*Q189*R189*S189 -> 28,968,000
K190: ○ 법인균등할주민세 : 250,000원 * 1회 | L190: = | M190: 250 | P190: 250,000 | R190: 1 | T190: =P190*R190 -> 250,000
K191: ○ 각종 제증명발급/등기수수료 : 50,000원 * 12월 | L191: = | M191: 600 | P191: 50,000 | S191: 12 | T191: =P191*S191 -> 600,000
K192: ○ 회계관계직원 재정보증보험료 : 55,000원 * 23명 | L192: = | M192: 1,265 | P192: 55,000 | Q192: 23 | T192: =P192*Q192 -> 1,265,000
K193: ○ TV수신료 : 7,500원 * 2대 * 12월 | L193: = | M193: 180 | P193: 7,500 | R193: 2 | S193: 12 | T193: =P193*R193*S193 -> 180,000
G194: 22 차량.선박비 | H194: =M194 -> 4,880 | I194: 5,280 | J194: =H194-I194 -> △400 | K194: [차량유지비] | M194: =SUM(M195:M196) -> 4,880 | T194: =SUM(T195:T196) -> 4,880,000
K195: - 차량유지비(세차,소모품등) : 100,000원 * 2대 * 10월 | L195: = | M195: =T195/1000 -> 2,000 | P195: 100,000 | Q195: 2 | S195: 10 | T195: =P195*Q195*S195 -> 2,000,000
K196: - 차량유류비 : 120,000원 * 2대 * 12월 | L196: = | M196: =T196/1000 -> 2,880 | P196: 120,000 | Q196: 2 | S196: 12 | T196: =P196*Q196*S196 -> 2,880,000
F197: 202 여비 | H197: =H198+H201 -> 39,600 | I197: 43,200 | J197: =H197-I197 -> △3,600 | M197: =M198+M201 -> 39,600
G198: 01 국내여비 | H198: =M198 -> 24,600 | I198: 28,200 | J198: =H198-I198 -> △3,600 | K198: [국내여비](2022년 예산 편성과 산출 근거 동일, 2022년 계산 오류) | M198: =SUM(M199:M200) -> 24,600 | T198: =SUM(T199:T200) -> 24,600,000
K199: - 관내(경영본부) : 20,000원 * 10명 * 9일 * 10월 | L199: = | M199: =T199/1000 -> 18,000 | P199: 20,000 | Q199: 10 | R199: 9 | S199: 10 | T199: =P199*Q199*R199*S199 -> 18,000,000
K200: - 관외(벤치마킹 등) : 110,000원 * 10명 * 2일 * 3회 | L200: = | M200: =T200/1000 -> 6,600 | P200: 110,000 | Q200: 10 | R200: 2 | S200: 3 | T200: =P200*Q200*R200*S200 -> 6,600,000
... 332 more rows

Sheet 교통휴양시설부
A1: 다. 지출예산(세부사업) - 교통휴양시설부(공영주차장,돌산공원주차장,봉황산자연휴양림) | M1: 단위 : 천원
A2: 구 분 | B2: 사업 | E2: 편성목 | H2: 당년도예산액 (A) | I2: 전년도예산액 (B) | J2: 증 감 (A-B) | K2: 산 출 기 초
B3: 정책 | C3: 단위 | D3: 세부 | E3: 그룹 | F3: 목 | G3: 세목
A4: 총계(사업예산 + 자본예산) | H4: =H5+H280 -> 2,395,168 | I4: =I5+I280 -> 2,113,893 | J4: =H4-I4 -> 281,275
A5: 사업예산 | H5: =H6 -> 2,228,418 | I5: =I6 -> 1,986,393 | J5: 242,025
B6: 교통∙휴양 대행사업 | H6: =H7+H110+H146+H210 -> 2,228,418 | I6: =I7+I110+I146+I210 -> 1,986,393 | J6: 242,025
C7: 공영주차장 수탁 대행사업 | H7: =H8+H104 -> 1,577,711 | I7: =I8+I104 -> 1,456,881 | J7: 120,830
D8: 공영주차장 관리운영 | H8: =H9+H24+H100 -> 1,396,852 | I8: =I9+I24+I100 -> 1,271,881 | J8: 124,971
E9: 100 인건비 | H9: =H10 -> 374,709 | I9: =I10 -> 491,919 | J9: △117,210
F10: 101 인건비 | H10: =H11 -> 374,709 | I10: =I11 -> 491,919 | J10: =H10-I10 -> △117,210
G11: 04 기간제근로자보수 | H11: =M11 -> 374,709 | I11: 491,919 | J11: =H11-I11 -> △117,210 | K11: 04 기간제근로자 보수 | M11: =M12+M22+M17 -> 374,709
K12: ○ 기간제근로자(8시간) | M12: =M13+M14+M15+M16 -> 175,168
K13: - 기본급: 89,600원*5명*5일*52주 | L13: = | M13: 116,480 | N13: =89970*5*5*52 -> 116,961,000
K14: - 주휴수당: 89,600원*5명*52주 | L14: = | M14: 23,296 | N14: =89970*5*52 -> 23,392,200
K15: - 휴일근무수당: 89,600원*5명*46일*150% | L15: = | M15: 30,912 | N15: =89970*5*46*1.5 -> 31,039,650
K16: - 연차수당: 89,600원*5명*10일 | L16: = | M16: 4,480 | N16: =89970*5*10 -> 4,498,500
K17: ○ 단시간 기간제근로자(6시간) | M17: =M18+M19+M20+M21 -> 166,926
K18: - 기본급: 67,200원*6명*5일*52주 | L18: = | M18: 104,832 | N18: =67480*6*5*52 -> 105,268,800
K19: - 주휴수당: 67,200원*6명*52주 | L19: = | M19: 20,967 | N19: =67480*6*52 -> 21,053,760
K20: - 휴일근무수당: 89,600원*6명*46일*150% | L20: = | M20: 37,095 | N20: =89970*6*46*1.5 -> 37,247,580
K21: - 연차수당: 67,200원*6명*10일 | L21: = | M21: 4,032 | N21: =67480*6*10 -> 4,048,800
K22: ○ 초단시간 기간제근로자(주말) | M22: =M23 -> 32,615
K23: - 초단시간근로자(기본급): 78,400원*4명*2일*52주 | L23: = | M23: 32,615 | N23: =78720*4*2*52 -> 32,747,520
E24: 200 물건비 | H24: =H25+H89+H93+H95 -> 1,015,143 | I24: =I25+I89+I93+I95 -> 772,962 | J24: =H24-I24 -> 242,181
F25: 201 일반운영비 | H25: =H26+H38+H60+H75+H81+H87 -> 992,443 | I25: =I26+I38+I60+I75+I81+I87 -> 651,602 | J25: =H25-I25 -> 340,841 | M25: =M26+M38+M60+M75+M81+M87 -> 992,443
G26: 01 사무관리비 | H26: =M26 -> 184,250 | I26: 107,062 | J26: =H26-I26 -> 77,188 | K26: 01 사무관리비 | M26: =M27+M28+M29+M30+M31+M32+M33+M34+M35+M36+M37 -> 184,250
K27: ○ 공영주차장 홍보 현수막 제작: 90,000원*4회*35개소 | L27: = | M27: 12,600 | N27: =90000*4*35 -> 12,600,000
K28: ○ A4용지 구입: 30,000원*5박스*4개소*5회 | L28: = | M28: 3,000 | N28: =30000*5*4*5 -> 3,000,000
K29: ○ 토너 구입: 450,000원*7회 | L29: = | M29: 3,150 | N29: =450000*7 -> 3,150,000
K30: ○ 사무용품 구입: 300,000원*4개소*12월 | L30: = | M30: 14,400 | N30: =300000*4*12 -> 14,400,000
K31: ○ 영수증롤 구입: 5,000원*50롤*2회*35개소 | L31: = | M31: 17,500 | N31: =5000*50*2*35 -> 17,500,000
K32: ○ 화장실 위생용품 구입: 200,000원*12개소*12월 | L32: = | M32: 28,800 | N32: =200000*12*12 -> 28,800,000
K33: ○ 종량제봉투 구입: 1,800원*35개소*20일*12월 | L33: = | M33: 15,120 | N33: =1800*35*20*12 -> 15,120,000
K34: ○ 청소용품 구입: 200,000원*35개소*2회 | L34: = | M34: 14,000 | N34: =200000*35*2 -> 14,000,000
K35: ○ 생수 구입: 11,000원*5박스*4개소*12월 | L35: = | M35: 2,640 | N35: =11000*5*4*12 -> 2,640,000
K36: ○ (신규)전기차용 리튬 소화기 구입: 800,000*30개소*3식 | L36: = | M36: 72,000 | N36: =800000*30*3 -> 72,000,000
K37: ○ 범용S/W 구입: 130,000원*8식(알약, 한글, 오피스) | L37: = | M37: 1,040 | N37: =130000*8 -> 1,040,000
G38: 11 지급수수료 | H38: =M38 -> 315,689 | I38: 170,510 | J38: =H38-I38 -> 145,179 | K38: 11 지급수수료 | M38: =M39+M41+M46+M47+M50+M52+M54+M55+M56+M57+M58+M59 -> 315,689
K39: ○ 소방안전관리 업무대행용역 | M39: =M40 -> 38,880
K40: - 오동도, 서교동, 학동선소상가(1,3), 여문, 여문공원, 진남상가, 향일암, 수산시장(3) : 360,000원*9개소*12월 | L40: = | M40: 38,880 | N40: =360000*9*12 -> 38,880,000
K41: ○ 전기설비 유지관리용역 | M41: =M42+M43+M44+M45 -> 12,840
K42: - 오동도 주차타워: 500,000원*12월 | L42: = | M42: 6,000 | N42: =500000*12 -> 6,000,000
K43: - 여문공원 공영주차장: 190,000원*12월 | L43: = | M43: 2,280 | N43: =190000*12 -> 2,280,000
K44: - 학동선소상가(1) 공영주차장: 190,000원*12월 | L44: = | M44: 2,280 | N44: =190000*12 -> 2,280,000
K45: - 학동선소상가(3) 공영주차장: 190,000원*12월 | L45: = | M45: 2,280 | N45: =190000*12 -> 2,280,000
K46: ○ 여문공원 전기차 충전소 유지관리용역: 370,000원*12월 | L46: = | M46: 4,440 | N46: =370000*12 -> 4,440,000
K47: ○ 승강기 유지관리용역 | M47: =M48+M49 -> 39,000
K48: - 오동도 주차타워 : 900,000원*2대*12월 | L48: = | M48: 21,600 | N48: =900000*2*12 -> 21,600,000
K49: - 진남상가, 서교동, 학동선소상가(1,3), 수산시장(3) : 290,000원*5대*12월 | L49: = | M49: 17,400 | N49: =290000*5*12 -> 17,400,000
K50: ○ 신규수탁 주차장 용역 (소방,전기,승강기등) | M50: =M51 -> 12,000
K51: : 6,000,000원*2식(화장동,신기동) | L51: = | M51: 12,000 | N51: =6000000*2 -> 12,000,000
K52: ○ 공영주차장 어르신 사회활동 지원사업 활동비 | M52: =M53 -> 115,689
K53: - 90,100원*107명*12월 | L53: = | M53: 115,689 | N53: =90100*107*12 -> 115,688,400
K54: ○ 공영주차장 환경정비(풀베기 및 전정작업) 용역 :15,000,000원*1식 | L54: = | M54: 15,000
K55: ○ 주차요금 신용카드 수수료 : 6,000,000원*12월 | L55: = | M55: 72,000 | N55: =6000000*12 -> 72,000,000
K56: ○ 보안프로그램 사용료 : 90,000원*12월 | L56: = | M56: 1,080 | N56: =90000*12 -> 1,080,000
K57: ○ 시스템경비 사용료 : 60,000원*4개소*12월 | L57: = | M57: 2,880 | N57: =60000*4*12 -> 2,880,000
K58: ○ 노외주차장 지문인식기 사용료 : 90,000원*3개소*4회 | L58: = | M58: 1,080 | N58: =90000*3*4 -> 1,080,000
K59: ○ 노상주차장 지문인식기 사용료 : 200,000원*4회 | L59: = | M59: 800 | N59: =200000*4 -> 800,000
G60: 13 임차료 | H60: =M60 -> 52,204 | I60: 45,593 | J60: =H60-I60 -> 6,611 | K60: 13 임차료 | M60: =M61+M65+M69+M72+M73+M74 -> 52,204
K61: ○ 주차관리업무 차량 임차료 | M61: =M62+M63+M64 -> 36,000
K62: - 공영주차장 사무실 차량임차(전기차) : 1,000,000원*1대*12월 | L62: = | M62: 12,000 | N62: =1000000*1*12 -> 12,000,000
K63: - 서교동 주차관제센터 차량임차(전기차) : 1,000,000원*1대*12월 | L63: = | M63: 12,000 | N63: =1000000*1*12 -> 12,000,000
K64: - 학동 주차관제센터 차량임차(전기차) : 1,000,000원*1대*12월 | L64: = | M64: 12,000 | N64: =1000000*1*12 -> 12,000,000
K65: ○ 복합기 및 냉난방기 임차료 | M65: =M66+M67+M68 -> 6,520
K66: - 공영주차장 사무실 컬러복합기 : 700,000원*1대*4회 | L66: = | M66: 2,800 | N66: =700000*1*4 -> 2,800,000
K67: - 복합기(학동1, 서교동) : 30,000원*2대*12월 | L67: = | M67: 720 | N67: =30000*2*12 -> 720,000
K68: - 냉난방기(학동1(2대), 학동3, 여문공원, 중앙로) : 50,000원*5대*12월 | L68: = | M68: 3,000 | N68: =50000*5*12 -> 3,000,000
K69: ○ 정수기 및 비데 임차료 | M69: =M70+M71 -> 2,004
K70: - 정수기(학동1,여문,선원동, 흥국체육관,이순신광장,수산시장1,서교동,오동도) : 20,000원*8대*12월 | L70: = | M70: 1,920 | N70: =20000*8*12 -> 1,920,000
K71: - 비데(서교동) : 7,000원*1대*12월 | L71: = | M71: 84 | N71: =7000*12 -> 84,000
K72: ○ 승강기 공기살균기 임차료: 30,000원*7개*12월 | L72: = | M72: 2,520 | N72: =30000*7*12 -> 2,520,000
K73: ○ 공기청정기 임차료 : 30,000원*6개소*12월 | L73: = | M73: 2,160 | N73: =30000*6*12 -> 2,160,000
K74: ○ 신규수탁 주차장 임차료 (냉난방기,정수기,비데등) : 1,500,000원*2식(화장동,신기동) | L74: = | M74: 3,000 | N74: =1500000*2 -> 3,000,000
G75: 15 복리후생비 | H75: =M75 -> 39,500 | I75: 28,350 | J75: =H75-I75 -> 11,150 | K75: 15 복리후생비 | M75: =M76+M79+M80 -> 39,500
K76: ○ 피복구입비 | M76: =M77+M78 -> 33,000 | N76: =N77+N78 -> 33,000,000
K77: - 춘추복 : 150,000원*55명*2회 | L77: = | M77: 16,500 | N77: =150000*55*2 -> 16,500,000
K78: - 동복 : 300,000원*55명*1회 | L78: = | M78: 16,500 | N78: =300000*55 -> 16,500,000
K79: ○ 안전용품(자외선 차단용품 등) 구입비 : 20,000원*55명 | L79: = | M79: 1,100 | N79: =20000*55 -> 1,100,000
K80: ○ 야간급량비 : 9,000원 *5명*10일*12월 | L80: = | M80: 5,400 | N80: =9000*5*10*12 -> 5,400,000
G81: 21 공공요금및제세 | H81: =M81 -> 397,200 | I81: 294,792 | J81: =H81-I81 -> 102,408 | K81: 21 공공요금및제세 | M81: =M82+M83+M86+M85+M84 -> 397,200
K82: ○ 전기요금(보안등 포함) : 600,000원*35개소*12월 | L82: = | M82: 252,000 | N82: =600000*35*12 -> 252,000,000
K83: ○ 통신요금 : 300,000원*20개소*12월 | L83: = | M83: 72,000 | N83: =300000*20*12 -> 72,000,000
K84: ○ 무전기 통신요금 : 100,000원*12월 | L84: = | M84: 1,200 | N84: =100000*12 -> 1,200,000
K85: ○ 상하수도요금 : 200,000원*15개소*12월 | L85: = | M85: 36,000 | N85: =200000*15*12 -> 36,000,000
K86: ○ 신규수탁 주차장 공공요금 (전기,통신,상하수도등) : 1,000,000원*3식(화장동,신기동,웅천해변공원)*12월 | L86: = | M86: 36,000 | N86: =1000000*3*12 -> 36,000,000
G87: 22 차량·선박비 | H87: =M87 -> 3,600 | I87: 5,295 | J87: =H87-I87 -> △1,695 | K87: 22 차량·선박비 | M87: =M88 -> 3,600
K88: ○ 주차관리업무 차량(전기차) 충전요금 : 100,000원*3대*12월 | L88: = | M88: 3,600 | N88: =100000*3*12 -> 3,600,000
F89: 202 여비 | H89: =H90 -> 16,400 | I89: 15,060 | J89: =H89-I89 -> 1,340 | M89: =M90 -> 16,400
G90: 01 국내여비 | H90: =M90 -> 16,400 | I90: 15,060 | J90: =H90-I90 -> 1,340 | K90: 01 국내여비 | M90: =M91+M92 -> 16,400
K91: ○ 관내 출장여비 : 20,000원*5명*10회*12월 | L91: = | M91: 12,000 | N91: =20000*5*10*12 -> 12,000,000
K92: ○ 관외 출장여비(벤치마킹) : 110,000원*5명*2일*4회 | L92: = | M92: 4,400 | N92: =110000*5*2*4 -> 4,400,000
F93: 207 연구개발비 | H93: =H94 -> 0 | I93: =I94 -> 100,000 | J93: =H93-I93 -> △100,000
G94: 02 전산개발비 | H94: =M94 -> 0 | I94: 100,000 | J94: =H94-I94 -> △100,000
F95: 217 관서업무비 | H95: =SUM(H96) -> 6,300 | I95: =I96 -> 6,300 | J95: =H95-I95 -> 0 | M95: =SUM(M96) -> 6,300
G96: 02 부서업무비 | H96: =M96 -> 6,300 | I96: 6,300 | J96: =H96-I96 -> 0 | K96: 02 부서업무비 | M96: =M97 -> 6,300
K97: ○ 부서업무비(부서운영 업무 추진을 위한 제경비, 55인 기준) | M97: =M98+M99 -> 6,300
K98: - 부서운영업무추진비(30인이하): 400,000원*12월 | L98: = | M98: 4,800 | N98: =400000*12 -> 4,800,000
K99: - 부서운영업무추진비(30인이상): 5,000원*25명*12월 | L99: = | M99: 1,500 | N99: =5000*25*12 -> 1,500,000
E100: 300 경상이전 | H100: =H101 -> 7,000 | I100: =I101 -> 7,000 | J100: =H100-I100 -> 0 | M100: =M325+M664+M671+M674+M729 -> 0
F101: 305 배상금등 | H101: =H102 -> 7,000 | I101: 7,000 | J101: =H101-I101 -> 0 | M101: =SUM(M102) -> 7,000
G102: 01 배상금등 | H102: =M102 -> 7,000 | I102: 7,000 | J102: =H102-I102 -> 0 | K102: 01 배상금등 | M102: =SUM(M103) -> 7,000
K103: ○ 공영주차장 차량사고보상 : 200,000원*35개소*1건 | L103: = | M103: 7,000 | N103: =200000*35*1 -> 7,000,000
D104: 공영주차장 시설 유지보수 | H104: =H105 -> 180,859 | I104: 185,000 | J104: =H104-I104 -> △4,141
E105: 200 뮬건비 | H105: 180,859 | I105: 185,000 | J105: =H105-I105 -> △4,141 | M105: =M452+M605+M611+M614+M669 -> 0
F106: 214 수선유지교체비 | H106: 180,859 | I106: 185,000 | J106: =H106-I106 -> △4,141 | M106: =M107 -> 180,859
G107: 05 수선유지비 | H107: =M107 -> 180,859 | I107: 185,000 | J107: =H107-I107 -> △4,141 | K107: 05 수선유지비 | M107: =M108+M109 -> 180,859
K108: ○ 소규모시설 및 주차장 관제시스템 등 유지보수비 : 125,859,000원*1식 | L108: = | M108: 125,859
K109: ○ 관제시스템 내부 장비 교체 및 유지관리 등(연간 단가계약) : 55,000,000원*1식 | L109: = | M109: 55,000
C110: 돌산 공원주차장 수탁 대행사업 | H110: =H111+H141 -> 168,033 | I110: =I111+I141 -> 230,088 | J110: =H110-I110 -> △62,055
D111: 돌산 공원주차장 관리운영 | H111: =H112+H120+H137 -> 158,033 | I111: =I112+I120+I137 -> 220,888 | J111: =H111-I111 -> △62,855
E112: 100 인건비 | H112: =H113 -> 142,285 | I112: =I113 -> 204,758 | J112: =H112-I112 -> △62,473 | M112: =M329+M677+M684+M687+M742 -> 0
F113: 101 인건비 | H113: =H114 -> 142,285 | I113: =I114 -> 204,758 | J113: △62,473
G114: 04 기간제근로자보수 | H114: =M114 -> 142,285 | I114: 204,758 | J114: =H114-I114 -> △62,473 | K114: 04 기간제근로자 보수 | M114: =M115 -> 142,285
K115: ○ 기간제근로자(4명) | M115: =M116+M117+M118+M119 -> 142,285
K116: - 기본급: 89,600원*4명*5일*52주 | L116: = | M116: 93,184 | N116: =89600*4*5*52 -> 93,184,000
K117: - 주휴수당: 89,600원*4명*52주 | L117: = | M117: 18,637 | N117: =89600*4*52 -> 18,636,800
K118: - 휴일근무수당: 89,600원*4명*50일*150% | L118: = | M118: 26,880 | N118: =89600*4*50*1.5 -> 26,880,000
K119: - 연차수당: 89,600원*4명*10일 | L119: = | M119: 3,584 | N119: =89600*4*10 -> 3,584,000
E120: 200 물건비 | H120: =H121+H133 -> 14,748 | I120: =I121+I133 -> 14,130 | J120: =H120-I120 -> 618 | M120: =M337+M685+M692+M695+M750 -> 0
F121: 201 일반운영비 | H121: =H122+H124+H126+H130 -> 13,548 | I121: =I122+I124+I126+I130 -> 12,030 | J121: =H121-I121 -> 1,518 | M121: =SUM(M122,M124,M126,M130) -> 13,548
G122: 01 사무관리비 | H122: =M122 -> 2,388 | I122: 2,400 | J122: =H122-I122 -> △12 | K122: 01 사무관리비 | M122: =M123 -> 2,388
K123: ○ 사무용품 등 : 199,000원*12월 | L123: = | M123: 2,388 | N123: =199000*12 -> 2,388,000
G124: 11 지급수수료 | H124: =M124 -> 360 | I124: 330 | J124: =H124-I124 -> 30 | K124: 11 지급수수료 | M124: =M125 -> 360
K125: ○ 지문인식기 사용료 : 90,000원*4회 | L125: = | M125: 360 | N125: =90000*4 -> 360,000
G126: 15 복리후생비 | H126: =M126 -> 2,400 | I126: 2,700 | J126: =H126-I126 -> △300 | K126: 15 복리후생비 | M126: =M127 -> 2,400
K127: ○ 피복구입비 | M127: 2,400
K128: - 춘추복 : 150,000원*4명*2회 | L128: = | M128: 1,200 | N128: =150000*4*2 -> 1,200,000
K129: - 동복 : 300,000원*4명*1회 | L129: = | M129: 1,200 | N129: =300000*4 -> 1,200,000
G130: 21 공공요금및제세 | H130: =M130 -> 8,400 | I130: 6,600 | J130: =H130-I130 -> 1,800 | K130: 21 공공요금및제세 | M130: =M131+M132 -> 8,400
K131: ○ 전기요금 : 600,000원*12월 | L131: = | M131: 7,200 | N131: =600000*12 -> 7,200,000
K132: ○ 통신료 : 100,000원*12월 | L132: = | M132: 1,200 | N132: =100000*12 -> 1,200,000
F133: 217 관서업무비 | H133: =SUM(H134) -> 1,200 | I133: 2,100 | J133: =H133-I133 -> △900 | M133: =SUM(M134) -> 1,200
G134: 02 부서업무비 | H134: =M134 -> 1,200 | I134: 2,100 | J134: =H134-I134 -> △900 | K134: 02 부서업무비 | M134: =M135 -> 1,200
K135: ○ 부서업무비(부서운영 업무 추진을 위한 제경비, 4인 기준) | M135: =M136 -> 1,200
K136: - 부서운영 업무추진비 : 100,000원*12월 | L136: = | M136: 1,200 | N136: =100000*12 -> 1,200,000
E137: 300 경상이전 | H137: =H138 -> 1,000 | I137: =I138 -> 2,000 | J137: =H137-I137 -> △1,000 | M137: =M366+M705+M712+M715+M770 -> 0
F138: 305 배상금등 | H138: =H139 -> 1,000 | I138: 2,000 | J138: =H138-I138 -> △1,000 | M138: =SUM(M139) -> 1,000
G139: 01 배상금등 | H139: =M139 -> 1,000 | I139: 2,000 | J139: =H139-I139 -> △1,000 | K139: 01 배상금등 | M139: =SUM(M140) -> 1,000
K140: ○ 공영주차장 차량사고보상 : 1,000,000원*1개소 | L140: = | M140: 1,000
D141: 돌산 공원주차장 시설 유지보수 | H141: =H142 -> 10,000 | I141: 9,200 | J141: =H141-I141 -> 800
E142: 200 물건비 | H142: 10,000 | I142: 9,200 | J142: 800 | M142: =M362+M710+M717+M720+M775 -> 0
F143: 214 수선유지교체비 | H143: 10,000 | I143: 9,200 | J143: =H143-I143 -> 800 | M143: =M144 -> 10,000
G144: 05 수선유지비 | H144: =M144 -> 10,000 | I144: 9,200 | J144: =H144-I144 -> 800 | K144: 05 수선유지비 | M144: =M145 -> 10,000
K145: ○ 소규모시설 및 주차장 관제시스템 등 유지보수비 : 10,000,000원*1식 | L145: = | M145: 10,000
C146: 휴양림 수탁 대행사업 | H146: =H147+H204 -> 297,674 | I146: =I147+I204 -> 299,424 | J146: =H146-I146 -> △1,750
D147: 봉황산자연휴양림 운영 | H147: =H148+H158 -> 273,218 | I147: =I148+I158 -> 268,752 | J147: 4,466
E148: 100 인건비 | H148: =H149 -> 67,696 | I148: =I149 -> 64,392 | J148: 3,304 | M148: =M149+M574+M581+M584+M639 -> 67,696
F149: 101 인건비 | H149: =H150 -> 67,696 | I149: =I150 -> 64,392 | J149: =H149-I149 -> 3,304 | M149: =H149 -> 67,696
G150: 04 기간제근로자 보수 | H150: =M150 -> 67,696 | I150: 64,392 | J150: =H150-I150 -> 3,304 | K150: 04 기간제근로자 보수 | M150: =M151+M156 -> 67,696 | P150: 9,160 | Q150: 8 | R150: =P150*Q150 -> 73,280
K151: ○ 청소원 | M151: =M152+M153+M154+M155 -> 62,421
K152: - 인부임 : 87,920원*2명*5일*52주 | L152: = | M152: 45,718 | N152: =87920*2*5*52 -> 45,718,400 | O152: 85,860 | P152: 5 | Q152: 2 | R152: 52 | S152: =O152*P152*Q152*R152 -> 44,647,200
K153: - 주휴수당 : 87,920원*2명*52주 | L153: = | M153: 9,143 | N153: =87920*2*52 -> 9,143,680 | O153: 85,860 | P153: 2 | Q153: 52 | S153: =O153*P153*Q153 -> 8,929,440
K154: - 휴일근무수당 : 87,920원*2명*22일*150% | L154: = | M154: 5,802 | N154: =87920*2*22*1.5 -> 5,802,720 | O154: 85,860 | P154: 2 | Q154: 2 | R154: 12 | S154: =O154*P154*Q154*R154 -> 3,090,960 | U154: 76,960
K155: - 연차휴가수당 : 87,920원*2명*10일 | L155: = | M155: 1,758 | N155: =87920*2*10 -> 1,758,400 | O155: 85,860 | P155: 2 | Q155: 5 | S155: =O155*P155*Q155 -> 858,600
K156: ○ 성수기 대비 근로자 인부임 | M156: =M157 -> 5,275
K157: - 청소원 인부임 : 87,920원*2명*5일*8주 | L157: = | M157: 5,275 | N157: =87920*2*5*8 -> 7,033,600 | O157: 85,860 | P157: 2 | Q157: 5 | R157: 8 | S157: =O157*P157*Q157*R157 -> 6,868,800
E158: 200 물건비 | H158: =H159+H197+H201 -> 205,522 | I158: =I159+I197+I201 -> 204,360 | J158: =H158-I158 -> 1,162 | M158: =M159+M584+M591+M594+M649 -> 0
F159: 201 일반운영비 | H159: =H160+H168+H170+H178+H185+H190+H195 -> 199,952 | I159: =I160+I178+I185+I190+I195+I170+I168 -> 198,790 | J159: =H159-I159 -> 1,162 | P159: 9,640 | Q159: 8,720 | R159: =P159-Q159 -> 920 | S159: 8 | T159: =R159*S159 -> 7,360
G160: 01 사무관리비 | H160: =M160 -> 27,762 | I160: 38,145 | J160: =H160-I160 -> △10,383 | K160: 01 사무관리비 | M160: =SUM(M161:M167) -> 27,762 | P160: 0 | Q160: 9,160
K161: ○ 홍보물 제작 : 2,000원*3,000매 | L161: = | M161: 6,000 | N161: =2000*3000 -> 6,000,000 | P161: =P159+P162 -> 10,122 | Q161: 0 | W161: 2000 | X161: 3000 | AA161: =W161*X161 -> 6,000,000
K162: ○ 종량제봉투 구입 : 1,800원*2,200매 | L162: = | M162: 3,960 | N162: =1800*2200 -> 3,960,000 | P162: =P159*P160 -> 482 | Q162: =Q159*Q161 -> 445 | W162: 4000 | X162: 100 | AA162: =W162*X162 -> 400,000
K163: ○ 객실 침구류 구입 : 100,000원*1회*30인 | L163: = | M163: 3,000 | N163: =100000*1*30 -> 3,000,000 | P163: 10,120 | Q163: 9,160 | R163: =P163-Q163 -> 960 | S163: 8 | T163: =R163*S163 -> 7,680 | W163: 1200 | X163: 1500 | AA163: =W163*X163 -> 1,800,000
K164: ○ (신규) 소규모 전자제품 구입 : 775,000원*2회 | L164: = | M164: 1,550 | N164: =500000*4 -> 2,000,000 | W164: 120000 | X164: 1 | Y164: 112 | AA164: =W164*Y164*X164 -> 13,440,000
K165: ○ 사무용품 구입 : 200,000원*6개월 | L165: = | M165: 1,200 | N165: =200000*6 -> 1,200,000 | P165: 10,000 | Q165: 4 | R165: 25 | S165: 10 | T165: =P165*Q165*R165*S165 -> 10,000,000 | W165: 31800 | X165: 5 | Y165: 12 | Z165: 4 | AA165: =W165*X165*Y165*Z165 -> 7,632,000
K166: ○ 보안프로그램 임대(알약) : 26,000원*2대 | L166: = | M166: 52 | N166: =26000*2 -> 52,000 | P166: 슈퍼테크 | Q166: 28,000 | R166: 1개 | S166: 12 | T166: 4 | U166: =Q166*S166*T166 -> 1,344,000 | W166: 250000 | X166: 6 | AA166: =W166*X166 -> 1,500,000
K167: ○ 시설관리용품(세탁실, 청소, 객실비품, 위생용품등) 구입 : 3,000,000원*4회 | L167: = | M167: 12,000 | N167: =3000000*4 -> 12,000,000 | P167: 홈스타 | Q167: 75,000 | R167: 1박스 | S167: 12 | T167: 4 | U167: =Q167*S167*T167 -> 3,600,000 | W167: 200000 | X167: 20 | AA167: =W167*X167 -> 4,000,000
G168: 02 공공운영비 | H168: =M168 -> 500 | I168: 500 | J168: =H168-I168 -> 0 | K168: 02 공공운영비 | M168: =SUM(M169:M169) -> 500
K169: ○ 구급약품 구입 : 250,000원*2회 | L169: = | M169: 500 | N169: =250000*2 -> 500,000
G170: 11 지급수수료 | H170: =M170 -> 28,290 | I170: 26,730 | J170: =H170-I170 -> 1,560 | K170: 11 지급수수료 | M170: =M171+M172+M173+M174+M175+M176+M177 -> 28,290 | P170: 비누 | Q170: 10,000 | R170: 1곽 | S170: 12 | T170: 4 | U170: =Q170*S170*T170 -> 480,000
K171: ○ 신용카드 결제수수료 : 600,000원*12월 | L171: = | M171: 7,200 | N171: =600000*12 -> 7,200,000
K172: ○ 방역(방제), 물탱크 청소 용역 : 450,000원*12월 | L172: = | M172: 5,400 | N172: =450000*12 -> 5,400,000 | U172: =U166+U167+#REF!+#REF!+U170 -> 
K173: ○ 전기설비 안전관리 대행수수료 : 350,000원*12월 | L173: = | M173: 4,200 | N173: =350000*12 -> 4,200,000
K174: ○ 소방시설 안전관리 대행수수료 : 330,000원*12월 | L174: = | M174: 3,960 | N174: =330000*12 -> 3,960,000
K175: ○ 오수처리시설 위탁관리 대행수수료 : 600,000원*12월 | L175: = | M175: 7,200 | N175: =600000*12 -> 7,200,000
L176: = | N176: =9000000*2 -> 18,000,000
K177: ○ 지문인식기(근태관리) 임차료 : 27,500원*12월 | L177: = | M177: 330 | N177: =27500*12 -> 330,000 | Q177: 명수 | R177: 일수 | S177: 회수
G178: 13 임차료 | H178: =M178 -> 14,580 | I178: 13,320 | J178: =H178-I178 -> 1,260 | K178: 13 임차료 | M178: =SUM(M179:M184) -> 14,580 | O178: 특별 | P178: 190,000 | Q178: 5 | R178: 5 | S178: 4 | U178: =P178*Q178*R178*S178 -> 19,000,000
K179: ○ 시설관리업무 차량 임차(전기차) : 460,000원*12월*1대 | L179: = | M179: 5,520 | N179: =460000*12 -> 5,520,000 | O179: 보통 | P179: 150,000 | Q179: 3 | R179: 5 | S179: 4 | U179: =P179*Q179*R179*S179 -> 9,000,000
K180: ○ 시설관리업무 차량 임차(전기차) : 470,000원*12월*1대 | L180: = | M180: 5,640 | N180: =470000*12 -> 5,640,000 | O180: 보통 | P180: 150,000 | Q180: 3 | R180: 5 | S180: 4 | U180: =P180*Q180*R180*S180 -> 9,000,000
K181: ○ 사무실 복합기 대여료 : 180,000원*12월 | L181: = | M181: 2,160 | N181: =180000*12 -> 2,160,000
K182: ○ (신규)정수기(휴양관) 월 임차료 : 35,000원*12월 | L182: = | M182: 420 | N182: =35000*12 -> 420,000
K183: ○ (신규)정수기(세탁실) 월 임차료 : 35,000원*12월 | L183: = | M183: 420 | N183: =35000*12 -> 420,000 | O183: 김메기 | P183: 81,000 | Q183: 1 | R183: 5 | S183: 4 | U183: =P183*Q183*R183*S183 -> 1,620,000
K184: ○ 정수기(관리사무실) 월 임차료 : 35,000원*12월 | L184: = | M184: 420 | N184: =35000*12 -> 420,000
G185: 15 복리후생비 | H185: =M185 -> 5,040 | I185: 2,960 | J185: =H185-I185 -> 2,080 | K185: 15 복리후생비 | M185: =M186+M187 -> 5,040
K186: ○ 급량비 : 9,000원*10일*12월 | L186: = | M186: 1,080 | N186: =9000*10*12 -> 1,080,000
K187: ○ 피복구입비 | M187: 3,960
K188: - 춘추복 : 130,000원*12명*2회 | L188: = | M188: 1,560 | N188: =150000*12*2 -> 3,600,000
K189: - 동복 : 200,000원*12명*1회 | L189: = | M189: 2,400 | N189: =300000*12 -> 3,600,000
G190: 21 공공요금 및 제세 | H190: =M190 -> 122,100 | I190: 115,536 | J190: =H190-I190 -> 6,564 | K190: 21 공공요금및제세 | M190: =SUM(M191:M194) -> 122,100 | S190: =7200+4800+4200+3600+6600+330 -> 26,730
K191: ○ 상수도 요금 : 1,000,000원*12월 | L191: = | M191: 12,000 | N191: =1200000*12 -> 14,400,000
K192: ○ 전기요금 : 8,500,000원*12월 | L192: = | M192: 102,000 | N192: =9000000*12 -> 108,000,000
K193: ○ 통신요금 : 600,000원*12월 | L193: = | M193: 7,200 | N193: =600000*12 -> 7,200,000
K194: ○ TV수신료 : 75,000원(30대)*12월 | L194: = | M194: 900 | N194: =75000*12 -> 900,000
G195: 22 차량·선박비 | H195: =M195 -> 1,680 | I195: 1,599 | J195: =H195-I195 -> 81 | K195: 22 차량·선박비 | M195: =SUM(M196:M196) -> 1,680
K196: ○ 주차관리업무 차량(전기차) 충전요금 : 140,000원(2대)*12월 | L196: = | M196: 1,680 | N196: =140000*12 -> 1,680,000 | O196: =120000*9 -> 1,080,000
F197: 202 여비 | H197: =H198 -> 2,570 | I197: =I198 -> 2,570 | J197: =H197-I197 -> 0
G198: 01 국내여비 | H198: =M198 -> 2,570 | I198: 2,570 | J198: =H198-I198 -> 0 | K198: 01 국내여비 | M198: =SUM(M199:M200) -> 2,570
K199: ○ 업무추진 관내여비 : 20,000원*1명*10회*12월 | L199: = | M199: 2,400 | N199: =20000*10*12 -> 2,400,000 | O199: 20,000 | P199: 10 | Q199: 12 | R199: =O199*P199*Q199 -> 2,400,000
K200: ○ 국내여비(관외) : 85,000원*2명*1회 | L200: = | M200: 170 | N200: =85000*2 -> 170,000 | O200: 85,000 | P200: 3 | Q200: 1 | R200: =O200*P200*Q200 -> 255,000
... 102 more rows

Sheet 도시미화부
A1: 다. 지출예산(세부사업) - 도시미화부 생활폐기물 | M1: 단위 : 천원
A2: 구분 | B2: 사업 | E2: 편성목 | H2: 당년도예산액 (A) | I2: 전년도예산액 (B) | J2: 증 감 (A-B) | K2: 산 출 기 초
B3: 정책 | C3: 단위 | D3: 세부 | E3: 그룹 | F3: 목 | G3: 세목
A4: 총계(사업예산 + 자본예산) | H4: =H5+H238 -> 22,347,560 | I4: =I5+I238 -> 22,595,094 | J4: =H4-I4 -> △247,534
A5: 사업예산 | H5: =H6 -> 21,640,560 | I5: =I6 -> 21,929,981 | J5: =H5-I5 -> △289,421
B6: 환경대행사업 | H6: =H7+H187 -> 21,640,560 | I6: =I7+I187 -> 21,929,981 | J6: △289,421
C7: 생활폐기물 수집운반∙가로청소 수탁 대행사업 | H7: =H8+H147+H178 -> 21,539,757 | I7: 21,828,236 | J7: △288,479
D8: 생활폐기물 수집운반 및 가로청소 운영관리 | H8: =H9+H66 -> 20,452,402 | I8: 20,789,419 | J8: △337,017
E9: 100 인건비 | H9: =H10 -> 18,499,480 | I9: 18,866,047 | J9: △366,567 | O9: 총 인상률 | P9: 3.90%
F10: 101 인건비 | H10: =H11+H62 -> 18,499,480 | I10: 18,866,047 | J10: =H10-I10 -> △366,567 | O10: 호봉인상률 | P10: 총인건비 인상률
G11: 03 무기계약근로자보수 | H11: =M11 -> 18,427,286 | I11: 18,793,855 | J11: =H11-I11 -> △366,569 | K11: 03 무기계약근로자보수 | M11: =M12+M35 -> 18,427,286 | O11: 1.40% | P11: 2.50%
K12: [반장] | M12: =M13+M16+M17+M18+M21+M25+M26+M27+M31+M32 -> 196,535 | N12: ↓↓ 산출식 ↓↓
K13: ○ 기본급 | M13: =SUM(M14:M15) -> 102,372 | N13: 2023년기준 단가 | O13: 인상률 적용 단가 ↓↓
K14: - 별정 7급(31호봉) : 4,382,400원×1명×12월 | L14: = | M14: =R14 -> 52,589 | N14: 4,217,900 | O14: =ROUNDUP(N14*(100%+$P$9),-1) -> 4,382,400 | P14: 1 | Q14: 12 | R14: =ROUNDUP(O14*P14*Q14/1000,0) -> 52,589
K15: - 별정 7급(25호봉) : 4,148,520원×1명×12월 | L15: = | M15: =R15 -> 49,783 | N15: 3,992,800 | O15: =ROUNDUP(N15*(100%+$P$9),-1) -> 4,148,520 | P15: 1 | Q15: 12 | R15: =ROUNDUP(O15*P15*Q15/1000,0) -> 49,783
K16: ○ 장려수당 : 70,000원×2명×12월 | L16: = | M16: =R16 -> 1,680 | O16: 70,000 | P16: 2 | Q16: 12 | R16: 1,680
K17: ○ 정액급식비 : 180,000원×2명×12월 | L17: = | M17: =R17 -> 4,320 | O17: 180,000 | P17: 2 | Q17: 12 | R17: 4,320
K18: ○ 상여금 : 정근수당 | M18: =SUM(M19:M20) -> 9,032
K19: - 별정 7급(31호봉) : 4,632,400원×100%×1명 (50%씩 1, 7월 지급) | L19: = | M19: =R19 -> 4,633 | O19: =O14+O16+O17 -> 4,632,400 | P19: 100% | Q19: 1 | R19: 4,633
K20: - 별정 7급(25호봉) : 4,398,520원×100%×1명 (50%씩 1, 7월 지급) | L20: = | M20: =R20 -> 4,399 | O20: =O15+O16+O17 -> 4,398,520 | P20: 100% | Q20: 1 | R20: 4,399
K21: ○ 가족수당 | M21: =SUM(M22:M24) -> 2,040
K22: - 배우자 : 40,000원×2명×12월 | L22: = | M22: =R22 -> 960 | O22: 40,000 | P22: 2 | Q22: 12 | R22: 960
K23: - 직계존속 : 20,000원×1명×12월 | L23: = | M23: =R23 -> 240 | O23: 20,000 | P23: 1 | Q23: 12 | R23: 240
K24: - 둘째 : 70,000원×1명×12월 | L24: = | M24: =R24 -> 840 | O24: 70,000 | P24: 1 | Q24: 12 | R24: 840
K25: ○ 정근수당 가산금 : 25년 이상 130,000원×2명×12월 | L25: = | M25: =R25 -> 3,120 | O25: 130,000 | P25: 2 | Q25: 12 | R25: 3,120
K26: ○ 직급보조비 : 별정 7급 180,000원×2명×12월 | L26: = | M26: =R26 -> 4,320 | O26: 180,000 | P26: 2 | Q26: 12 | R26: 4,320
K27: ○ 초과근무수당 | M27: =M28+M29+M30 -> 52,097
K28: - 시간외근무수당 : 25,400원×150%×4시간×2명×12월 | L28: = | M28: =T28 -> 3,658 | O28: 25,400 | P28: 150% | Q28: 4 | R28: 2 | S28: 12 | T28: =ROUNDUP(O28*P28*Q28*R28*S28/1000,0) -> 3,658
K29: - 휴일근무수당 : 25,400원×150%×8시간×2명×67일 | L29: = | M29: =T29 -> 40,844 | O29: 25,400 | P29: 150% | Q29: 8 | R29: 2 | S29: 67 | T29: =ROUNDUP(O29*P29*Q29*R29*S29/1000,0) -> 40,844
K30: - 야간근무수당 : 25,400원×50%×1시간×2명×299일 | L30: = | M30: 7,595 | O30: 25,400 | P30: 50% | Q30: 1 | R30: 2 | S30: 299 | T30: 7,595
K31: ○ 미사용 연차수당 : 203,200원×2명×18일 | L31: = | M31: =R31 -> 7,316 | O31: =O30*8 -> 203,200 | P31: 2 | Q31: 18 | R31: =ROUNDUP(O31*P31*Q31/1000,0) -> 7,316
K32: ○ 명절휴가비 | M32: =SUM(M33:M34) -> 10,238
K33: - 별정 7급(31호봉) : 4,382,400원×120%×1명 (60%씩 설, 추석 지급) | L33: = | M33: =R33 -> 5,259 | O33: =O14 -> 4,382,400 | P33: 120% | Q33: 1 | R33: 5,259
K34: - 별정 7급(25호봉) : 4,148,520원×120%×1명 (60%씩 설, 추석 지급) | L34: = | M34: =R34 -> 4,979 | O34: =O15 -> 4,148,520 | P34: 120% | Q34: 1 | R34: 4,979
K35: [환경사원] 13호봉 기준(평균) | M35: =M36+M37+M38+M39+M40+M44+M50+M53+M57+M58+M59+M60+M61 -> 18,230,751 | N35: 2023년기준 단가 | O35: 인상률 적용 단가 ↓↓
K36: ○ 기본급 : 13호봉(평균) 2,110,030원×271명×12월 | L36: = | M36: =R36 -> 6,861,818 | N36: 2,030,820 | O36: =ROUNDUP(N36*(100%+$P$9),-1) -> 2,110,030 | P36: 271 | Q36: 12 | R36: =ROUNDUP(O36*P36*Q36/1000,0) -> 6,861,818
K37: ○ 특수업무수당 : 90,000원×271명×12월 | L37: = | M37: =R37 -> 292,680 | O37: 90,000 | P37: 271 | Q37: 12 | R37: 292,680
K38: ○ 작업장려수당 : 70,000원×271명×12월 | L38: = | M38: =R38 -> 227,640 | O38: 70,000 | P38: 271 | Q38: 12 | R38: 227,640
K39: ○ 정액급식비 : 180,000원×271명×12월 | L39: = | M39: =R39 -> 585,360 | O39: 180,000 | P39: 271 | Q39: 12 | R39: 585,360
K40: ○ 상여금 | M40: =SUM(M41:M43) -> 3,651,772
K41: - 기말수당 : 2,450,030원×200%×271명 | L41: = | M41: =R41 -> 1,327,917 | O41: =SUM($O$36:$O$39) -> 2,450,030 | P41: 200% | Q41: 271 | R41: =ROUNDUP(O41*P41*Q41/1000,0) -> 1,327,917
K42: - 체력단련비 : 2,450,030원×250%×271명 | L42: = | M42: =R42 -> 1,659,896 | O42: =SUM($O$36:$O$39) -> 2,450,030 | P42: 250% | Q42: 271 | R42: 1,659,896
K43: - 정근수당 : 2,450,030원×100%×271명 | L43: = | M43: 663,959 | O43: 2,450,030 | P43: 100% | Q43: 271 | R43: 663,959
K44: ○ 가족수당 | M44: =SUM(M45:M49) -> 272,880
K45: - 배우자 : 40,000원×193명×12월 | L45: = | M45: =R45 -> 92,640 | O45: 40,000 | P45: 193 | Q45: 12 | R45: =ROUNDUP(O45*P45*Q45/1000,0) -> 92,640
K46: - 직계존비속 : 20,000원×100명×12월 | L46: = | M46: =R46 -> 24,000 | O46: 20,000 | P46: 100 | Q46: 12 | R46: 24,000
K47: - 첫째 : 30,000원×99명×12월 | L47: = | M47: 35,640 | O47: 30,000 | P47: 99 | Q47: 12 | R47: 35,640
K48: - 둘째 : 70,000원×87명×12월 | L48: = | M48: 73,080 | O48: 70,000 | P48: 87 | Q48: 12 | R48: 73,080
K49: - 셋째 이상 : 110,000원×36명×12월 | L49: = | M49: 47,520 | O49: 110,000 | P49: 36 | Q49: 12 | R49: 47,520
K50: ○ 정근수당가산금 | M50: =SUM(M51:M52) -> 120,288
K51: - 5년 이상 10년 미만 : 40,000원×91명×12월 | L51: = | M51: =R51 -> 43,680 | O51: 40,000 | P51: 91 | Q51: 12 | R51: =ROUNDUP(O51*P51*Q51/1000,0) -> 43,680 | S51: 48명 미해당
K52: - 10년 이상 15년 미만 : 48,000원×133명×12월 | L52: = | M52: 76,608 | O52: 48,000 | P52: 133 | Q52: 12 | R52: 76,608
K53: ○ 초과근무수당 | M53: =SUM(M54:M56) -> 4,663,575
K54: - 시간외근무수당 : 17,800원×150%×4시간×50명×12월 | L54: = | M54: =T54 -> 64,080 | O54: 17,800 | P54: 150% | Q54: 4 | R54: 50 | S54: 12 | T54: =ROUNDUP(O54*P54*Q54*R54*S54/1000,0) -> 64,080
K55: - 휴일근무수당 : 17,800원×150%×8시간×271명×67일 | L55: = | M55: =T55 -> 3,878,336 | O55: 17,800 | P55: 150% | Q55: 8 | R55: 271 | S55: 67 | T55: 3,878,336
K56: - 야간근무수당 : 17,800원×50%×1시간×271명×299일 | L56: = | M56: 721,159 | O56: 17,800 | P56: 50% | Q56: 1 | R56: 271 | S56: 299 | T56: 721,159
K57: ○ 미사용 연차수당 : 142,400원×271명×18일 | L57: = | M57: =R57 -> 694,628 | O57: =O56*8 -> 142,400 | P57: 271 | Q57: 18 | R57: =ROUNDUP(O57*P57*Q57/1000,0) -> 694,628
K58: ○ 명절휴가비 : 2,450,030원×271명×120% (60%씩 설, 추석 지급) | L58: = | M58: =R58 -> 796,750 | O58: =SUM($O$36:$O$39) -> 2,450,030 | P58: 271 | Q58: 120% | R58: 796,750
K59: ○ 탑승수당 : 월 16일 이상 차량탑승자 10,000원×210명×12월 | L59: = | M59: =R59 -> 25,200 | O59: 10,000 | P59: 210 | Q59: 12 | R59: 25,200
K60: ○ 조장수당 : 차량반, 가로청소반 조장 100,000원×11명×12월 | L60: = | M60: =R60 -> 13,200 | O60: 100,000 | P60: 11 | Q60: 12 | R60: 13,200
K61: ○ 운전수당 : 청소차 운전원 40,000원×52명×12월 | L61: = | M61: =R61 -> 24,960 | O61: 40,000 | P61: 52 | Q61: 12 | R61: 24,960
G62: 04 기간제근로자등보수 | H62: =M62 -> 72,194 | I62: 72,192 | J62: =H62-I62 -> 2 | K62: 04 기간제근로자등보수 | M62: =M63 -> 72,194
K63: [당직전담원] | M63: =M64+M65 -> 72,194
K64: ○ 일당 : 174,380원×2명×16일×12월 | L64: = | M64: =S64 -> 66,962 | O64: 174,380 | P64: 2 | Q64: 16 | R64: 12 | S64: =ROUNDUP(O64*P64*Q64*R64/1000,0) -> 66,962
K65: ○ 미사용 연차수당 : 174,380원×2명×15일 | L65: = | M65: =R65 -> 5,232 | O65: 174,380 | P65: 2 | Q65: 15 | R65: =ROUNDUP(O65*P65*Q65/1000,0) -> 5,232
E66: 200 물건비 | H66: =H67+H134+H143 -> 1,952,922 | I66: 1,923,372 | J66: =H66-I66 -> 29,550
F67: 201 일반운영비 | H67: =H68+H99+H107+H117+H126+H96+H94 -> 1,905,562 | I67: 1,875,532 | J67: =H67-I67 -> 30,030
G68: 01 사무관리비 | H68: =M68 -> 49,295 | I68: 50,980 | J68: =H68-I68 -> △1,685 | M68: =M69+M80+M88+M89+M90+M91+M93+M87+M92 -> 49,295
K69: ○ 청소용품 구입비 | M69: =SUM(M70:M79) -> 27,210
K70: - 대비 : 4,000원×200개×6회 | L70: = | M70: =R70 -> 4,800 | O70: 4,000 | P70: 200 | Q70: 6 | R70: =ROUNDUP(O70*P70*Q70/1000,0) -> 4,800
K71: - 야자빗자루 : 6,500원×80개×6회 | L71: = | M71: 3,120 | O71: 6,500 | P71: 80 | Q71: 6 | R71: 3,120
K72: - 쓰레받이 : 8,000원×70개×6회 | L72: = | M72: 3,360 | O72: 8,000 | P72: 70 | Q72: 6 | R72: 3,360
K73: - 마대(대): 600원×1000장x3회 | L73: = | M73: 1,800 | O73: 600 | P73: 1,000 | Q73: 3 | R73: 1,800
K74: - 삽 : 6,000원×100명×2회 | L74: = | M74: 1,200 | O74: 6,000 | P74: 100 | Q74: 2 | R74: 1,200
K75: - 음식물 수거용기(60ℓ) : 33,000원×10개×1회 | L75: = | M75: 330 | O75: 33,000 | P75: 10 | Q75: 1 | R75: 330
K76: - 음식물 수거용기(120ℓ) : 50,000원×50개×2회 | L76: = | M76: 5,000 | O76: 50,000 | P76: 50 | Q76: 2 | R76: 5,000
K77: - 음식물 수거용기 바퀴교체 : 10,000원×50개×2개×2회 | L77: = | M77: =S77 -> 2,000 | O77: 10,000 | P77: 50 | Q77: 2 | R77: 2 | S77: =ROUNDUP(O77*P77*Q77*R77/1000,0) -> 2,000
K78: - 청소차비산방지덮개(진개덤프) : 50,000원×16대×1회 | L78: = | M78: =R78 -> 800 | O78: 50,000 | P78: 16 | Q78: 1 | R78: 800
K79: - 기타소모품비(비품, 차류 등) :400,000원×1회×12월 | L79: = | M79: =R79 -> 4,800 | O79: 400,000 | P79: 1 | Q79: 12 | R79: 4,800
K80: ○ 사무용품 등 구입비 | M80: =SUM(M81:M86) -> 12,900
K81: - 복사용지 구입(A4) : 23,000원×10박스×10회 | L81: = | M81: =R81 -> 2,300 | O81: 23,000 | P81: 10 | Q81: 10 | R81: =ROUNDUP(O81*P81*Q81/1000,0) -> 2,300
K82: - 복사용지 구입(A3) : 25,000원×4박스×2회 | L82: = | M82: =R82 -> 200 | O82: 25,000 | P82: 4 | Q82: 2 | R82: 200
K83: - 사무용품 구입비 : 300,000원×12회 | L83: = | M83: 3,600 | O83: 300,000 | P83: 12 | Q83: 1 | R83: 3,600
K84: - PC 유지보수 및 소모품 구입 : 80,000원×5대×1회 | L84: = | M84: 400 | O84: 80,000 | P84: 5 | Q84: 1 | R84: 400
K85: - 각종 서식 인쇄 및 제작(차량운행일지 등) : 700,000원×4회 | L85: = | M85: 2,800 | O85: 700,000 | P85: 4 | Q85: 1 | R85: 2,800
K86: - 복지관위생용품(화장지,방향제) 구입 : 300,000원×12회 | L86: = | M86: 3,600 | O86: 300,000 | P86: 12 | Q86: 1 | R86: 3,600
K87: ○ 현수막 제작비 : 80,000원×4회 | L87: = | M87: 320 | O87: 80,000 | P87: 4 | Q87: 1 | R87: 320
K88: ○ 공공기관 유류 공동구매 등 나라장터 이용 수수료 : 300,000원x2회 | L88: = | M88: 600 | O88: 300,000 | P88: 2 | Q88: 1 | R88: 600
K89: ○ 시민 홍보물품 제작 구입비 : 15,000원×100개×1회 | L89: = | M89: 1,500 | O89: 15,000 | P89: 100 | Q89: 1 | R89: 1,500
K90: ○ 환경사원 휴게실 생수 구입 및 정수기 소독비 : 30,000원×5대×4회 | L90: = | M90: 600 | O90: 30,000 | P90: 5 | Q90: 4 | R90: 600
K91: ○ 불법배출 수거거부 스티커제작구입비 : 150원×8,000매×4회 | L91: = | M91: 4,800 | O91: 150 | P91: 8,000 | Q91: 4 | R91: 4,800
K92: ○ 휴게실 모포 세탁비 : 8,000원x40개×3회 | L92: = | M92: 960 | O92: 8,000 | P92: 40 | Q92: 3 | R92: 960
K93: ○ 범용 S/W 구입비 : 알약 27,000원×15대 | L93: = | M93: 405 | O93: 27,000 | P93: 15 | Q93: 1 | R93: 405
G94: 02 공공운영비 | H94: =M94 -> 400 | I94: 0 | J94: =H94-I94 -> 400 | M94: =M95+M96 -> 400
K95: ○ (신규) 청소차량 및 사무실 구급약품 구입 | L95: = | M95: =R95 -> 400 | O95: 400,000 | P95: 1 | Q95: 1 | R95: 400
G96: 03 행사운영비 | H96: =M96 -> 0 | I96: 1,900 | J96: =H96-I96 -> △1,900 | M96: =M97+M98 -> 0
K97: ○ (삭제) 각종 행사 현수막 제작비 : 70,000원×10회 | L97: = | M97: =R97 -> 0 | O97: 0 | P97: 0 | Q97: 0 | R97: 0
K98: ○ (삭제) 퇴임식관련 행사물품 구입 : 600,000원×2회 | L98: = | M98: =R98 -> 0 | O98: 0 | P98: 0 | Q98: 0 | R98: =ROUNDUP(O98*P98*Q98/1000,0) -> 0
G99: 11 지급수수료 | H99: =M99 -> 100,778 | I99: 16,458 | J99: =H99-I99 -> 84,320 | M99: =M100+M105 -> 100,778
K100: ○ 지급수수료 | M100: =SUM(M101:M104) -> 15,778
K101: - 청소차량 정기검사 : 70,000원×60대×1회 | L101: = | M101: =R101 -> 4,200 | O101: 70,000 | P101: 60 | Q101: 1 | R101: =ROUNDUP(O101*P101*Q101/1000,0) -> 4,200
K102: - CNG청소차량 내압용기 검사 : 400,000원×20대×1회 | L102: = | M102: =R102 -> 8,000 | O102: 400,000 | P102: 20 | Q102: 1 | R102: 8,000
K103: - 환경사원인사급여프로그램 유지 보수 : 177,150원×12월 | L103: = | M103: 2,126 | O103: 177,150 | P103: 12 | Q103: 1 | R103: 2,126
K104: - 환경사원복지관, 정비동 무인경비용역비 : 121,000원×12월 | L104: = | M104: 1,452 | O104: 121,000 | P104: 12 | Q104: 1 | R104: 1,452
K105: ○ (신규) 로드킬 동물사체 수거 처리 용역비 | M105: =S106 -> 85,000
K106: - 1,200건[1,000건(수거)+200(미수거)] / 동물사체 수거(건당 75,000원, 미수거(건당 50,000원) | L106: = | M106: =S106 -> 85,000 | O106: 75,000 | P106: 1,000 | Q106: 50,000 | R106: 200 | S106: =ROUNDUP(((O106*P106)+(Q106*R106))/1000,0) -> 85,000
G107: 13 임차료 | H107: =M107 -> 74,091 | I107: 74,477 | J107: =H107-I107 -> △386 | M107: =M108+M115+M116 -> 74,091
K108: ○ 임대료 | M108: =SUM(M109:M114) -> 7,991
K109: - 환경사원복지관 정수기 임대 : 120,000원×12월 | L109: = | M109: =R109 -> 1,440 | O109: 120,000 | P109: 12 | Q109: 1 | R109: =ROUNDUP(O109*P109*Q109/1000,0) -> 1,440
K110: - 환경사원복지관 비데 임대 : 19,840원×7개×12월 | L110: = | M110: =R110 -> 1,667 | O110: 19,840 | P110: 7 | Q110: 12 | R110: 1,667
K111: - 환경사원복지관 공기청정기 임대 : 40,000원×2개×12월 | L111: = | M111: 960 | O111: 40,000 | P111: 2 | Q111: 12 | R111: 960
K112: - 환경사원복지관 복사기 임대 : 200,000원×1대×12월 | L112: = | M112: 2,400 | O112: 200,000 | P112: 1 | Q112: 12 | R112: 2,400
K113: - 환경사원 휴게실 흑백복사기 임대 : 50,000원×1대×12월 | L113: = | M113: 600 | O113: 50,000 | P113: 1 | Q113: 12 | R113: 600
K114: - 환경사원복지관 CCTV 임대 : 77,000원×12월 | L114: = | M114: 924 | O114: 77,000 | P114: 12 | Q114: 1 | R114: 924
K115: ○ 공유재산 사용료 : 환경사원복지관 외 2필지 65,000,000원x1회 | L115: = | M115: =R115 -> 65,000 | O115: 65,000,000 | P115: 1 | Q115: 1 | R115: 65,000
K116: ○ 예비운전원 실기시험장 대여료 : 550,000원×2회 | L116: = | M116: 1,100 | O116: 550,000 | P116: 2 | Q116: 1 | R116: 1,100
G117: 21 공공요금및제세 | H117: =M117 -> 239,797 | I117: 286,569 | J117: =H117-I117 -> △46,772 | M117: =M118+M119+M120+M121+M125 -> 239,797
K118: ○ 지방소득세(종업원분) : 18,427,286,000원×0.5% | L118: = | M118: =R118 -> 92,137 | O118: =M11*1000 -> 18,427,286,000 | P118: 0.50% | Q118: 1 | R118: 92,137
K119: ○ 자동차세 : 90,000원×77대×2회 | L119: = | M119: =R119 -> 13,860 | O119: 90,000 | P119: 77 | Q119: 2 | R119: 13,860
K120: ○ 경유차 환경개선부담금 : 80,000원×10대×2회 | L120: = | M120: =R120 -> 1,600 | O120: 80,000 | P120: 10 | Q120: 2 | R120: 1,600
K121: ○ 환경사원복지관 공공요금 | M121: =SUM(M122:M124) -> 34,200
K122: - 환경사원복지관 전기요금 : 1,800,000원×12월 | L122: = | M122: =R122 -> 21,600 | O122: 1,800,000 | P122: 12 | Q122: 1 | R122: =ROUNDUP(O122*P122*Q122/1000,0) -> 21,600
K123: - 환경사원복지관 수도요금 : 450,000원×12월 | L123: = | M123: =R123 -> 5,400 | O123: 450,000 | P123: 12 | Q123: 1 | R123: 5,400
K124: - 환경사원복지관 전화요금 : 600,000원×12월 | L124: = | M124: =R124 -> 7,200 | O124: 600,000 | P124: 12 | Q124: 1 | R124: 7,200
K125: ○ 청소차량 보험료 : 1,400,000원×70대×1회 | L125: = | M125: =R125 -> 98,000 | O125: 1,400,000 | P125: 70 | Q125: 1 | R125: 98,000
G126: 22 차량 · 선박비 | H126: =M126 -> 1,441,201 | I126: 1,445,148 | J126: =H126-I126 -> △3,947 | M126: =M127+M128+M133 -> 1,441,201
K127: ○ 도서지역 폐기물 운반 선박비 : 2,000,000원×63회 | L127: = | M127: =R127 -> 126,000 | O127: 2,000,000 | P127: 63 | Q127: 1 | R127: 126,000
K128: ○ 청소차량 유류비 | M128: =SUM(M129:M132) -> 1,299,955
K129: - 8000cc(경유) : 40,000km×30대×1,400원×0.3 | L129: = | M129: =S129 -> 504,000 | O129: 40,000 | P129: 30 | Q129: 1,400 | R129: 0.30 | S129: =ROUNDUP(O129*P129*Q129*R129/1000,0) -> 504,000
K130: - 6000cc(CNG) : 43,000km×33대×1,200원×0.41 | L130: = | M130: =S130 -> 698,148 | O130: 43,000 | P130: 33 | Q130: 1,200 | R130: 0.41 | S130: =ROUNDUP(O130*P130*Q130*R130/1000,0) -> 698,148
K131: - 2500cc(경유) : 26,000km×8대×1,400원×0.3 | L131: = | M131: 87,360 | O131: 26,000 | P131: 8 | Q131: 1,400 | R131: 0.30 | S131: 87,360
K132: - (신규) 2500cc(LPG) : 26,000km×1대×980원×0.41 | L132: = | M132: 10,447 | O132: 26,000 | P132: 1 | Q132: 980 | R132: 0.41 | S132: 10,447
K133: ○ 청소차량 GPS 운영비 : 16,500원×70대×12월 | L133: = | M133: =R133 -> 15,246 | O133: 16,500 | P133: 77 | Q133: 12 | R133: =ROUNDUP(O133*P133*Q133/1000,0) -> 15,246
F134: 202 여비 | H134: =H135 -> 27,620 | I134: 27,620 | J134: =H134-I134 -> 0
G135: 01 국내여비 | H135: =M135 -> 27,620 | I135: 27,620 | J135: =H135-I135 -> 0 | M135: =M136+M138 -> 27,620
K136: ○ 관내여비 | M136: =SUM(M137:M137) -> 18,000
K137: - 청소업무 수행 : 20,000원×5명×15일×12월 | L137: = | M137: =S137 -> 18,000 | O137: 20,000 | P137: 5 | Q137: 15 | R137: 12 | S137: =ROUNDUP(O137*P137*Q137*R137/1000,0) -> 18,000
K138: ○ 관외여비 | M138: =SUM(M139:M142) -> 9,620
K139: - 청소차량 유지보수업무 수행 : 110,000원×2명×8회 | L139: = | M139: =R139 -> 1,760 | O139: 110,000 | P139: 2 | Q139: 8 | R139: =ROUNDUP(O139*P139*Q139/1000,0) -> 1,760
K140: - 청소업무 유공직원 선진지 견학 : 500,000원×10명×1회 | L140: = | M140: =R140 -> 5,000 | O140: 500,000 | P140: 10 | Q140: 1 | R140: 5,000
K141: - 청소대행사업 관련 벤치마킹 방문 : 110,000원×3명×2회×1일 | L141: = | M141: =S141 -> 660 | O141: 110,000 | P141: 3 | Q141: 2 | R141: 1 | S141: =ROUNDUP(O141*P141*Q141*R141/1000,0) -> 660
K142: - 산업안전보건 강조주간 행사참여 : 110,000원×10명×2회 | L142: = | M142: =R142 -> 2,200 | O142: 110,000 | P142: 10 | Q142: 2 | R142: =ROUNDUP(O142*P142*Q142/1000,0) -> 2,200
F143: 217 관서업무비 | H143: =H144 -> 19,740 | I143: 20,220 | J143: =H143-I143 -> △480
G144: 02 부서업무비 | H144: =M144 -> 19,740 | I144: 20,220 | J144: =H144-I144 -> △480 | M144: =M145+M146 -> 19,740
K145: ○ 부서운영비(30인이하) : 400,000원×12월 | L145: = | M145: =R145 -> 4,800 | O145: 400,000 | P145: 12 | Q145: 1 | R145: =ROUNDUP(O145*P145*Q145/1000,0) -> 4,800
K146: ○ 부서운영비(30인이상) : 5,000원×249명×12월 | L146: = | M146: =R146 -> 14,940 | O146: 5,000 | P146: 249 | Q146: 12 | R146: 14,940
D147: 환경사원 안전개선 사업 | H147: =H148 -> 660,555 | I147: 727,617 | J147: =H147-I147 -> △67,062
E148: 200 물건비 | H148: 660,555 | I148: 727,617 | J148: =H148-I148 -> △67,062
F149: 201 일반운영비 | H149: 660,555 | I149: 727,617 | J149: =H149-I149 -> △67,062
G150: 15 복리후생비 | H150: =M150 -> 660,555 | I150: 727,617 | J150: =H150-I150 -> △67,062 | M150: =M151+M173+M92+M174+M175+M176+M177 -> 660,555
K151: ○ 환경사원 피복비 | M151: =SUM(M152:M172) -> 329,207
K152: - 춘추 작업복 : 150,000원×279명×1회 | L152: = | M152: =R152 -> 41,850 | O152: 150,000 | P152: 279 | Q152: 1 | R152: =ROUNDUP(O152*P152*Q152/1000,0) -> 41,850
K153: - 하계 작업복 : 70,000원×279명×1회 | L153: = | M153: =R153 -> 19,530 | O153: 70,000 | P153: 279 | Q153: 1 | R153: 19,530
K154: - 동절기 작업복 : 165,000원×273명×1회 | L154: = | M154: 45,045 | O154: 165,000 | P154: 273 | Q154: 1 | R154: 45,045
K155: - 방한복 : 135,000원×273명×1회 | L155: = | M155: 36,855 | O155: 135,000 | P155: 273 | Q155: 1 | R155: 36,855
K156: - 우의 : 55,000원×273명×1회 | L156: = | M156: 15,015 | O156: 55,000 | P156: 273 | Q156: 1 | R156: 15,015
K157: - 안전장화 : 35,000원×273명×1회 | L157: = | M157: 9,555 | O157: 35,000 | P157: 273 | Q157: 1 | R157: 9,555
K158: - 안전화 : 65,000원×273명×3회 | L158: = | M158: 53,235 | O158: 65,000 | P158: 273 | Q158: 3 | R158: 53,235
K159: - 춘추작업모 : 7,500원×273명×1회 | L159: = | M159: 2,048 | O159: 7,500 | P159: 273 | Q159: 1 | R159: 2,048
K160: - 하계작업모 : 15,000원×273명×1회 | L160: = | M160: 4,095 | O160: 15,000 | P160: 273 | Q160: 1 | R160: 4,095
K161: - 방한모 : 20,000원×273명×1회 | L161: = | M161: 5,460 | O161: 20,000 | P161: 273 | Q161: 1 | R161: 5,460
K162: - 자외선차단마스크 : 13,000원×273명×2개 | L162: = | M162: 7,098 | O162: 13,000 | P162: 273 | Q162: 2 | R162: 7,098
K163: - 안전모 : 11,780원×273명×1회 | L163: = | M163: 3,216 | O163: 11,780 | P163: 273 | Q163: 1 | R163: 3,216
K164: - 안전조끼 : 32,000원×273명×2회 | L164: = | M164: 17,472 | O164: 32,000 | P164: 273 | Q164: 2 | R164: 17,472
K165: - 하절기 쿨토시 : 10,000원×273명×1회 | L165: = | M165: 2,730 | O165: 10,000 | P165: 273 | Q165: 1 | R165: 2,730
K166: - 방진복 : 8,000원x85개x6회 | L166: = | M166: 4,080 | O166: 8,000 | P166: 85 | Q166: 6 | R166: 4,080
K167: - 안전벨트(탑승원) : 25,000원×10명×4회 | L167: = | M167: 1,000 | O167: 25,000 | P167: 10 | Q167: 4 | R167: 1,000
K168: - 작업용 장갑 :1,100원×274명×8개×12월 | L168: = | M168: =S168 -> 28,935 | O168: 1,100 | P168: 274 | Q168: 8 | R168: 12 | S168: =ROUNDUP(O168*P168*Q168*R168/1000,0) -> 28,935
K169: - 작업용 관절 보호대 : 35,000×230개×1회 | L169: = | M169: 8,050 | O169: 35,000 | P169: 230 | Q169: 1 | R169: =ROUNDUP(O169*P169*Q169/1000,0) -> 8,050
K170: - 베임방지 장갑 : 7,000원 x 271명 x 4회 | L170: = | M170: 7,588 | O170: 7,000 | P170: 271 | Q170: 4 | R170: 7,588
K171: - 캡 라이트(헤드렌턴,배터리포함) : 14,000원×200명×1회 | L171: = | M171: 2,800 | O171: 14,000 | P171: 200 | Q171: 1 | R171: 2,800
K172: - 마스크 : 500원×271명×100회 | L172: = | M172: 13,550 | O172: 500 | P172: 271 | Q172: 100 | R172: 13,550
K173: ○ 환경사원 목욕비 : 4,000원×271명×25회×12월 | L173: = | M173: =S173 -> 325,200 | O173: 4,000 | P173: 271 | Q173: 25 | R173: 12 | S173: =ROUNDUP(O173*P173*Q173*R173/1000,0) -> 325,200
K174: ○ 벌레물림약 구입비 : 10,000원x100개 | L174: = | M174: 1,000 | O174: 10,000 | P174: 100 | Q174: 1 | R174: =ROUNDUP(O174*P174*Q174/1000,0) -> 1,000
K175: ○ 폭염대비 식염포도당 구입비 : 15,000원x20개 | L175: = | M175: 300 | O175: 15,000 | P175: 20 | Q175: 1 | R175: 300
K176: ○ 급량비 : 9,000원×6명×6회×12월 | L176: = | M176: =S176 -> 3,888 | O176: 9,000 | P176: 6 | Q176: 6 | R176: 12 | S176: =ROUNDUP(O176*P176*Q176*R176/1000,0) -> 3,888
K177: ○ (삭제) 경미한 부상(공상)에 따른 치료비 및 약제비 : 500,000원x12개월 | L177: = | M177: =R177 -> 0 | O177: 500,000 | P177: 12 | Q177: 0 | R177: =ROUNDUP(O177*P177*Q177/1000,0) -> 0
D178: 환경사원 복지관 및 청소차량 유지보수 | H178: =H179 -> 426,800 | I178: 311,200 | J178: =H178-I178 -> 115,600
E179: 200 물건비 | H179: =H180 -> 426,800 | I179: 311,200 | J179: =H179-I179 -> 115,600 | M179: =#REF!+M422+M428+M432+M440 -> 
F180: 214 수선유지교체비 | H180: =H181 -> 426,800 | I180: 311,200 | J180: =H180-I180 -> 115,600
G181: 05 수선유지비 | H181: =M181 -> 426,800 | I181: 311,200 | J181: =H181-I181 -> 115,600 | M181: =M182+M183+M184+M186+M185 -> 426,800
K182: ○ 환경사원 복지관 등 수선유지비 : 5,800,000원×1식 | L182: = | M182: =R182 -> 5,800 | O182: 5,800,000 | P182: 1 | Q182: 1 | R182: =ROUNDUP(O182*P182*Q182/1000,0) -> 5,800
K183: ○ 청소차량 수리비 : 5,000,000원×52대 | L183: = | M183: 260,000 | O183: 5,000,000 | P183: 52 | Q183: 1 | R183: 260,000
K184: ○ 노면 청소차 유지비(소형포함) : 23,000,000원×1식 | L184: = | M184: 23,000 | O184: 23,000,000 | P184: 1 | Q184: 1 | R184: 23,000
K185: ○ (신규) 청소차량 수직배기관 설치 : 5,000,000원×24대 | L185: = | M185: 120,000 | O185: 5,000,000 | P185: 24 | Q185: 1 | R185: 120,000
K186: ○ 청소차량 리프트 설치비 : 4,500,000원×4대 | L186: = | M186: 18,000 | O186: 4,500,000 | P186: 4 | Q186: 1 | R186: 18,000
C187: 종량제물품 공급관리 수탁 대행사업 | H187: =H189 -> 100,803 | I187: 101,745 | J187: =H187-I187 -> △942
D188: 종량제물품 공급관리 | H188: =H189 -> 100,803 | I188: 101,745 | J188: =H188-I188 -> △942
E189: 200 물건비 | H189: =H190+H232+H235 -> 100,803 | I189: 101,745 | J189: =H189-I189 -> △942 | M189: =#REF!+M443+M449+M453+M461 -> 
F190: 201 일반운영비 | H190: =H191+H199+H206+H212+H219+H228 -> 98,403 | I190: 98,745 | J190: =H190-I190 -> △342
G191: 01 사무관리비 | H191: =M191 -> 3,078 | I191: 3,678 | J191: =H191-I191 -> △600 | M191: =M192+M195+M196+M198+M197 -> 3,078
K192: ○ 사무용품구입 | M192: =SUM(M193:M194) -> 2,400
K193: - 복사용지 및 소모품비(토너) : 100,000원*12개월 | L193: = | M193: 1,200
K194: - 사무용품 구입비 : 100,000원*12월 | L194: = | M194: 1,200
K195: ○ 컴퓨터 및 복사기 수리비 : 100,000원*1회 | L195: = | M195: 100
K196: ○ 청소용품 및 장갑 등 | L196: = | M196: 300
K197: ○ 범용 S/W 구입비 : 알약 26,000원 * 3대 | L197: = | M197: =26*3 -> 78
K198: ○ (신규)냉난방기 설치비 | L198: = | M198: 200
G199: 11 지급수수료 | H199: =M199 -> 66,271 | I199: 66,271 | J199: =H199-I199 -> 0 | M199: =M200+M201+M202+M204+M205 -> 66,271
K200: ○ 판매관리시스템 유지관리 수수료: 500,000원*12개월 | L200: = | M200: 6,000
... 57 more rows

Sheet 체육시설부
A1: 다. 지출예산(세부사업) - 체육시설부 | M1: 단위 : 천원
A2: 구 분 | B2: 사업 | E2: 편성목 | H2: 당년도예산액 (A) | I2: 전년도예산액 (B) | J2: 증 감 (A-B) | K2: 산 출 기 초
B3: 정책 | C3: 단위 | D3: 세부 | E3: 그룹 | F3: 목 | G3: 세목
A4: 총계(사업예산 + 자본예산) | H4: =H5+H306 -> 1,998,382 | I4: =I5+I306 -> 2,024,994 | J4: =H4-I4 -> △26,612
A5: 사업예산 | H5: =H6 -> 1,977,742 | I5: =I6 -> 1,999,638 | J5: △21,896
B6: 체육시설 대행사업 | H6: =H7+H134+H229 -> 1,977,742 | I6: =I7+I134+I229 -> 1,999,638 | J6: △21,896
C7: 진남수영장 수탁 대행사업 | H7: =H8+H100 -> 1,004,886 | I7: =I8+I100 -> 1,029,364 | J7: △24,478
D8: 진남수영장 운영 및 관리 | H8: =H9+H20 -> 950,032 | I8: =I9+I20 -> 958,110 | J8: △8,078
E9: 100 인건비 | H9: =H10 -> 147,745 | I9: =I10 -> 171,587 | J9: △23,842
F10: 101 인건비 | H10: =H11 -> 147,745 | I10: =I11 -> 171,587 | J10: △23,842
G11: 04 기간제근로자보수 | H11: =M11 -> 147,745 | I11: 171,587 | J11: △23,842 | K11: 04 기간제근로자 보수(2024년 여수시 생활임금) | M11: =M12 -> 147,745
K12: ○ 체육시설부 매표, 수영강사, 수상안전요원, 환경, 예초, 대체인력 인건비 | L12: = | M12: =SUM(M13:M19) -> 147,745 | N12: ○ 직원 병가 및 휴직 등 공백발생 시 채용(인건비 24년 기준)
K13: - 기본급 : 10,710원*8시간*5명*5일*44주 | L13: = | M13: =ROUND(P13*Q13*R13*S13*T13/1000,0) -> 94,248 | P13: 10,710 | Q13: 8 | R13: 5 | S13: 5 | T13: 44
K14: - 휴일근무수당 : 10,710원*8시간*150%*5명*44주 | L14: = | M14: =ROUND(P14*Q14*R14*S14*T14/1000,0) -> 28,274 | P14: 10,710 | Q14: 8 | R14: 1.5 | S14: 5 | T14: 44
K15: - 야간근무수당 : 10,710원*0.5시간*50%*5명*44주 | L15: = | M15: =ROUND(P15*Q15*R15*S15*T15/1000,0) -> 589 | P15: 10,710 | Q15: 0.5 | R15: 0.5 | S15: 5 | T15: 44
K16: - 연차휴가수당 : 10,710원*8시간*5명*10일 | L16: = | M16: =ROUND(P16*Q16*R16*S16/1000,0) -> 4,284 | P16: 10,710 | Q16: 8 | R16: 5 | S16: 10
K17: - 주휴수당 : 10,710원*8시간*5명*44주 | L17: = | M17: =ROUND(P17*Q17*R17*S17/1000,0) -> 18,850 | P17: 10,710 | Q17: 8 | R17: 5 | S17: 44
K18: - 강습수당 : 50,000원*1명*10개월 | L18: = | M18: =ROUND(P18*Q18*R18/1000,0) -> 500 | P18: 50,000 | Q18: 1 | R18: 10
K19: - 자격수당 : 50,000원*2명*10개월 | L19: = | M19: =ROUND(P19*Q19*R19/1000,0) -> 1,000 | N19: ○ 생체자격증 보유시 | P19: 50,000 | Q19: 2 | R19: 10
E20: 200 물건비 | H20: =H21+H90+H94 -> 802,287 | I20: =I21+I90+I94 -> 786,523 | J20: =H20-I20 -> 15,764 | M20: =M21+M142+M147+M150+M205 -> 584,182
F21: 201 일반운영비 | H21: =H22+H39+H63+H69+H79 -> 767,007 | I21: 751,243 | J21: =H21-I21 -> 15,764
G22: 01 사무관리비 | H22: =M22 -> 21,658 | I22: 23,800 | J22: =H22-I22 -> △2,142 | K22: 01 일반수용비 | M22: =SUM(M23:M30)+M35+M36+M37+M38 -> 21,658
K23: ○ 알약임대 : 26,000 * 21대 | L23: = | M23: =ROUNDUP(P23*Q23/1000,0) -> 546 | N23: ○ 진남수영장 PC알약 설치 | P23: 26000 | Q23: 21
K24: ○ 회원카드 구입 : 2,000장 *400원 | L24: = | M24: =ROUNDUP(P24*Q24/1000,0) -> 800 | N24: ○회원카드 분실 및 신규회원 대비 구매 | P24: 2000 | Q24: 400
K25: ○ 영수증 용지 구입 : 45,000원*12박스 | L25: = | M25: =ROUNDUP(P25*Q25*R25/1000,0) -> 540 | N25: ○수영장 영수증 용지 구입(친환경용지) | P25: 45,000 | Q25: 12 | R25: 1
K26: ○ 무인발권기 입장권 용지 구입 : 45,000원*12박스 | L26: = | M26: =ROUNDUP(P26*Q26*R26/1000,0) -> 540 | N26: ○무인 발권기 용지 구입(친환경용지) | P26: 45000 | Q26: 12 | R26: 1
K27: ○ 사무용품 구입비 : 300,000원*12월 | L27: = | M27: =ROUNDUP(P27*Q27/1000,0) -> 3,600 | N27: ○기타 사무용품 구입 | P27: 300000 | Q27: 12
K28: ○ 소모성 공구류 구입 : 250,000원*2회 | L28: = | M28: =ROUNDUP(P28*Q28/1000,0) -> 500 | N28: ○소모성 공구류 구입비 | P28: 250000 | Q28: 2
K29: ○ 쓰레기 종량제 봉투 50L : 100장*1,200원*12월 | L29: = | M29: =ROUNDUP(P29*Q29*R29/1000,0) -> 1,440 | N29: ○쓰레기 종량제 봉투 구입 | P29: 100 | Q29: 1200 | R29: 12
K30: ○ 프린터 토너 구입 | L30: = | M30: =SUM(M31:M34) -> 3,000 | N30: ○사무실1, 카운터1, 카운터2, 강사실1
K31: - 블랙 : 250,000원*2대*2개 | M31: =ROUNDUP(P31*Q31*R31/1000,0) -> 1,000 | P31: 250000 | Q31: 2 | R31: 2
K32: - 칼라 : 200,000원*2대*3개 | M32: =ROUNDUP(P32*Q32*R32/1000,0) -> 1,200 | P32: 200000 | Q32: 2 | R32: 3
K33: - 드럼 : 300,000원*2대*1개 | M33: 600 | P33: 300000 | Q33: 2 | R33: 1
K34: - 회수통 : 100,000원*2대*1개 | M34: 200 | P34: 100000 | Q34: 2 | R34: 1
K35: ○ 배너 및 현수막 제작비 : 66,000원*1회*12월 | L35: = | M35: =ROUNDUP(P35*Q35*R35/1000,0) -> 792 | N35: ○홍보용 배너, 현수막 제작비 | P35: 66,000 | Q35: 1 | R35: 12
K36: ○ 시설관리 청소용품 및 위생용품 구입 : 750,000원*12월 | L36: = | M36: =ROUNDUP(P36*Q36/1000,0) -> 9,000 | N36: ○점보롤휴지 ,핸드타올, 면봉, 락스, 세정제 등 | P36: 750,000 | Q36: 12
K37: ○ 전산소모품 등 PC 관리비 :75,000원*12월 | L37: = | M37: =ROUNDUP(P37*Q37/1000,0) -> 900 | N37: ○ 사무용 PC 소규모 수리 | P37: 75,000 | Q37: 12
K38: ○ (신규) 리플릿 제작비 : 2.000.000원*1회 | L38: = | M38: =ROUNDUP(P38*Q38/1000,0) -> 0 | N38: ○ 수영장 안내, 홍보용 리플릿 제작비 | P38: 0 | Q38: 1
G39: 11 지급수수료 | H39: =M39 -> 123,460 | I39: 122,198 | J39: =H39-I39 -> 1,262 | K39: 11 지급수수료 | M39: =SUM(M40:M62) -> 123,460
K40: ○ (법정)보일러 대기배출시설 자가측정 용역비 : 2,000,000원*2회 | L40: = | M40: 4,000 | N40: ○법적 대기배출시설 자가측정 용역비(연1회) | P40: 2,000,000 | Q40: 2
K41: ○ (법정)승강기 유지보수 비용 : 160,000원*12회 | L41: = | M41: =ROUNDUP(P41*Q41/1000,0) -> 1,920 | N41: ○유지보수 관리계약 | P41: 160,000 | Q41: 12
K42: ○ (법정)방역 소독비 : 880,000원*5회 | L42: = | M42: 4,400 | N42: ○법적 방역소독 5회 / 수목 소독 2회 | P42: 880,000 | Q42: 5
K43: ○ (법정)도시가스 정기점검 수수료 : 500,000원*1회 | L43: = | M43: 500 | N43: ○법적 정기검사 실시 | P43: 500,000 | Q43: 1
K44: ○ (법정)수영장 수질검사 수수료 : 50,000원*4회 | L44: = | M44: 200 | N44: ○법적 검사 실시 | P44: 50,000 | Q44: 4
K45: ○ 설비 유지관리 시스템 관리 : 380,000원*12월 | L45: = | M45: 4,560 | N45: ○시설관리 전산프로그램 사용 수수료 | P45: 380,000 | Q45: 12
K46: ○ (법정)보일러 정기검사비 : 1,200,000원*1회 | L46: = | M46: 1,200 | N46: ○ 사용중검사, 성능검사 각 연 1회(보일러 3대) | P46: 1,200,000 | Q46: 1
K47: ○ 신용카드 결제대행수수료 : 1,900,000원*12월 | L47: = | M47: 22,800 | N47: ○ 신용카드 결제에 따른 카드사 결제대행수수료 | P47: 1,900,000 | Q47: 12
K48: ○ (법정)정기안전점검 용역비 : 25,000,000원*1식 | L48: = | M48: 25,000 | N48: ○법정 정밀안전점검(20,000천원) 1회, 정기정검(5,000천원) 1회 | P48: 25,000,000 | Q48: 1
K49: ○ (법정)전기연차점검 : 4,500,000원*1회 | L49: = | M49: 4,500 | N49: ○법정 전기 연차 점검 | P49: 4,500,000 | Q49: 1
K50: ○ (법정)소방작동기능점검 : 1,000,000원*2회 | L50: = | M50: 2,000 | N50: ○법정 소방 점검 | P50: 1,000,000 | Q50: 2
K51: ○ (법정)승강기 정기검사 수수료 : 140,000원*1회 | L51: = | M51: 140 | N51: ○승강기시설안전관리법에 의한 안전관리 대행 | P51: 140,000 | Q51: 1
K52: ○ 보일러 세관 용역비 : 7,900,000원*1회 | L52: = | M52: 7,900 | N52: ○보일러 관체 내부 약품 세척 용역비 | P52: 7,900,000 | Q52: 1
K53: ○ 보일러 유지관리 용역비 : 2,000,000원*1회 | L53: = | M53: 2,000 | N53: ○진남수영장 보일러 유지보수 계약비 | P53: 2,000,000 | Q53: 1
K54: ○ 통합회원관리 시스템 유지관리 용역비 : 370,000원*12월 | L54: = | M54: 4,440 | N54: ○진남수영장 회원관리 프로그램 용역비 | P54: 370,000 | Q54: 12
K55: ○ 서버 유지관리 용역비 : 850,000원*12월 | L55: = | M55: 10,200 | N55: ○수영장 회원관리 프로그램 서버 유지관리 용역비 | P55: 850,000 | Q55: 12
K56: ○ 수영장 발란싱 탱크 청소 용역비 : 1,400,000원*1회 | L56: = | M56: 1,400 | N56: ○수영장 수질개선을 위한 물탱크 청소 | P56: 1,400,000 | Q56: 1
K57: ○ 기계실 집수정 내부 청소 용역비 : 300,000원*4대*1회 | L57: = | M57: 1,200 | N57: ○기계실 배수용 펌프 내부 청소 용역비 | P57: 300,000 | Q57: 4
K58: ○ 저수조 탱크 청소 용역비 : 1,200,000원*2회 | L58: = | M58: 2,400 | N58: ○저수조 청소 용역비 | P58: 1,200,000 | Q58: 2
K59: ○ 수영장 바닥타일 청소 용역비 : 1,300,000원*13회 | L59: = | M59: 16,900 | N59: ○월1회 수영장 내부 바닥청소 용역비(하계 월2회) | P59: 1,300,000 | Q59: 13
K60: ○ 생존수영 재인증 용역비 : 300,000원 *1회 | L60: = | M60: =ROUNDUP(P60*Q60/1000,0) -> 300 | N60: ○ 년 1회 생존수영 인증 | P60: 300,000 | Q60: 1
K61: ○ 수영장 내부 대정비 타일청소 : 2,000,000원*1식 | L61: = | M61: =ROUNDUP(P61*Q61/1000,0) -> 2,000 | N61: ○ 연 1회 대정비 타일청소(수영조 내/외부) | P61: 2,000,000 | Q61: 1
K62: ○ (신규)에어컨 실내기 청소 용역비 : 3,500,000원 *1회 | L62: = | M62: 3,500 | N62: ○에어컨 실내기 청소 용역비(2년 1회) | P62: 3,500,000 | Q62: 1
G63: 13 임차료 | H63: =M63 -> 14,808 | I63: 8,100 | J63: =H63-I63 -> 6,708 | K63: 13 임차료 | M63: =SUM(M64:M68) -> 14,808
K64: ○ 수영장 운영관련 물품(정수기 및 공기청정기 등) 임차료 : 90,000원*5대*12월 | L64: = | M64: =ROUNDUP(P64*Q64*R64/1000,0) -> 5,400 | N64: ○공기청정기 및 정수기 등 임차료 납부 | P64: 90,000 | Q64: 5 | R64: 12
K65: ○ 복합기 임차료 : 225,000원*1대*12월 | L65: = | M65: =ROUNDUP(P65*Q65*R65/1000,0) -> 2,700 | N65: ○복합기 임대료(1대) 지급 | P65: 225,000 | Q65: 1 | R65: 12
K66: ○ 무인경비 시스템 임차료 : 285,000원*12월 | L66: = | M66: =ROUNDUP(P66*Q66/1000,0) -> 3,420 | N66: ○무인경비(에스원) 임차료 지불(분기별) | P66: 285,000 | Q66: 12
K67: ○ CCTV 임차료 : 50,000원*12월 | L67: = | M67: 600 | N67: ○CCTV 임차료 | P67: 50,000 | Q67: 12
K68: ○ 비상안심벨 임차료 : 224,000원*12월 | L68: = | M68: 2,688 | N68: ○ 진남수영장 비상안심벨(6대) 임대료 | P68: 224,000 | Q68: 12
G69: 15 복리후생비 | H69: =M69 -> 33,806 | I69: 33,470 | J69: =H69-I69 -> 336 | K69: 15 복리후생비 | M69: =M70+M71+M72+M74+M76+M78 -> 33,806
K70: ○ 피복비(체육시설부) : 60,000원*2회*57명 | L70: = | M70: =ROUNDUP(P70*Q70*R70/1000,0) -> 6,840 | N70: ○ 체육시설부(57명) 근무복 | P70: 60,000 | Q70: 2 | R70: 57
K71: ○ 강습용 슈트, 수경, 수모, 수영복 등 구입비(체육시설팀) : 300,000원*2회*20명 | L71: = | M71: =ROUNDUP(P71*Q71*R71/1000,0) -> 12,000 | N71: ○수영장(진남,망마) 수영강사 강습관련 장비 구입(대체인력 포함 20명) | P71: 300,000 | Q71: 2 | R71: 20
K72: ○ 급량비(체육시설부) | L72: = | M72: =SUM(M73:M73) -> 7,776
K73: - 9,000원 * 9명 * 8일 * 12월 | M73: =ROUNDUP(P73*Q73*R73*S73/1000,0) -> 7,776 | N73: ○진남 3, 망마 3, 장애인 3 | P73: 9,000 | Q73: 9 | R73: 8 | S73: 12
K74: ○ 간식비 | L74: = | M74: =SUM(M75:M75) -> 6,240
K75: - 수영강사 : 3,000원*8명*5일*52주 | M75: =ROUNDUP(P75*Q75*R75*S75/1000,0) -> 6,240 | N75: ○수영강사 8명 간식비 | P75: 3,000 | Q75: 8 | R75: 5 | S75: 52
K76: ○ 안전용품(안전화, 안전모 등) 구입비 | L76: = | M76: =SUM(M77:M77) -> 450
K77: - 150,000원 * 3회 | M77: =ROUNDUP(P77*Q77/1000,0) -> 450 | N77: ○안전장구류 안전화, 안전모 등 안전에 관한 개인장구류 구입 | P77: 150,000 | Q77: 3
K78: ○ 진남수영장 구급함 및 비상약품 등 구입비 : 250,000*2회 | L78: = | M78: =ROUNDUP(P78*Q78/1000,0) -> 500 | N78: ○의약품, 자가진단키트, 마스크 등 구입비 | P78: 250,000 | Q78: 2
G79: 21 공공요금 및 제세 | H79: =M79 -> 573,275 | I79: 563,675 | J79: =H79-I79 -> 9,600 | K79: 21 공공요금 및 제세 | M79: =SUM(M80:M89) -> 573,275
K80: ○ (법정)주민세 : 250원*6,496㎡ | L80: = | M80: 1,624 | N80: ○ 연 1회 법정 주민세(재산분) 납부
K81: ○ 상하수도 요금 : 18,000,000원*12월 | L81: = | M81: =ROUNDUP(P81*Q81/1000,0) -> 216,000 | N81: ○ 24년도 이용객 증가, 요금의 단가 상승분 반영 | P81: 18,000,000 | Q81: 12
K82: ○ 도시가스 요금 : 22,000,000원*12월 | L82: = | M82: 240,000 | N82: ○ 24년도 이용객 증가, 요금의 단가 상승분 반영 | P82: 20,000,000 | Q82: 12
K83: ○ 전기 요금 : 8,500,000원*12월 | L83: = | M83: 102,000 | N83: ○ 24년도 이용객 증가, 요금의 단가 상승분 반영 | P83: 8,500,000 | Q83: 12
K84: ○ 통신요금(전화기,인터넷) : 500,000원*12월 | L84: = | M84: 6,000 | N84: ○전화기, 인터넷 통신요금 | P84: 500,000 | Q84: 12
K85: ○ (법정)도시가스사고배상책임보험 : 20,000원*1회 | L85: = | M85: 20 | N85: ○연 1회 법정 책임보험 가입 | P85: 20,000 | Q85: 1
K86: ○ (법정)승강기사고배상책임보험 : 35,000원*1회 | L86: = | M86: 35 | N86: ○연 1회 법정 책임보험 가입 | P86: 35,000 | Q86: 1
K87: ○ 비상안심벨 통신비 : 33,000원*12월 | L87: = | M87: 396 | N87: ○ 화장실 비상안심벨 설치에 따른 통신비 | P87: 33,000 | Q87: 12
K88: ○ 교통유발부담금 : 3,000,000원*1회 | L88: = | M88: 3,000 | N88: ○ 교통유발부담금 연 1회 납부 | P88: 3,000,000 | Q88: 1
K89: ○ 문자메시지 요금 : 350,000원*12월 | L89: = | M89: 4,200 | N89: ○문자메시지 발송요금 | P89: 350,000 | Q89: 12
F90: 202 여비 | H90: =H91 -> 23,580 | I90: 23,580 | J90: =H90-I90 -> 0
G91: 01 국내여비 | H91: =M91 -> 23,580 | I91: 23,580 | J91: =H91-I91 -> 0 | K91: 01 국내여비(체육시설부) | M91: =SUM(M92:M93) -> 23,580
K92: ○ 관내여비 : 20,000원*7명*11일*12월 | L92: = | M92: =ROUNDUP(P92*Q92*R92*S92/1000,0) -> 18,480 | N92: ○부장1, 진남3, 망마3, 장애인3 | P92: 20,000 | Q92: 7 | R92: 11 | S92: 12
K93: ○ 관외여비 : 85,000원*5명*3일*4회 | L93: = | M93: =ROUNDUP(P93*Q93*R93*S93/1000,0) -> 5,100 | N93: ○부장1, 진남3, 망마3, 장애인3 | P93: 85,000 | Q93: 5 | R93: 3 | S93: 4
F94: 217 관서업무비 | H94: =H95 -> 11,700 | I94: 11,700 | J94: =H94-I94 -> 0
G95: 02 부서업무비 | H95: =M95 -> 11,700 | I95: 11,700 | J95: =H95-I95 -> 0 | K95: 02 부서운영업무비 | M95: =M96 -> 11,700 | N95: ○ 회의개최 시 음식물 및 다과, 체육대회 식대 포함 (1년이상 근로계약을 체결하는 비정규직 포함)
K96: ○ 부서운영비(체육시설부) | M96: =SUM(M97:M99) -> 11,700
K97: - 진남수영장(29명) : 400,000원 * 12월 | L97: = | M97: 4,800 | N97: ○30인이하 400,000원
K98: - 망마국민체육센터(26명) : 400,000원 * 12월 | L98: = | M98: 4,800 | N98: ○30인이하 400,000원
K99: - 장애인국민체육센터(6명) : 175,000원 * 12월 | L99: = | M99: 2,100 | N99: ○10인이하 175,000원
D100: 진남수영장 시설 유지보수 | H100: =H101 -> 54,854 | I100: =I101 -> 71,254 | J100: =H100-I100 -> △16,400
E101: 200 물건비 | H101: =H102+H111 -> 54,854 | I101: =I102+I111 -> 71,254 | J101: =H101-I101 -> △16,400 | M101: =M134+M258+M264+M267+M322 -> 9,880
F102: 206 재료비 | H102: =H103+H105 -> 10,354 | I102: 10,354 | J102: =H102-I102 -> 0
G103: 01 일반재료비 | H103: =M103 -> 1,000 | I103: 1,000 | J103: =H103-I103 -> 0 | K103: 01 일반재료비 | M103: =M104 -> 1,000
K104: ○ 방역소독약품 구입 : 500,000원*2회 | L104: = | M104: 1,000 | N104: ○수영장내/외부벌레퇴치약품살포/감염병예방약품 | P104: 500,000 | Q104: 2
G105: 02 약품비 | H105: =M105 -> 9,354 | I105: 9,354 | J105: =H105-I105 -> 0 | K105: 02 약품비 | M105: =SUM(M106:M110) -> 9,354
K106: ○ 정제염 소금 구입 : 8,800원*15포*12월 | L106: = | M106: =ROUNDUP(P106*Q106*R106/1000,0) -> 1,584 | N106: ○차염소산나트륨 발생기 소금 투입 | P106: 8,800 | Q106: 15 | R106: 12
K107: ○ 보일러 청관제 구입 : 60,000원*3통*12월 | L107: = | M107: =ROUNDUP(P107*Q107*R107/1000,0) -> 2,160 | N107: ○보일러 내부 관체 윤활제 구입 | P107: 60,000 | Q107: 3 | R107: 12
K108: ○ 응집제 구입 : 22,000원(1L)*12통*12월 | L108: = | M108: =ROUNDUP(P108*Q108*R108/1000,0) -> 3,168 | N108: ○수영장 수질개선 응집제 구입 | P108: 22,000 | Q108: 12 | R108: 12
K109: ○ PH조절제 구입 : 33,000원*10통*1회 | L109: = | M109: =ROUNDUP(P109*Q109*R109/1000,0) -> 330 | N109: ○수영장 수질개선 PH조절제 구입 | P109: 33,000 | Q109: 10 | R109: 1
K110: ○ 탁도개선제 : 22,000원*8통*12월 | L110: = | M110: =ROUNDUP(P110*Q110*R110/1000,0) -> 2,112 | N110: ○수영장 수질개선 탁도개선제 구입 | P110: 22,000 | Q110: 8 | R110: 12
F111: 214 수선유지교체비 | H111: =H112 -> 44,500 | I111: 60,900 | J111: =H111-I111 -> △16,400
G112: 02 수선유지비 | H112: =M112 -> 44,500 | I112: 60,900 | J112: =H112-I112 -> △16,400 | K112: 02 수선유지비 | L112: = | M112: =SUM(M113:M133) -> 44,500
K113: ○ 냉난방기 유지보수 부품 구입 : 100,000원*31대(실내기) | L113: = | M113: =ROUNDUP(P113*Q113/1000,0) -> 3,100 | N113: ○ 에어컨 유지관리 부품비 | P113: 100,000 | Q113: 31
K114: ○ 수중청소기 유지관리비 : 800,000원*2회 | L114: = | M114: 1,600 | N114: ○ 수중청소기 2대 수리비 | P114: 800,000 | Q114: 2
K115: ○ 소방설비 유지관리비 : 200,000원*12월 | L115: = | M115: 2,400 | N115: ○ 소방설비 유지관리비(화재감지기, 소화기 등) | P115: 200000 | Q115: 12
K116: ○ 전기설비 유지관리비 : 300,000원*12월 | L116: = | M116: 3,600 | N116: ○ 전기설비 유지관리비(차단기, 휴즈 등) | P116: 300000 | Q116: 12
K117: ○ 고압세척기 유지관리비 : 400,000원*2대 | L117: = | M117: 800 | N117: ○ 청소용 고압세척기 수리비 | P117: 400000 | Q117: 2
K118: ○ 수영장 네트워크 시스템 수리비 : 1,000,000원*1식 | L118: = | M118: 1,000 | N118: ○ 수영장 인터넷, 발권기 포스 수리비 | P118: 1000000 | Q118: 1
K119: ○ 기계실 장비 및 배관 유지보수 : 4,000,000원*1식 | L119: = | M119: 2,000 | N119: ○ 기계실 설비 배관 유지관리비 | P119: 2000000 | Q119: 1
K120: ○ 수영장 및 로비 전광판 수리비 : 1,000,000원*1식 | L120: = | M120: 1,000 | N120: ○ 수영장 내부 및 로비 전광판 수리비 | P120: 1000000 | Q120: 1
K121: ○ 샤워실 및 수영장 내부 소모성 자재 구입 : 1,000,000원*1식 | L121: = | M121: 1,000 | N121: ○ 샤워기 헤드, 수영장 트렌치커버 등 수리비 | P121: 1,000,000 | Q121: 1
K122: ○ GHP 실외기 소모품 교체 : 2,000,000원*1대 | L122: = | M122: 2,000 | N122: ○ GHP 실외기 정기 소모품 교체(2호) | P122: 2,000,000 | Q122: 1
K123: ○ GHP 실외기 유지관리비(콤프) : 4,000,000원*1식 | L123: = | M123: 4,000 | N123: ○ GHP 실외기 콤프레샤 교체 예비비 | P123: 4,000,000 | Q123: 1
K124: ○ 수영장 PT층 누수부위 방수 공사 : 200,000원*10개소 | L124: = | M124: 2,000 | N124: ○ pt층 누수부 시설 보수비 | P124: 200,000 | Q124: 10
K125: ○ 남/여 샤워실, 탈의실 내부 유지보수 : 3,000,000*1식 | L125: = | M125: 3,000 | N125: ○샤워실, 탈의실 내부 시설 유지관리비 | P125: 3,000,000 | Q125: 1
K126: ○ 기계실 센서류, 밸브류 유지보수비 : 2,000,000원*1식 | L126: = | M126: 2,000 | N126: ○ 기계실 센서류, 밸브류 유지관리비 | P126: 2,000,000 | Q126: 1
K127: ○ 수영장 외부 시설 유지보수비 : 1,150,000원*1식 | L127: = | M127: 0 | N127: ○ 수영장 외부 시설(탄력봉, 카스토퍼 등) 유지관리비 | P127: 0 | Q127: 1
K128: ○ 수영장 내부 타일 보수비 : 6,000,000원*1식 | L128: = | M128: 5,000 | N128: ○ 내부 타일 탈락 보수 등 유지관리비 | P128: 5,000,000 | Q128: 1
K129: ○ (신규)보일러 및 냉난방기 가스 계량기 교체비 : 5,000,000원*1식 | L129: = | M129: =ROUNDUP(P129*Q129/1000,0) -> 5,000 | N129: ○ 가스 계량기 교체비(8년 1회, 2017년 설치) | P129: 5,000,000 | Q129: 1
K130: ○ (신규)2층 복도 칸막이 설치 공사 : 6,000,000원*1식 | L130: = | M130: =ROUNDUP(P130*Q130/1000,0) -> 0 | N130: ○ 2층 복도 칸막이 설치비(주민참여예산) | P130: 0 | Q130: 1
K131: ○ (법정)냉난방기 GHP 저감장치 설시 : 5,000,000원*4대 | L131: = | M131: =ROUNDUP(P131*Q131/1000,0) -> 0 | N131: ○ (법정) GHP 저감장치 설치 | P131: 0 | Q131: 4
K132: ○ (신규)전기실 배터리 교체(정류기반, 발전기 등) : 5,000,000원*1식 | L132: = | M132: =ROUNDUP(P132*Q132/1000,0) -> 5,000 | N132: ○ 전기실 노후 배터리 교체비 | P132: 5,000,000 | Q132: 1
K133: ○ (신규)매표 및 안내데스크 칸막이 및 스피커 설치 : 3,000,000원*1식 | L133: = | M133: 0 | N133: ○ 안전한 고객응대 근로자 환경 조성 칸막이 설치 | P133: 0 | Q133: 1
C134: 망마국민체육센터 수탁 대행사업 | H134: =H135+H201 -> 747,817 | I134: =I135+I201 -> 745,283 | J134: =H134-I134 -> 2,534
D135: 망마국민체육센터 운영 및 관리 | H135: =H136+H149 -> 677,961 | I135: =I136+I149 -> 673,743 | J135: 4,218
E136: 100 인건비 | H136: =H137 -> 126,328 | I136: =I137 -> 156,863 | J136: △30,535
F137: 101 인건비 | H137: =H138+H139 -> 126,328 | I137: =I138+I139 -> 156,863 | J137: △30,535
G138: 03 무기계약근로자보수 | H138: 0 | I138: 0 | J138: 0 | K138: 03 무기계약근로자보수(본부 일괄 편성) | M138: 0 | N138: ○ 수영강사 공무직 전환으로 본부 일괄 편성
G139: 04 기간제근로자보수 | H139: =M139 -> 126,328 | I139: 156,863 | J139: △30,535 | K139: 04 기간제근로자 보수(2024년 여수시 생활임금) | M139: =M140+M147 -> 126,328
K140: ○ 환경미화 기간제 근로자 인건비 | L140: = | M140: =SUM(M141:M146) -> 114,328 | N140: ○ 환경미화 기간제 근로자 인건비
K141: - 기본급 : 10,710원*8시간*3명*5일*52주 | L141: = | M141: =ROUND(P141*Q141*R141*S141*T141/1000,0) -> 66,830 | P141: 10,710 | Q141: 8 | R141: 3 | S141: 5 | T141: 52
K142: - 휴일근무수당 : 10,710원*8시간*150%*3명*52주 | L142: = | M142: =ROUND(P142*Q142*R142*S142*T142/1000,0) -> 20,049 | P142: 10,710 | Q142: 8 | R142: 1.5 | S142: 3 | T142: 52
K143: - 야간근무수당 : 10,710원*0.5시간*50%*3명*5일*52주 | L143: = | M143: =ROUND(P143*Q143*R143*S143*T143*U143/1000,0) -> 2,088 | P143: 10,710 | Q143: 0.5 | R143: 0.5 | S143: 3 | T143: 5 | U143: 52
K144: - 연차휴가수당 : 10,710원*8시간*3명*12일 | L144: = | M144: =ROUND(P144*Q144*R144*S144/1000,0) -> 3,084 | P144: 10,710 | Q144: 8 | R144: 3 | S144: 12
K145: - 주휴수당 : 10,710원*8시간*3명*52주 | L145: = | M145: =ROUND(P145*Q145*R145*S145/1000,0) -> 13,366 | P145: 10,710 | Q145: 8 | R145: 3 | S145: 52
K146: - 휴일전담 단시간근로자 인건비 : 10,710원*8시간*1명*2일*52주 | L146: = | M146: =ROUND(P146*Q146*R146*S146*T146/1000,0) -> 8,911 | P146: 10,710 | Q146: 8 | R146: 1 | S146: 2 | T146: 52
K147: ○ 아쿠아로빅 강사 인건비 | L147: = | M147: =M148 -> 12,000 | N147: ○ 아쿠아로빅 인건비
K148: - 아쿠아로빅 강사 인건비 : 1,000,000원*1명*12개월 | L148: = | M148: =ROUND(P148*Q148*R148/1000,0) -> 12,000 | P148: 1,000,000 | Q148: 1 | R148: 12
E149: 200 물건비 | H149: =H150 -> 551,633 | I149: =I150 -> 516,880 | J149: =H149-I149 -> 34,753 | M149: =M150+M201 -> 551,633
F150: 201 일반운영비 | H150: =M150 -> 551,633 | I150: =SUM(I151+I166+I181+I187+I191) -> 516,880 | J150: =H150-I150 -> 34,753 | M150: =M151+M166+M181+M187+M191 -> 551,633
G151: 01 사무관리비 | H151: =M151 -> 23,560 | I151: 25,660 | J151: =H151-I151 -> △2,100 | K151: 01 일반수용비 | M151: =SUM(M152:M165) -> 23,560
K152: ○ 한글,엑셀 등 소프트웨어구입비 : 670,000원*1식 | L152: = | M152: =ROUND(P152*Q152/1000,0) -> 670 | N152: ○ 컴퓨터 추가분 소프트웨어 구입 | P152: 670,000 | Q152: 1
K153: ○ 알약임대 : 26,000원*16대 | L153: = | M153: =ROUND(P153*Q153/1000,0) -> 416 | N153: ○ 컴퓨터(16대) 알약 임대 | P153: 26,000 | Q153: 16
K154: ○ 영수증 용지 구입 : 80,000원*6박스*2회(1박스/50롤) | L154: = | M154: =ROUND(P154*Q154*R154/1000,0) -> 960 | N154: ○ 수영장 영수증 용지 구입(친환경용지) | P154: 80,000 | Q154: 6 | R154: 2
K155: ○ 무인발매기 용지 구입 : 300,000원*2박스 | L155: = | M155: 600 | N155: ○ 무인발매기 용지 구입(친환경용지) | P155: 300,000 | Q155: 2
K156: ○ 종량제봉투(75L) 구입 : 1,800원*3개소*23일*12개월 | L156: = | M156: =ROUND(P156*Q156*R156*S156/1000,0) -> 1,490 | N156: ○ 쓰레기 종량제 봉투 구입 | P156: 1,800 | Q156: 3 | R156: 23 | S156: 12
K157: ○ 복사기 카트리지 구입 : 1,200,000원*3회 | L157: = | M157: 3,600 | N157: ○ 복사기 카트리지 구입 | P157: 1,200,000 | Q157: 3
K158: ○ 리플릿 및 현수막 제작 : 66,000원*2회*12개월 | L158: = | M158: =ROUND(P158*Q158*R158/1000,0) -> 1,584 | N158: ○ 리플릿 및 현수막 구입 | P158: 66,000 | Q158: 2 | R158: 12
K159: ○ 화장실 위생용품 구입 : 400,000원*12개월 | L159: = | M159: 4,800 | N159: ○ 화장실(롤화장지, 손세정제), 샤워장 위생용품(면봉 등) 구입 | P159: 400,000 | Q159: 12
K160: ○ 시설관리 청소용품 구입 : 100,000원*6개월*2회 | L160: = | M160: =ROUND(P160*Q160*R160/1000,0) -> 1,200 | N160: ○ 청소용품(밀대, 물걸레 등) 구입비 | P160: 100,000 | Q160: 6 | R160: 2
K161: ○ 소규모 전자제품, 소모품 구입 : 500,000원*4회 | L161: = | M161: 2,000 | N161: ○ 소규모 전자제품(짤순이, 드라이기 등) | P161: 500,000 | Q161: 4
K162: ○ 수영장 시설 용품 등 구입 : 200,000원*5회 | L162: = | M162: 1,000 | N162: ○ 탈의실 락커(키밴드, 자물쇠), 수영장 용품 | P162: 200,000 | Q162: 5
K163: ○ 탈의실 내부 락커 키밴드 , 자물쇠 등 구입 : 10,000원*100개 | L163: = | M163: 1,000 | N163: ○ 탈의실 락커 키밴드 등 구입비 | P163: 10,000 | Q163: 100
K164: ○ 다목적체육관 시설 용품 등 구입 : 200,000원*5회 | L164: = | M164: 1,000 | N164: ○ 다목적체육관(네트, 점수판등) 구입비 | P164: 200,000 | Q164: 5
K165: ○ 사무용품(복사용지 등) 구입 : 270,000원*12개월 | L165: = | M165: 3,240 | N165: ○ 사무용품(복사용지, 카트리지) 구입비 | P165: 270,000 | Q165: 12
G166: 11 지급수수료 | H166: =M166 -> 55,360 | I166: 63,933 | J166: =H166-I166 -> △8,573 | K166: 11 지급수수료 | M166: =SUM(M167:M180) -> 55,360 | P166: 50,000 | Q166: 10
K167: ○ (법정) 승강기 정기검사 수수료 : 130,000원*1회 | L167: = | M167: =ROUND(P167*Q167/1000,0) -> 130 | N167: ○ (법점) 승강기 정기검사 | P167: 130,000 | Q167: 1
K168: ○ (법정) 도시가스 시설 정기검사 수수료 : 210,000원*1회 | L168: = | M168: =ROUND(P168*Q168/1000,0) -> 210 | N168: ○ (법정) 도시가스 정기 검사 | P168: 210,000 | Q168: 1
K169: ○ (법정) 수영장 수질검사 수수료 : 50,000원*4회 | L169: = | M169: 200 | N169: ○ (법정) 수영장수 수질검사 / 연 4회 | P169: 50,000 | Q169: 4
K170: ○ (법정) 저수조 수질검사 수수료 : 60,000원*1회 | L170: = | M170: 60 | N170: ○ (법정) 저수조 수질검사 / 연 1회 | P170: 60,000 | Q170: 1
K171: ○ (법정) 기계실 저수조 청소 용역비 : 1,000,000원*2회 | L171: = | M171: 2,000 | N171: ○ 저수조 청소 용역(연2회) | P171: 1,000,000 | Q171: 2
K172: ○ (법정) 소방시설 정기 점검 용역비 : 1,000,000원*2회 | L172: = | M172: 2,000 | N172: ○ 소방시설 작동기능, 종합 점검 | P172: 1,000,000 | Q172: 2
K173: ○ (법정) 체육센터 내·외부 방역 용역비 : 300,000원*5회 | L173: = | M173: 1,500 | N173: ○ 체육시설 내 외부 방역(연5회) | P173: 300,000 | Q173: 5
K174: ○ (법정) 대기배출시설 자가측정 용역비 : 1,500,000원*1회 | L174: = | M174: 1,500 | N174: ○ (법정) 대기배출 자가 측정 / 연 1회 | P174: 1,500,000 | Q174: 1
K175: ○ 신용카드 결제대행수수료 : 2,000,000원*12개월 | L175: = | M175: 24,000 | N175: ○ 신용카드 결제대행수수료 | P175: 2,000,000 | Q175: 12
K176: ○ 밸런싱탱크 청소 용역비 : 500,000원*1회 | L176: = | M176: 500 | N176: ○ 밸런싱탱크 청소 용역비 | P176: 500,000 | Q176: 1
K177: ○ 승강기 유지관리 용역비 : 180,000원*12개월 | L177: = | M177: 2,160 | N177: ○ 승강기 유지관리 대행 용역비 | P177: 180,000 | Q177: 12
K178: ○ 수영조 내부 청소 용역비 : 2,000,000원*1식 | L178: = | M178: 2,000 | N178: ○ 수영조 내부 청소 용역비 | P178: 2,000,000 | Q178: 1
K179: ○ 통합회원관리 시스템 유지보수 용역비 : 1,200,000원*4회(분기별) | L179: = | M179: 4,800 | N179: ○ 망마수영장 회원관리 시스템 유지보수 용역비 | P179: 1,200,000 | Q179: 4
K180: ○ 수영장 바닥 청소 용역비 : 1,100,000원*13회 | L180: = | M180: 14,300 | N180: ○ 풀사이드 청소용역 / 연 12회 | P180: 1,100,000 | Q180: 13
G181: 13 임차료 | H181: =M181 -> 14,904 | I181: 5,112 | J181: =H181-I181 -> 9,792 | K181: 13 임차료 | M181: =SUM(M182:M186) -> 14,904
K182: ○ 공기청정기(4대) 임차 : 42,000원*4대*12회 | L182: = | M182: =ROUNDUP(P182*Q182*R182/1000,0) -> 2,016 | N182: ○ 공기청정기(4대) 임차 | P182: 42,000 | Q182: 4 | R182: 12
K183: ○ 정수기 임차(7대) : 50,000원*7대*12회 | L183: = | M183: =ROUNDUP(P183*Q183*R183/1000,0) -> 4,200 | N183: ○ 정수기 임차(7대) 임차 | P183: 50,000 | Q183: 7 | R183: 12
K184: ○ 무인경비 시스템 수수료 : 200,000원*12개월 | L184: = | M184: =ROUNDUP(P184*Q184/1000,0) -> 2,400 | N184: ○ 무인경비 시스템 수수료 | P184: 200,000 | Q184: 12
K185: ○ 비상안심벨 임차료 : 224,000원*12개월 | L185: = | M185: 2,688 | N185: ○ 비상벨(화장실) 임대 수수료 | P185: 224,000 | Q185: 12
K186: ○ (신규)CCTV 장비 임차료 : 300,000원*12개월 | L186: = | M186: 3,600 | N186: ○ CCTV 시스템 유지관리 및 장비 임대비용 | P186: 300,000 | Q186: 12
G187: 15 복리후생비 | H187: =M187 -> 6,860 | I187: 7,640 | J187: =H187-I187 -> △780 | K187: 15 복리후생비 | M187: =SUM(M188:M190) -> 6,860
K188: ○ 안전용품 등 구입 : 200,000원*4명 | L188: = | M188: =ROUNDUP(P188*Q188/1000,0) -> 800 | N188: ○ 안전용품(안전화, 장갑, 안전모 등) 구입비 | P188: 200,000 | Q188: 4
K189: ○ 구급함 및 비상약품구입비 : 300,000원*2회 | L189: = | M189: =ROUNDUP(P189*Q189*R189/1000,0) -> 600 | N189: ○ 의약품, 자가진단키트, 마스크 등 구입비 | P189: 300,000 | Q189: 2 | R189: 1
K190: ○ 수영강사 간식비 : 3,000원*5일*52주*7명 | L190: = | M190: =ROUNDUP(P190*Q190*R190*S190/1000,0) -> 5,460 | N190: ○ 수영강사(7명) 간식비 | P190: 3,000 | Q190: 5 | R190: 52 | S190: 7
G191: 21 공공요금 및 제세 | H191: =M191 -> 450,949 | I191: 414,535 | J191: =H191-I191 -> 36,414 | K191: 21 공공요금 및 제세 | M191: =SUM(M192:M200) -> 450,949
K192: ○ (법정) 도시가스사고배상책임보험 : 20,000원*1회 | L192: = | M192: =ROUNDUP(P192*Q192/1000,0) -> 20 | N192: ○ 연 1회 법정 책임보험 가입 | P192: 20,000 | Q192: 1
K193: ○ (법정) 승강기책임보험 : 35,000원*1회 | L193: = | M193: 35 | N193: ○ 연 1회 법정 책임보험 가입 | P193: 35,000 | Q193: 1
K194: ○ (법정) 주민세 : 260원*3,299㎡*1회 | L194: = | M194: =ROUNDUP(P194*Q194*R194/1000,0) -> 858 | N194: ○ 연 1회 법정 주민세(재산분) 납부 | P194: 260 | Q194: 3,299 | R194: 1
K195: ○ 비상안심벨 통신비 : 33,000원*12개월 | L195: = | M195: 396 | N195: ○ 화장실 비상안심벨 설치에 따른 통신비 | P195: 33,000 | Q195: 12
K196: ○ 도시가스 요금 : 16,000,000원*12개월 | L196: = | M196: =ROUNDUP(P196*Q196/1000,0) -> 192,000 | N196: ○ 24년도 이용객 증가, 요금의 단가 상승분 반영 | P196: 16,000,000 | Q196: 12
K197: ○ 상하수도 요금 : 14,500,000원*12개월 | L197: = | M197: =ROUNDUP(P197*Q197/1000,0) -> 174,000 | N197: ○ 24년도 이용객 증가, 요금의 단가 상승분 반영 | P197: 14,500,000 | Q197: 12
K198: ○ 전기요금 : 6,500,000원*12개월 | L198: = | M198: 78,000 | N198: ○ 24년도 이용객 증가, 요금의 단가 상승분 반영 | P198: 6,500,000 | Q198: 12
K199: ○ 통신요금 : 300,000원*12개월 | L199: = | M199: 3,600 | N199: ○ 전화기, 인터넷 통신요금 | P199: 300,000 | Q199: 12
K200: ○ 문자메세지 사용요금 : 170,000원*12개월 | L200: = | M200: 2,040 | N200: ○ 문자메시지 발송요금 | P200: 170,000 | Q200: 12
... 131 more rows

Sheet 환경자원사업소
A1: 다. 지출예산(세부사업) - 환경자원사업소 | M1: 단위 : 천원
A2: 구분 | B2: 사업 | E2: 편성목 | H2: 당년도예산액 (A) | I2: 전년도예산액 (B) | J2: 증 감 (A-B) | K2: 산 출 기 초
B3: 정책 | C3: 단위 | D3: 세부 | E3: 그룹 | F3: 목 | G3: 세목
A4: 총계(사업예산 + 자본예산) | H4: =H5+H177 -> 3,808,188 | I4: =I5+I177 -> 6,530,023 | J4: =H4-I4 -> △2,721,835
A5: 사업예산 | H5: =H6 -> 3,600,588 | I5: =I6 -> 4,423,582 | J5: =H5-I5 -> △822,994
B6: 환경대행사업 | H6: =H7 -> 3,600,588 | I6: =I7 -> 4,423,582 | J6: △822,994
C7: 도시형 폐기물 처리시설 수탁 대행사업 | H7: =H8+H118 -> 3,600,588 | I7: =I8+I118 -> 4,423,582 | J7: △822,994
D8: 도시형 폐기물 처리시설 운영 | H8: =H9 -> 788,376 | I8: =I9 -> 821,676 | J8: △33,300 | N8: 세부검토
E9: 200 물건비 | H9: =H10+H111+H115 -> 788,376 | I9: =I10+I111+I115 -> 821,676 | J9: =H9-I9 -> △33,300
F10: 201 일반운영비 | H10: =SUM(H11,H33,H63,H74,H87,H106) -> 775,416 | I10: =SUM(I11,I33,I63,I74,I87,I106) -> 808,716 | J10: =H10-I10 -> △33,300
G11: 01 사무관리비 | H11: =M11 -> 30,220 | I11: 40,170 | J11: =H11-I11 -> △9,950 | K11: [일반수용비] | M11: =M12+M17+M22+M24+M27+M31 -> 30,220 | O11: =SUM(O12:O32) -> 30,220
K12: ○ 사무용 잡품비 | M12: =SUM(M13:M16) -> 9,420 | N12: ○ 사무용품구입 | O12: =SUM(P13:P16) -> 9,420
K13: - 복사용지구입 : 23,000원*40박스 | L13: = | M13: =P13 -> 920 | N13: 복사용지(A4) 사용량 : 20박스 × 2회(상,하반기) | P13: =Q13*R13*S13 -> 920 | Q13: 23.0 | R13: 40 | S13: 1
K14: - 표준사무용품 : 50,000원*10명*3회 | L14: = | M14: =P14 -> 1,500 | N14: 표준사무용품(일근자 : 10명) × 3회 | P14: =Q14*R14*S14 -> 1,500 | Q14: 50.0 | R14: 10 | S14: 3
K15: - 사무실 위생 및 청소용품(세탁세제, 유연제, 화장지 등) : 500,000원*12월 | L15: = | M15: =P15 -> 6,000 | N15: 작업복 세탁관련(교대근무자 및 현장 근무자 : 35명) | P15: =Q15*S15 -> 6,000 | Q15: 500.0 | S15: 12
K16: - 전산소모 비품비(토너, 드럼, 잉크 등) : 100,000원*5대*2회 | M16: =P16 -> 1,000 | N16: 전산 소모품 : 칼라 프린트 잉크 및 토너(제어실4, 소장실1), 추가 인쇄비 | P16: =Q16*R16*S16 -> 1,000 | Q16: 100.0 | R16: 5 | S16: 2
K17: ○ 기타 수용비 | L17: = | M17: =SUM(M18:M21) -> 6,300 | O17: =SUM(P18:P21) -> 6,300
K18: - 범용 S/W 구입 및 리스료 (캐드, 엑셀, 알약 등) : 3,000,000원*1회 | L18: = | M18: =P18 -> 3,000 | N18: ○ 범용 S/W 구입(엑셀13, 알약13, 캐드 등) | P18: =Q18*R18 -> 3,000 | Q18: 3,000.0 | R18: 1
K19: - 기술서적 및 업무용자료 구입 등 : 100,000원*2권*4회 | L19: = | M19: =P19 -> 800 | N19: 물가자료 등 구매 | P19: =Q19*R19*S19 -> 800 | Q19: 100.0 | R19: 2 | S19: 4
K20: - 컴퓨터수리비 : 100,000원*15대*1회 | L20: = | M20: =P20 -> 1,500 | N20: 컴퓨터 수리비 (사무실11, 소장실1, 제어실10, 계근대2) | P20: =Q20*R20*S20 -> 1,500 | Q20: 100.0 | R20: 15 | S20: 1
K21: - 무전기 수리(소각,바이오,기술,관리) : 500,000원 * 2대 | L21: = | M21: =P21 -> 1,000 | N21: 무전기 수리(36대) : 500,000 × 2회(상,하반기) | P21: =Q21*R21 -> 1,000 | Q21: 500.0 | R21: 2
K22: ○ 유인물인쇄 | M22: =SUM(M23:M23) -> 1,500 | N22: ○ 유인물 인쇄 | O22: =SUM(P23:P23) -> 1,500
K23: - 도면복사 / 제본,사진인화 등 : 30,000원*5종*10회 | L23: = | M23: =P23 -> 1,500 | N23: 제본, 사진인화 관련 | P23: =Q23*R23*S23 -> 1,500 | Q23: 30.0 | R23: 5 | S23: 10
K24: ○ 시설 홍보관련 | M24: =SUM(M25:M26) -> 5,000 | N24: ○ 시설관련 | O24: =SUM(P25:P26) -> 5,000
K25: - 견학 기념품 제작 : 10,000원*300개 | L25: = | M25: =P25 -> 3,000 | N25: 도시형폐기물 견학자 기념품 제작 | P25: =Q25*R25*S25 -> 3,000 | Q25: 10.0 | R25: 300 | S25: 1
K26: - 현수막, 간판 등의 제작비 : 2,000,000원*1식 | L26: = | M26: =P26 -> 2,000 | N26: 안전, 화재 등 현수막 제작 | P26: 2,000 | Q26: 2,000.0 | R26: 1 | S26: 1
K27: ○ 기타 소모성 물품 구입 | M27: =SUM(M28:M30) -> 6,000 | N27: ○ 기타 운영비품 | O27: =SUM(P28:P30) -> 6,000
K28: - 중앙제어실, 홍보실 비품 구입 : 1,000,000원*2회 | L28: = | M28: =P28 -> 2,000 | N28: 중앙제어실, 홍보실 비품 구입 | P28: =Q28*S28 -> 2,000 | Q28: 1,000.0 | S28: 2
K29: - 재난 예방 관련 물품 구입 : 1,000,000원*1회 | L29: = | M29: 1,000 | N29: 재난대비 훈련관련 등 물품 구매 | P29: =Q29*R29 -> 1,000 | Q29: 1,000.0 | R29: 1.00
K30: - 소방시설 유지보수 관련 물품 구매 : 1,500,000원*2회 | L30: = | M30: 3,000 | N30: 소방시설 보수관련 물품 교체(노후화, 사용기한 등) | P30: =Q30*R30 -> 3,000 | Q30: 1,500.0 | R30: 2.00
K31: ○ 소각, 바이오, 폐수 운영비품 구입 | M31: =SUM(M32:M32) -> 2,000 | N31: ○ 소각시설 운영비품 | O31: =SUM(P32:P32) -> 2,000
K32: - 소규모 비품 구입 : 500,000원* 4회 | L32: = | M32: =P32 -> 2,000 | N32: 100만원 이하 소모품 구매(수중펌프 등) | P32: =Q32*R32*S32 -> 2,000 | Q32: 500.0 | R32: 1 | S32: 4
G33: 11 지급수수료 | H33: =M33 -> 514,560 | I33: 557,272 | J33: =H33-I33 -> △42,712 | M33: =M34+M41+M48+M59+M62 -> 514,560 | O33: =SUM(O34:O62) -> 514,560
K34: ○ 업무대행 수수료 | M34: =SUM(M35:M40) -> 123,700 | N34: ○ 전문기관 용역(법정 용역) | O34: =SUM(P35:P40) -> 123,700
K35: - 작업환경 측정(특수건강검진 관련) : 3,600,000원*2회(상,하반기) | L35: = | M35: =P35 -> 7,200 | N35: 산업안전보건법 제42조(작업환경측정등)제4항 관련, 2회/년 | P35: =Q35*S35 -> 7,200 | Q35: 3,600.0 | S35: 2
K36: - 소방시설 검사(작동기능, 종합점검) : 2,000,000원*2회 | L36: = | M36: 4,000 | N36: 『소방시설설치유지 및 안전관리에 관한 법률』제25조 관련(작동기능점검, 종합정밀점검) | P36: 4,000 | Q36: 2,000.0 | S36: 2
K37: - 대기 자가측정(TMS 전송항목 5종, 미전송 30종) : 41,000,000원*1식 | L37: = | M37: 41,000 | N37: 환경오염시설의 통합관리에 관한 법률 제31조(자가측정) 관련 | P37: 41,000 | Q37: 41,000.0 | S37: 1
K38: - 악취측정(복합악취, 지정악취) : 25,300,000원*1식 | L38: = | M38: 25,300 | N38: 악취 측정( 배출구 및 부지경계 10지점, 지정악취 22종 등) | P38: 25,300 | Q38: 25,300.0 | S38: 1
K39: - CleanSYS(TMS) 정기점검 : 3,600,000원*12월 | L39: = | M39: 43,200 | N39: 대기환경보전법 제32조(측정기기의 부착 등) 4항 관련, 1회/월 | P39: 43,200 | Q39: 3,600.0 | S39: 12
K40: - 승강기 정기정검 : 250,000원*12월 | L40: = | M40: 3,000 | N40: 승강기시설 안전관리법 제17조(승강기의 자체점검) 1함 및 4항 관련, 1회/월 | P40: 3,000 | Q40: 250.0 | S40: 12
K41: ○ 법정검사 수수료 | M41: =SUM(M42:M47) -> 30,160 | N41: ○ 법정검사 수수료
K42: - 전기 수용설비 법정검사(1회/3년) : 2,000,000원*1회 | L42: = | M42: =P42 -> 2,000 | N42: 전기안전관리법 11조에 따른 전기설비 필수 법정검사(1회/3년) | O42: =SUM(P42:P47) -> 30,160 | P42: =Q42*S42 -> 2,000 | Q42: 2,000.0 | S42: 1
K43: - CleanSYS(TMS) 정도검사 : 6,1000,000원*1회 | L43: = | M43: =P43 -> 6,100 | N43: 환경분야 시험ㆍ검사 등에 관한 법률 제11조(측정기기의 정도검사) 제1항 및 4항, 제30조(수수료) 1항 관련 | P43: =Q43*R43 -> 6,100 | Q43: 6,100.0 | R43: 1
K44: - 다이옥신(대기, 수질) 검사 : 6,500,000원*2회 | L44: = | M44: =P44 -> 13,000 | N44: 잔류성유기오염물질관리법 제19조(잔류성유기오염물질의 측정) 및 동법 시행규칙 제14조 관련 | P44: =Q44*R44 -> 13,000 | Q44: 6,500.0 | R44: 2
K45: - 음식물폐기물처리시설(혐기성분해) 정기검사 : 4,000,000원*1회 | L45: = | M45: =P45 -> 4,000 | N45: 폐기물처리시설의 검사수수료 국립환경과학원고시 제2022-13호 | P45: =Q45*R45 -> 4,000 | Q45: 4,000.0 | R45: 1
K46: - 기타(보일러,압력용기,호이스트 등) : 5,000,000원*1회 | L46: = | M46: =P46 -> 5,000 | N46: 산업안전보건법 제36조(안전검사) 1항 관련 | P46: =Q46*R46 -> 5,000 | Q46: 5,000.0 | R46: 1
K47: - 차량(지게차 등) 정기검사 : 60,000원 *1대 | L47: = | M47: =P47 -> 60 | P47: =Q47*R47 -> 60 | Q47: 60.0 | R47: 1
K48: ○ 기타 수수료 | M48: =SUM(M49:M58) -> 346,420 | N48: ○ 기타용역 제공에 대한 수수료
K49: - 폐수처리분담금 : 20,000,000원/월 * 12개월 | L49: = | M49: =P49 -> 240,000 | N49: 「자원순환기본법」제21조 의거 | O49: =SUM(P49:P58) -> 346,420 | P49: =Q49*S49 -> 240,000 | Q49: 20,000.0 | S49: 12
K50: - 반입폐기물(바닥재 포함) 성상분석 : 3,600,000원*12회(월) | L50: = | M50: =P50 -> 43,200 | N50: 에너지 회수 및 온실가스 관련 분석(반입폐기물 성상분석 등), 1회/월 | P50: =Q50*R50 -> 43,200 | Q50: 3,600.0 | R50: 12
K51: - 비점오염원, 식수분석(먹는물기준) | L51: = | M51: 4,000 | N51: (우수)비점오염원 관리규정, 식수(먹는물기준 준수, 2회/년) | P51: =Q51*R51*S51 -> 4,000 | Q51: 500.0 | R51: 1 | S51: 8
K52: - 유입 / 방류수 수질분석 | L52: = | M52: 10,800 | N52: 바이오 및 폐수 운영관련 | P52: =Q52*R52*S52+3000 -> 10,800 | Q52: 650.0 | R52: 1 | S52: 12
K53: - 기타 공정(소화액 외 5) 수질분석 | L53: = | M53: 22,800 | N53: 바이오시설 운영관련 | P53: =Q53*R53*S53 -> 22,800 | Q53: 1,900.0 | R53: 1 | S53: 12
K54: - 자원 순환법(에너지 회수)관련 검교정 : 1,000,000원 *1회*15지점 | L54: = | M54: 15,000 | N54: 자원순환법 에너지 회수 부분관련 자료(측정기기는 1년 1회이상 검교정 실시) | P54: =Q54*R54*S54 -> 15,000 | Q54: 1,000.0 | R54: 1 | S54: 15
K55: - 전기안전관리자 직무고시 관련 계측장비 검교정 : 100,000원 *1회* 6EA | L55: = | M55: 600 | N55: 전기안전관리자의 직무에 관한 고시 제9조(계측장비 교정 등)(1회/1년) | P55: =Q55*R55*S55 -> 600 | Q55: 100.0 | R55: 1 | S55: 6
K56: - 병해충 방역 : 550,000원*6월 | L56: = | M56: 3,300 | N56: 병해충 방역(사무실, 제어실, 식당 등) | P56: =Q56*S56 -> 3,300 | Q56: 550.0 | S56: 6
K57: - 냉온수기 소독 : 15,000원* 월/1회(4EA) | L57: = | M57: 720 | N57: 냉온수기(주민감시실, 바이오, 계근대, 크레인실) 소독 및 청소 | P57: =Q57*T57*S57 -> 720 | Q57: 15.0 | S57: 4 | T57: 12
K58: - 환경정비(예초 등) : 2,000,000원*3회 | L58: = | M58: 6,000 | N58: 도시형폐기물 내 예초작업(3회) | P58: =Q58*T58 -> 6,000 | Q58: 2,000.0 | T58: 3
K59: ○ 시설(시스템) 유지 관리 | M59: =SUM(M60:M61) -> 13,680 | N59: ○ 시설(시스템) 유지 관리 | O59: =SUM(P60:P61) -> 13,680
K60: - 설비운영지원시스템(관리시스템) : 1,100,000원*12월 | L60: = | M60: =P60 -> 13,200 | N60: 설비운영지원시스템 도입 | P60: =Q60*S60 -> 13,200 | Q60: 1,100.0 | S60: 12
K61: - 근태관리(관리프로그램) : 40,000원*12월 | L61: = | M61: =P61 -> 480 | N61: 근태관리 프로그램(지문) | P61: =Q61*S61 -> 480 | Q61: 40.0 | S61: 12
K62: ○ 공개입찰(나라장터) 수수료 등 : 100,000원*6월 | L62: = | M62: =O62 -> 600 | N62: ○ 나라장터 물품구매 수수료 | O62: =P62 -> 600 | P62: =Q62*R62*S62 -> 600.0 | Q62: 100 | R62: 1 | S62: 6
G63: 13 임차료 | H63: =O63 -> 34,000 | I63: 26,224 | J63: =H63-I63 -> 7,776 | M63: =SUM(M64,M69,M72) -> 34,000 | O63: =SUM(O64:O73) -> 34,000
K64: ○ 렌트비용 | M64: =SUM(M65:M68) -> 7,200 | N64: ○ 렌트비용 | O64: =SUM(P65:P68) -> 7,200
K65: - 얼음정수기(2대) 렌트비용 : 70,000*2대*12월 | L65: = | M65: =P65 -> 1,680 | N65: 탕비실, 제어실 | P65: =Q65*R65*S65 -> 1,680 | Q65: 70.0 | R65: 2 | S65: 12
K66: - 비데 렌트비용 : 20,000원*6대*12월 | L66: = | M66: =P66 -> 1,440 | N66: 비데(화장실3곳) | P66: =Q66*R66*S66 -> 1,440 | Q66: 20.0 | R66: 6 | S66: 12
K67: - 복합기 렌트비용 : 140,000원*2대*12월 | L67: = | M67: 3,360 | N67: 복합기(사무실, 계근대) | P67: 3,360 | Q67: 140.0 | R67: 2 | S67: 12
K68: - 크레인근무자 근골격계 예방 관련 기구 렌트비용 : 60,000원*1대*12월 | L68: = | M68: 720 | N68: 산업안전보건위원회 요청사항(크레인 근무자 근골격계 예방 수립) | P68: 720 | Q68: 60.0 | R68: 1 | S68: 12
K69: ○ 장비임대료 | M69: =SUM(M70:M71) -> 14,800 | N69: ○ 장비임대료 | O69: =SUM(P70:P71) -> 14,800
K70: - 준설(정화조 및 비점오염원 등) : 2,200,000원*6회 | L70: = | M70: =P70 -> 13,200 | N70: 슬러지 준설(약품탱크, 비점오염원 퇴적물 등) | P70: =Q70*S70 -> 13,200 | Q70: 2,200.0 | S70: 6
K71: - 중장비 임대료(지게차, 굴삭기 등) : 800,000원*2회 | L71: = | M71: =P71 -> 1,600 | N71: 시설운영관련 중장비 임대(지게차(5톤이상), 굴삭기 등) | P71: =Q71*S71 -> 1,600 | Q71: 800.0 | S71: 2
K72: ○ 업무용 차량임차료(렌터카) | M72: =O72 -> 12,000 | N72: ○ 차량유지비 | O72: =SUM(P73:P73) -> 12,000
K73: - 차량임대비 : 1,000,000원*1대*12월 | L73: = | M73: =P73 -> 12,000 | N73: 공영차량 운영(니로) | P73: =Q73*R73*S73 -> 12,000 | Q73: 1,000.0 | R73: 1 | S73: 12
G74: 15 복리후생비 | H74: =O74 -> 65,840 | I74: 54,360 | J74: =H74-I74 -> 11,480 | M74: =SUM(M75,M79,M84,M85) -> 65,840 | O74: =SUM(O75:O86) -> 65,840
K75: ○ 피복구입비 | M75: =SUM(M76:M78) -> 24,360 | N75: ○ 피복구입 | O75: =SUM(P76:P78) -> 24,360
K76: - 동복(방한복) : 130,000원*42명*2벌*1회 | L76: = | M76: =P76 -> 10,920 | N76: 동복 지급(2벌) | P76: =Q76*R76*S76*T76 -> 10,920 | Q76: 130.0 | R76: 42 | S76: 2 | T76: 1
K77: - 하복(작업조끼) 등 : 80,000원*42명*2벌*1회 | L77: = | M77: =P77 -> 6,720 | N77: 하복 지급(2벌) | P77: =Q77*R77*S77*T77 -> 6,720 | Q77: 80.0 | R77: 42 | S77: 2 | T77: 1
K78: - 춘,추복 등 : 80,000원*42명*2벌*1회 | L78: = | M78: =P78 -> 6,720 | N78: 춘추복 지급(2벌) | P78: =Q78*R78*S78*T78 -> 6,720 | Q78: 80.0 | R78: 42 | S78: 2 | T78: 1
K79: ○ 개인 안전장구 구입비 | M79: =SUM(M80:M83) -> 35,580 | N79: ○ 개인안전 장구 구입 | O79: =SUM(P80:P83) -> 35,580
K80: - 안전모, 안전화, 작업화 등 : 100,000원*42명*2회 | L80: = | M80: =P80 -> 8,400 | N80: 안전화, 안전모 지급(2회/년) | P80: =Q80*R80*S80 -> 8,400 | Q80: 100.0 | R80: 42 | S80: 2
K81: - 계절 안전용품(보안경, 헤드렌턴, 쿨토시, 넥워머) 등 : 50,000원*42명*2회 | L81: = | M81: =P81 -> 4,200 | N81: 안전용품 지급(정기유지보수 및 계절별 지급) | P81: =Q81*R81*S81 -> 4,200 | Q81: 50.0 | R81: 42 | S81: 2
K82: - 안전용품(방독마스크 및 필터, 방진복) 등 : 20,000원*42명*12회 | L82: = | M82: =P82 -> 10,080 | N82: 유해가스(바이오, 폐수) 및 비산먼지 제거용 마스크, 방진복 지급(매월) | P82: =Q82*R82*S82 -> 10,080 | Q82: 20.0 | R82: 42 | S82: 12
K83: - 안전장갑(면, 반코팅, 완코팅) 등 : 1,290,000원*10회 | L83: = | M83: =P83 -> 12,900 | N83: 면/반코팅(15일/월), 완코팅(30일/월) 지급 | P83: =Q83*S83 -> 12,900 | Q83: 1,290.0 | S83: 10
K84: ○ 구급약품 등 구입 : 250,000원*2회 | L84: = | M84: =O84 -> 500 | N84: 정비기간 구급 및 기타 약품 구입(상/하반기) | O84: =Q84*R84 -> 500 | Q84: 250 | R84: 2
K85: ○ 야간근무자 급량비 | M85: =SUM(M86:M86) -> 5,400 | N85: ○ 급량비 | O85: =P86 -> 5,400
K86: - 9,000원*5명*10일*12개월 | L86: = | M86: =P86 -> 5,400 | N86: 시간외근무자 급식비 지급 | P86: =Q86*R86*S86*T86 -> 5,400 | Q86: 9.0 | R86: 5 | S86: 10 | T86: 12
G87: 21 공공요금 및 제세 | H87: =O87 -> 128,696 | I87: 124,264 | J87: =H87-I87 -> 4,432 | M87: =SUM(M88:M94,M97,M99,M102) -> 128,696 | O87: =SUM(O88:O105) -> 128,696
K88: ○ 우편요금 : 3,000원*10건*12월 | L88: = | M88: =P88 -> 360 | N88: 계약관련 문서 등기발송(협력업체) | O88: =SUM(P88:P93) -> 3,996 | P88: =Q88*R88*S88 -> 360 | Q88: 3.0 | R88: 10 | S88: 12
K89: ○ 일반전화 및 인터넷 요금 : 60,000원*3회선*12월 | L89: = | M89: 2,160 | N89: 인터넷 3회선(TMS실, 사무실, 계근대시설) | P89: =Q89*R89*S89 -> 2,160 | Q89: 60.0 | R89: 3 | S89: 12
K90: ○ 택배비 : 5,000원*3회*12월 | L90: = | M90: 180 | N90: 물품 및 검교정 등 발송 | P90: =Q90*R90*S90 -> 180 | Q90: 5.0 | R90: 3 | S90: 12
K91: ○ 업무용 무선장비 전파 사용료 : 11,000원*36대*1회 | L91: = | M91: 396 | N91: 『전파법』제67조(전파사용료)에 의거 무전기 전파 사용료 납부(36대) | P91: =Q91*R91*S91 -> 396 | Q91: 11.0 | R91: 36 | S91: 1
K92: ○ 공증 및 각종 제증명발급/등기수수료 등 : 50,000원*12월 | L92: = | M92: 600 | P92: =Q92*S92 -> 600 | Q92: 50.0 | S92: 12
K93: ○ 주민세 | L93: = | M93: 300 | N93: 주민세 사업소분 | P93: =Q93*R93 -> 300 | Q93: 300.0 | R93: 1
K94: ○ 협회비 | M94: =SUM(M95:M96) -> 800 | N94: ○ 협회비 | O94: =SUM(P95:P96) -> 800
K95: - 산업안전관리협회 외 : 500,000원*1회 | L95: = | M95: =P95 -> 500 | N95: 산업안전관리 협회 등록 | P95: =Q95*R95 -> 500 | Q95: 500.0 | R95: 1
K96: - 기타협회비(전국 생활폐기물 자원회수 운영협회) : 300,000원*1회 | L96: = | M96: =P96 -> 300 | N96: 전국 생활폐기물 자원회수시설 운영협회(소장단) | P96: =Q96*R96 -> 300 | Q96: 300.0 | R96: 1
K97: ○ 환경책임보험료 | M97: =SUM(M98) -> 8,000 | N97: ○ 환경책임보험료 | O97: =SUM(P98) -> 8,000
K98: - 환경책임보험 갱신(소각시설) : 8,000,000원*1회 | L98: = | M98: =P98 -> 8,000 | N98: 「환경오염피해배상책임 및 구제에 관한 법률」제17조 의거 환경책임보험의무 가입 | P98: =Q98*R98 -> 8,000 | Q98: 8,000.0 | R98: 1
K99: ○ 폐기물처분 분담금 | M99: =SUM(M100:M101) -> 115,200 | N99: ○ 폐기물처분 분담금 | O99: =SUM(P100:P101) -> 115,200 | Q99: 발생량 | R99: 요율 | S99: 산정지수
K100: - 소각재,안정화재(소각시설) : 7,200톤/년 * 10,000원/톤 *산정지수(1.2) | L100: = | M100: =P100 -> 86,400 | N100: 「자원순환기본법」제21조 의거 | P100: =Q100*R100*S100 -> 86,400 | Q100: 7,200.0 | R100: 10 | S100: 1.2000
K101: - 오니(폐수처리, 바이오시설) :960톤/년 * 25,000원/톤 *산정지수(1.2) | L101: = | M101: =P101 -> 28,800 | N101: 「자원순환기본법」제21조 의거 | P101: =Q101*R101*S101 -> 28,800 | Q101: 960.0 | R101: 25 | S101: 1.2000
K102: ○ 차량유지 공공요금(지게차) | M102: =SUM(M103:M105) -> 700 | N102: ○ 차량유지 공공요금(지게차) | O102: =SUM(P103:P105) -> 700
K103: - 자동차세 : 100,000원*1대*1회 | L103: = | M103: =P103 -> 100 | N103: 지게차 자동차세(1회/년) | P103: =Q103*R103*S103 -> 100 | Q103: 100.0 | R103: 1 | S103: 1
K104: - 환경개선부담금 : 150,000원*1대*2회 | L104: = | M104: =P104 -> 300 | N104: 경유차량 환경개선부담금(2회/년) | P104: =Q104*R104*S104 -> 300 | Q104: 150.0 | R104: 1 | S104: 2
K105: - 차량(지게차)보험료 : 300,000원*1회 | L105: = | M105: =P105 -> 300 | N105: 지게차 보험료 | P105: =Q105*R105*S105 -> 300 | Q105: 300.0 | R105: 1 | S105: 1
G106: 22 차량선박비 | H106: =M106 -> 2,100 | I106: 6,426 | J106: =H106-I106 -> △4,326 | M106: =M107 -> 2,100 | O106: =SUM(P108:P110) -> 2,100
K107: ○ 차량(렌터카, 지게차) 유지비 | M107: =SUM(M108:M110) -> 2,100 | N107: ○ 차량선박비(렌터카, 지게차)
K108: - 차량유지비(세차, 소모품, 엔진오일 등) : 300,000원*1대*2회 | L108: = | M108: =P108 -> 600 | N108: 소모품(엔진오일 등) 교체 | P108: =Q108*R108*S108 -> 600 | Q108: 300.0 | R108: 1 | S108: 2
K109: - 차량유류비 : 30리터/(지게차)*1,700원*10회 | L109: = | M109: =P109 -> 510 | N109: 연료(경유) 구입 | P109: =Q109*R109*S109*T109 -> 510 | Q109: 1.7 | R109: 1 | S109: 10 | T109: 30
K110: - 전기차량충전비 : 1.5만km/년*66원/km | L110: = | M110: =P110 -> 990 | N110: 급속충전 | P110: =Q110*R110*S110*T110 -> 990 | Q110: 0.1 | R110: 1 | S110: 1 | T110: 15,000
F111: 202 여비 | H111: =H112 -> 7,440 | I111: =I112 -> 7,440 | J111: =H111-I111 -> 0
G112: 01 국내여비 | H112: =O112 -> 7,440 | I112: 7,440 | J112: =H112-I112 -> 0 | M112: =SUM(M113:M114) -> 7,440 | O112: =SUM(P113:P114) -> 7,440
K113: ○ 관내 여비 : 20,000원*4명*5일*12월 | L113: = | M113: =P113 -> 4,800 | N113: ○ 사규(여비규정) 관련-시기준 | P113: =Q113*R113*S113*T113 -> 4,800 | Q113: 20.0 | R113: 4 | S113: 5 | T113: 12
K114: ○ 관외 여비 :110,000원*4명*3일*2회 | L114: = | M114: =P114 -> 2,640 | N114: 관내 : 출장여비(자차 4시간-2만/관용 4시간-1만원), 관외 : 일비+식비+숙박비(85,000원) | P114: =Q114*R114*S114*T114 -> 2,640 | Q114: 110.0 | R114: 4 | S114: 3 | T114: 2
F115: 217 관서업무비 | H115: =H116 -> 5,520 | I115: =I116 -> 5,520 | J115: =H115-I115 -> 0 | O115: =SUM(O116:O117) -> 5,520
G116: 02 부서업무비 | H116: =M116 -> 5,520 | I116: 5,520 | J116: =H116-I116 -> 0 | M116: =M117 -> 5,520 | O116: =P117 -> 5,520 | Q116: 기본액(30명기준) | S116: 월 | T116: 추가금액 | U116: 추가명 | V116: 월
K117: ○ 부서운영업무비 : (400,000원*12월)+(5,000원*12명*12월) | L117: = | M117: =P117 -> 5,520 | N117: 부서업무비 : 30인 이하(350천원),1명추가시(5,000천원/월) | P117: =(Q117*S117)+(T117*U117*V117) -> 5,520 | Q117: 400.0 | S117: 12 | T117: 5 | U117: 12 | V117: 12
D118: 도시형 폐기물 처리시설 유지보수 | H118: =H119 -> 2,812,212 | I118: =I119 -> 3,601,906 | J118: =H118-I118 -> △789,694
E119: 200 물건비 | H119: =H120+H140+H167+H138 -> 2,812,212 | I119: =I120+I138+I140+I167 -> 3,601,906 | J119: =H119-I119 -> △789,694
F120: 206 재료비 | H120: =H121 -> 612,612 | I120: =I121 -> 625,233 | J120: =H120-I120 -> △12,621
G121: 02 약품비 | H121: =O121 -> 612,612 | I121: 625,233 | J121: =H121-I121 -> △12,621 | M121: =SUM(M122:M137) -> 612,612 | O121: =SUM(P122:P137) -> 612,612
K122: ○ 요소수(40%) : 520원*312.5kg*320일 | L122: = | M122: =P122 -> 52,000 | N122: ○ 요소수 : '24 계약단가(550원), 일평균사용량(313kg) -'24년 견적가(520원) | P122: =Q122*R122*S122 -> 52,000.0 | Q122: 0.520 | R122: 313 | S122: 320
K123: ○ 소석회슬러리 : 81.4원*5,625kg*320일 | L123: = | M123: 146,520 | N123: ○ 소석회슬러리 : '24 계약단가(63.79원), 일평균사용량(5,625kg) -'24년 견적가(81.4원) | P123: =Q123*R123*S123 -> 146,520.0 | Q123: 0.081 | R123: 5,625 | S123: 320
K124: ○ 활성탄(소각) : 2,850원*55kg*320일 | L124: = | M124: 57,000 | N124: ○ 활성탄 : '24 계약단가(2,416원), 일평균사용량(63kg) -'24년 견적가(2,850원) | P124: 57,000.0 | Q124: 2.850 | R124: 63 | S124: 320
K125: ○ 탈취제(반입장) : 2,800원*7L*365일 | L125: = | M125: 7,154 | N125: ○ 탈취제 : '24 계약단가(2,554원), 일평균사용량(6L) -'24년 견적가(2,500원) | P125: 7,154.0 | Q125: 2.800 | R125: 7 | S125: 365
K126: ○ 청관제 : 4,100원*3.5kg*320일 | L126: = | M126: 4,592 | N126: ○ 청관제 : '24 계약단가(2,980원), 일평균사용량(3.5kg) -'24년 견적가(4,000원) | P126: 4,592.0 | Q126: 4.100 | R126: 4 | S126: 320
K127: ○ 탈산제 : 4,000원*3.5kg*320일 | L127: = | M127: 4,480 | N127: ○ 탈산제 : '24 계약단가(3,091원), 일평균사용량((3.5kg) -'24년 견적가4,100원) | P127: 4,480.0 | Q127: 4.000 | R127: 4 | S127: 320
K128: ○ 부식방지제 : 5,000원*1.0kg*320일 | L128: = | M128: 1,600 | N128: ○ 부식방지제 : '24 계약단가(4,416원), 일평균사용량(1L) -'24년 견적가(5,000원) | P128: 1,600.0 | Q128: 5.000 | R128: 1 | S128: 320
K129: ○ 고형화제(킬레이트) : 1,800원*168kg/일*320일 | L129: = | M129: 96,768 | N129: ○ 킬레이트 : '24 계약단가(1,914원), 일평균사용량(168L) -'24년 견적가(1,760원) | P129: 96,768.0 | Q129: 1.800 | R129: 168 | S129: 320
K130: ○ 암모니아수(9%) : 470원/kg*190L*320일 | L130: = | M130: 28,576 | N130: ○ 암모니아수 : '24 계약단가(386원), 일평균사용량(188L) -'24년 견적가(470원) | P130: 28,576.0 | Q130: 0.470 | R130: 190 | S130: 320
K131: ○ 가성소다(4.5%) : 190원*60L*360일 | L131: = | M131: 4,104 | N131: ○ 가성소다 : '24 계약단가(145원), 일평균사용량(56L) -'24년 견적가(188원) | P131: 4,104.0 | Q131: 0.190 | R131: 60 | S131: 360
K132: ○ 응집제(응집보조제 포함) : 4,100원*114kg*360일 | L132: = | M132: 168,264 | N132: ○ 응집제 : '24 계약단가(2,525원), 일평균사용량(110kg) -'24년 견적가(4,092원) | P132: 168,264.0 | Q132: 4.100 | R132: 114 | S132: 360
K133: ○ 소포제(폐수) : 3,200원*9kg/일*360일 | L133: = | M133: 10,368 | N133: ○ 소포제 : '24 계약단가(2,721원), 일평균사용량(8.3kg) -'24년 견적가(3,125원) | P133: =Q133*R133*S133 -> 10,368.0 | Q133: 3.200 | R133: 9 | S133: 360
K134: ○ 황산(9%) : 280원*60L/일*360일 | L134: = | M134: 6,048 | N134: ○ 황산 : '24 계약단가(220원), 일평균사용량(56L) -'24년 견적가(275원) | P134: =Q134*R134*S134 -> 6,048.0 | Q134: 0.280 | R134: 60 | S134: 360
K135: ○ 구연산 : 2,500원*15kg*360일 | L135: = | M135: 13,500 | N135: ○ 구연산 : '24년 계약단가(2,099원), 일평균사용량(14kg) -'24년 견적가(2,500원) | P135: =Q135*R135*S135 -> 13,500.0 | Q135: 2.500 | R135: 15 | S135: 360
K136: ○ 차아염소산나트륨(12%) :700원*45L*360일 | L136: = | M136: 11,340 | N136: ○ 차염 : '24년 계약단가(583원), 일평균사용량(42L) -'24년 견적가(688원) | P136: =Q136*R136*S136 -> 11,340.0 | Q136: 0.700 | R136: 45 | S136: 360
K137: ○ 기타 약품(염화제2철, 살충제 등) : 400원*5kg*150일 | L137: = | M137: 298 | N137: ○ 운영 시 Test 약품 (염화제2철 등), 일평균사용량(12kg)예상 -'24년 견적가(375원) | P137: 298.0 | Q137: 0.400 | R137: 5 | S137: 149
F138: 207 연구개발비 | H138: =H139 -> 12,000 | I138: =I139 -> 21,000 | J138: =H138-I138 -> △9,000 | O138: =O139 -> 12,000
G139: 03 시험연구비 | H139: =M139 -> 12,000 | I139: 21,000 | J139: =H139-I139 -> △9,000 | K139: ○ 실험실 운영물품(실험 분석키트 및 소모자재) 구입 : 2,000,000원*6종 | L139: = | M139: 12,000 | N139: ○ 실험 분석키트 : T-N, COD 등 6종 및 소모자재 : 비커, 피펫 등 | O139: =P139 -> 12,000 | P139: =Q139*R139 -> 12,000.00 | Q139: 2,000.0 | R139: 6
F140: 214 수선유지교체비 | H140: =H141 -> 1,289,180 | I140: =I141 -> 2,187,850 | J140: =H140-I140 -> △898,670
G141: 05 수선유지비 | H141: =M141 -> 1,289,180 | I141: 2,187,850 | J141: =H141-I141 -> △898,670 | M141: =SUM(M142,M144,M146,M148,M150,M151,M152,M153,M156,M162,M164,M165) -> 1,289,180 | O141: =SUM(O142:O166) -> 1,289,180
K142: ○ 소각시설물 정기 수선유지비(시설투자비의 0.5% 적용) | M142: =M143 -> 179,000 | N142: ○ 보수 및 운영비 | O142: =SUM(P143) -> 179,000
K143: - 35,889,672,000원*0.5%(12개월) | L143: = | M143: =P143 -> 179,000 | N143: 소각시설 설치 운영지침 해설서(201210최종본) : 유지관리비 산출내역 참조 | P143: =ROUNDDOWN(Q143*R143, -3) -> 179,000 | Q143: 35,889,672.0 | R143: 0.005
K144: ○ 소각시설 정기유지보수비용(시설투자비의 0.5% 적용) | M144: =M145 -> 179,000 | N144: 보수 및 운영비 : 추정공사비의 1.0% | O144: =SUM(P145) -> 179,000
K145: - 35,889,672,000원 * 0.5% (2회*1년) | L145: = | M145: =P145 -> 179,000 | N145: 소각시설 총 공사비 : 35,889,672천원 | P145: =ROUNDDOWN(Q145*R145, -3) -> 179,000 | Q145: 35,889,672.0 | R145: 0.005
K146: ○ 바이오시설물등 수선유지비(시설투자비의 0.8% 적용) | M146: =M147 -> 53,000 | N146: 바이오시설 총 공사비 : 6,613,000천원 | O146: =SUM(P147) -> 53,000
K147: - 6,613,000,000원 * 0.8% | L147: = | M147: =P147 -> 53,000 | P147: =ROUNDUP(Q147*R147, -3) -> 53,000 | Q147: 6,613,000.0 | R147: 0.008
K148: ○ 바이오시설 정기유지보수비용(시설투자비의 0.8% 적용) | M148: =M149 -> 53,000 | O148: =SUM(P149) -> 53,000
K149: - 6,613,000,000원 * 0.8% | L149: = | M149: =P149 -> 53,000 | P149: =ROUNDUP(Q149*R149, -3) -> 53,000 | Q149: 6,613,000.0 | R149: 0.008
K150: ○ 소각설비 소모품(화격자) 교체 : 300,000,000원 * 1식 | M150: =O150 -> 300,000 | N150: ○ 화격자 내구 연한 (3~4년), 前 교체일 : '20.11.23 , 22종(515EA) | O150: =P150 -> 300,000 | P150: =ROUNDUP(Q150*R150, -3) -> 300,000 | Q150: 300,000.0 | R150: 1.000
K151: ○ 배출가스처리설비 소모품(SCR 촉매) 교체 : 220,000,000원 * 1식 | M151: =O151 -> 220,000 | N151: ○ 촉매 내구 연한 (3~4년), 최초 설치일 : '21.12.20 , 보증시간 : 24,000hr(약 3년) | O151: =P151 -> 220,000 | P151: =ROUNDUP(Q151*R151, -3) -> 220,000 | Q151: 220,000.0 | R151: 1.000
K152: ○ 시설의 안전진단 및 정밀점검비 : 2,000,000원*2회 | L152: = | M152: =P152 -> 4,000 | N152: ○ 자연재해 예방 및 복구 비용 | O152: =P152 -> 4,000 | P152: =Q152*R152*S152 -> 4,000 | Q152: 2,000.0 | R152: 1.00 | S152: 2
K153: ○ CleanSYS(TMS)소모품 구매 등 | M153: =SUM(M154:M155) -> 9,000 | N153: ○ CleanSYS(대기측정기기) 소모품구매 | O153: =SUM(P154:P155) -> 9,000
K154: - CleanSYS(TMS) 표준가스 구매 : 5,000,000 * 1식 | L154: = | M154: =P154 -> 5,000 | N154: 환경분야 시험․검사등에 관한법률 시행규칙 제9조제1항제1호에 의거 | P154: =Q154*S154 -> 5,000 | Q154: 5,000.0 | S154: 1
K155: - CleanSYS(TMS)유지관리 부품 구매 : 4,000,000 * 1식 | L155: = | M155: 4,000 | N155: 표준가스 교체주기 준수(CO, HCL, NOx, SOx, O2 등), 기타 소모품 구매 | P155: =Q155*S155 -> 4,000 | Q155: 4,000.0 | S155: 1
K156: ○ 시설 운영 관련 물품 구매 | M156: =SUM(M157:M161) -> 35,180 | N156: ○ 소각시설 관련 구매 | O156: =SUM(P157:P161) -> 35,180
K157: - 윤활유 : 4,000원*1,000L*1회 | L157: = | M157: =P157 -> 4,000 | N157: 윤활유 구매 : 크레인 및 유압장치 등 유압유 교체(1회/년) | P157: =Q157*R157*S157 -> 4,000 | Q157: 4.0 | R157: 1,000 | S157: 1
K158: - 그리스 : 6,000원*20L*4회 | L158: = | M158: =P158 -> 480 | N158: 그리스 구매 : 회전기기류 그리스 주입(월별, 분기별 주입) | P158: =Q158*R158*S158 -> 480 | Q158: 6.0 | R158: 20 | S158: 4
K159: - 소각로 온도계 : 1,950,000원 * 6개 | L159: = | M159: =P159 -> 11,700 | N159: 소각로 출구 법적온도(850℃) 측정용 온도계 구매-3EA(상/하반기) | P159: =Q159*R159 -> 11,700 | Q159: 1,950.0 | R159: 6
K160: - 약품 관련 분사 노즐(팁포함) 구매 : 3,500,000원*2set | L160: = | M160: 7,000 | N160: 액상소석회, 요소수 분무용 노즐 및 팁 구매(각 2EA) | P160: =Q160*R160 -> 7,000 | Q160: 3,500.0 | R160: 2
K161: - 크레인 관련 물품구매(발톱, 와이어, 케이블 등) : 12,000,000원*1식 | L161: = | M161: 12,000 | N161: 크레인 버켓 예비품(6발톱),(2와이어(S/Z), (전선케이블), 유압실린더(6EA) 등 | P161: =Q161*R161 -> 12,000 | Q161: 2,000.0 | R161: 6
K162: ○ 건축설비 관련 구매 | M162: =SUM(M163:M163) -> 5,000 | N162: ○ 건축설비 관련 구매 | O162: =SUM(P163:P163) -> 5,000
K163: - 스팀관련 (게이트, 볼)밸브류 구매 : 5,000,000원 * 1식 | L163: = | M163: 5,000 | N163: 소각시설 스팀밸브류 구매(연속가동 및 고온에 의한 고착) | P163: =Q163*R163 -> 5,000 | Q163: 5,000.0 | R163: 1
K164: ○ 기타 잡자재, 소모자재(베어링,실,벨트 등) : 2,000,000원*6회 | L164: = | M164: =P164 -> 12,000 | N164: ○ 기타 소모자제구매 : 각시설에 필요한 잡자재 구매 | O164: =P164 -> 12,000 | P164: =Q164*S164 -> 12,000 | Q164: 2,000.0 | S164: 6
K165: ○ 폐기물 위탁처리비 | L165: = | M165: =SUM(M166) -> 240,000 | N165: ○ 사업장폐기물 운반(소각재, 안정화물, 오니) | O165: =SUM(P166:P166) -> 240,000
K166: - 폐기물 운반비(바닥재,안정화처리물,오니) 8,000톤 * 30천원/톤 | L166: = | M166: 240,000 | P166: =Q166*S166 -> 240,000 | Q166: 30.0 | S166: 8,000
F167: 215 동력비 | H167: =O167 -> 898,420 | I167: 767,823 | J167: =H167-I167 -> 130,597 | M167: =SUM(M168+M171+M172) -> 898,420 | O167: =SUM(O168:O176) -> 898,420
K168: ○ 공업용수 사용요금 | M168: =SUM(M169:M170) -> 141,300 | N168: ○ 공업용수 사용요금 | O168: =SUM(P169:P170) -> 141,300
K169: - 보일러용수(demi-water) : 1,650원*5,500톤*12개월 | L169: = | M169: =P169 -> 108,900 | N169: 보일러 용수 : 년간 계약단가(1,650원), 사용량(5,500톤/월) | P169: =INT(Q169*R169*S169) -> 108,900 | Q169: 1.7 | R169: 5,500 | S169: 12
K170: - 공업용수 : 450원*6,000톤*12월 | L170: = | M170: =P170 -> 32,400 | N170: 공업용수 : 년간 계약단가(404원), 사용량(6,000톤/월) | P170: =INT(Q170*R170*S170) -> 32,400 | Q170: 0.5 | R170: 6,000 | S170: 12
K171: ○ 전기요금 : 160원*380,000kwh*12월 | M171: =O171 -> 729,600 | N171: ○ 전기요금 : '24년도 평균단가(136.8원/kwh), '24.5월 사용량(379,215kwh) | O171: =P171 -> 729,600 | P171: =INT(Q171*R171*S171) -> 729,600 | Q171: 0.2 | R171: 380,000 | S171: 12
K172: ○ 연료비 | M172: =SUM(M173:M176) -> 27,520 | N172: ○ 연료비 | O172: =SUM(P173:P176) -> 27,520
K173: - 보조버너(정기유지보수 승온) : 1,600원*5,000L*2회 | L173: = | M173: =P173 -> 16,000 | N173: '24.7월 전남지역 경유단가 : 1,549원 - 정기유지보수 : 2회(상반기/4월, 하반기/10월) | P173: =INT(Q173*R173*S173) -> 16,000 | Q173: 1.6 | R173: 5,000 | S173: 2
K174: - 보조버너(비상정지 승온) : 1,600원*3,000L*2회 | L174: = | M174: =P174 -> 9,600 | N174: 시설이상 관련 비상정지 : 2회('23 ~ '24.6 : 없음) | P174: =INT(Q174*R174*S174) -> 9,600 | Q174: 1.6 | R174: 3,000 | S174: 2
K175: - 비상발전기 : 1,600원*200L*3월 | L175: = | M175: =P175 -> 960 | N175: 비상발전기용 경유 구입 | P175: =INT(Q175*R175*S175) -> 960 | Q175: 1.6 | R175: 50 | S175: 12
K176: - 보조보일러 및 기타 : 1,600원*200L*3월 | L176: = | M176: =P176 -> 960 | N176: 기타 난방용(보조 보일러), 예초 휘발유 구입 | P176: =INT(Q176*R176*S176) -> 960 | Q176: 1.6 | R176: 200 | S176: 3
A177: 자본예산 | H177: =H178 -> 207,600 | I177: =I178 -> 2,106,441 | J177: =H177-I177 -> △1,898,841
B178: 환경대행사업 | H178: =H179 -> 207,600 | I178: =I179 -> 2,106,441 | J178: △1,898,841
C179: 도시형 폐기물 처리시설 수탁 대행사업 | H179: =H186+H192+H180 -> 207,600 | I179: =I186+I192+I180 -> 2,106,441 | J179: △1,898,841
D180: 악취방지시설 개선 공사(기계장치) | H180: =H181 -> 0 | I180: 2,090,839 | J180: =H180-I180 -> △2,090,839
E181: 400 자본지출 | H181: 0 | I181: 2,090,839 | J181: △2,090,839 | M181: =M182+M322+M328+M331+M386 -> 0
F182: 401 시설비및부대비 | H182: 0 | I182: 2,090,839 | J182: △2,090,839
G183: 01 시설비 | H183: 0 | I183: 2,090,839 | J183: △2,090,839 | M183: =M184 -> 150,000
K184: ○ 여수시도시형폐기물종합처리시설 총질소(T-N) 저감시설 설치공사 관련 설계비 * 1식 | M184: =M185 -> 150,000 | N184: 24년 통합환경 조건부 허가 : 수질오염물질(T-N) 배출허용기준(120㎎/L) 준수 '25.12.31.한) | O184: =SUM(O185:O185) -> 150,000
K185: - 총질소(T-N) 저감시설 설계비(기본 및 실시 설계) * 1식 | L185: = | M185: =O185 -> 150,000 | N185: 총질소 저감시설 설계용역비 | O185: =P185 -> 150,000 | P185: =Q185*R185 -> 150,000 | Q185: 150,000.0 | R185: 1
D186: 총질소(T-N) 저감시설 설치공사(기계장치) | H186: =H187 -> 150,000 | I186: 0 | J186: 150,000
E187: 400 자본지출 | H187: 150,000 | I187: 0 | J187: 150,000 | M187: =M188+M328+M334+M337+M392 -> 0
F188: 401 시설비및부대비 | H188: 150,000 | I188: 0 | J188: 150,000
G189: 01 시설비 | H189: =M189 -> 150,000 | I189: 0 | J189: 150,000 | M189: =M190 -> 150,000
K190: ○ 여수시도시형폐기물종합처리시설 총질소(T-N) 저감시설 설치공사 관련 설계비 * 1식 | M190: =M191 -> 150,000 | N190: 24년 통합환경 조건부 허가 : 수질오염물질(T-N) 배출허용기준(120㎎/L) 준수 '25.12.31.한) | O190: =SUM(O191:O191) -> 150,000
K191: - 총질소(T-N) 저감시설 설계비(기본 및 실시 설계) * 1식 | L191: = | M191: =O191 -> 150,000 | N191: 총질소 저감시설 설계용역비 | O191: =P191 -> 150,000 | P191: =Q191*R191 -> 150,000 | Q191: 150,000.0 | R191: 1
D192: 도시형 폐기물 처리시설 자산비품 구입(공기구비품) | H192: =H193 -> 57,600 | I192: 15,602 | J192: =H192-I192 -> 41,998
E193: 400 자본지출 | H193: 57,600 | I193: 15,602 | J193: =H193-I193 -> 41,998 | M193: =M194+M336+M342+M345+M400 -> 0
F194: 405 자산취득비 | H194: 57,600 | I194: 15,602 | J194: =H194-I194 -> 41,998
G195: 12 수탁자산취득비 | H195: =M195 -> 57,600 | I195: 15,602 | J195: =H195-I195 -> 41,998 | M195: =M196+M197 -> 57,600 | O195: =SUM(O196:O199) -> 57,600
K196: ○ 보일러급수 펌프 제작 구매 * 1식 | L196: = | M196: =O196 -> 55,000 | N196: ○ 소각시설 보일러 급수펌프 운영(3기) 중 1기 신규 교체 : 최종교체일(21. 4., 1기) | O196: =P196 -> 55,000 | P196: =Q196*R196 -> 55,000 | Q196: 55,000 | R196: 1
K197: ○ 사무실 비품 구매 | M197: =SUM(M198:M199) -> 2,600
K198: - 사무실 의자 : 300,000원 * 8EA(사무실, 제어실 등) | L198: = | M198: =O198 -> 2,400 | N198: ○ 의자 수량 : 사무실(11EA), 제어실(소각 : 2EA, 바이오 : 2EA) | O198: =P198 -> 2,400 | P198: =Q198*R198 -> 2,400 | Q198: 300.0 | R198: 8
K199: - 회의용 보조 의자 : 20,000원 * 10EA(사무실, 제어실 등) | L199: = | M199: =O199 -> 200 | N199: ○ 보조의자 수량 : 사무실(5 EA), 제어실(소각 : 15EA) | O199: =P199 -> 200 | P199: =Q199*R199 -> 200 | Q199: 20.0 | R199: 10

Sheet 4.자금운영계획
B9: 4. 자 금 운 영 계 획

Sheet 자금운용수입4장
A1: ○ 자금운영계획
A2: 가.수입자금 | F2: (단위:천원)
A3: 구분 | C3: 당년도 예산 (A) | D3: 전년도 예산 (B) | E3: 증 감 (A-B) | F3: 비고
A4: 수입자금 | C4: =C5+C10+C13+C21+C15+C17+C19 -> 47,211,348 | D4: =D5+D10+D13+D21+D15+D17+D19 -> 49,686,585 | E4: =C4-D4 -> △2,475,237
A5: 영업수익 | B5: 계 | C5: =SUM(C6:C9) -> 45,601,358 | D5: =SUM(D6:D9) -> 46,229,779 | E5: =C5-D5 -> △628,421
B6: 용지매출수익 | C6: 0 | D6: 0 | E6: =C6-D6 -> 0
B7: 주택판매수익 | C7: 0 | D7: 0 | E7: 0
B8: 임대사업수익 | C8: 0 | D8: 0 | E8: 0
B9: 대행사업수익 | C9: ='가. 수입예산 총괄표(사업수익+자본적수입)'!F9 -> 45,601,358 | D9: ='가. 수입예산 총괄표(사업수익+자본적수입)'!G9 -> 46,229,779 | E9: △628,421
A10: 영업외수익 | B10: 계 | C10: =SUM(C11:C12) -> 0 | D10: 0 | E10: 0
B11: 이자수익 | C11: 0 | D11: 0 | E11: 0
B12: 기타영업외수익 | C12: ='가. 수입예산 총괄표(사업수익+자본적수입)'!F24 -> 0 | D12: ='가. 수입예산 총괄표(사업수익+자본적수입)'!G24 -> 0 | E12: 0
A13: 기타비유동자산처분 | B13: 계 | C13: =C14 -> 0 | D13: 0 | E13: 0
B14: 비유동자산처분수입 | C14: 0 | D14: 0 | E14: 0
A15: 유동부채수입 | B15: 계 | C15: =C16 -> 0 | D15: 0 | E15: 0
B16: 기타유동부채수입 | C16: 0 | D16: 0 | E16: 0
A17: 자본잉여금수입 | B17: 계 | C17: =C18 -> 1,109,990 | D17: =D18 -> 2,956,806 | E17: △1,846,816
B18: 자본잉여금수입 | C18: ='3-2.자본예산총괄표'!C17 -> 1,109,990 | D18: ='가. 수입예산 총괄표(사업수익+자본적수입)'!G29 -> 2,956,806 | E18: △1,846,816
A19: 유보자금 | B19: 계 | C19: =C20 -> 500,000 | D19: =D20 -> 500,000 | E19: =E20 -> 0
B20: 유 보 자 금 | C20: 500,000 | D20: 500,000 | E20: =C20-D20 -> 0
A21: 전년이월금 | B21: 계 | C21: =C22 -> 0 | D21: 0 | E21: =C21-D21 -> 0
B22: 사 고 이 월 금 | C22: 0 | D22: 0 | E22: =C22-D22 -> 0

Sheet 자금운용지출5장
A1: 나. 지출자금 | G1: (단위 : 천원)
A2: 구 분 | D2: 당년도 예산 (A) | E2: 전년도 예산 (B) | F2: 증 감 (A-B) | G2: 비고
A3: 지출자금 | D3: =D4+D21+D22+D24+D26+D29+D33+D35 -> 47,211,348 | E3: =E4+E21+E22+E24+E26+E29+E33+E35 -> 49,686,585 | F3: =D3-E3 -> △2,475,237
B4: 정책사업 총계 | D4: =D5+D10+D14+D18 -> 46,711,348 | E4: =E5+E10+E14+E18 -> 49,186,585 | F4: =D4-E4 -> △2,475,237
B5: 교통휴양 대행사업 | C5: 계 | D5: =D6+D7+D8+D9 -> 2,395,168 | E5: =E6+E7+E8+E9 -> 2,113,893 | F5: =D5-E5 -> 281,275
C6: 공영주차장 수탁 대행사업 | D6: ='나. 지출예산 총괄표'!H9+'나. 지출예산 총괄표'!H261 -> 1,727,711 | E6: ='나. 지출예산 총괄표'!I9+'나. 지출예산 총괄표'!I261 -> 1,584,381 | F6: =D6-E6 -> 143,330
C7: 돌산 공원주차장 수탁 대행사업 | D7: ='나. 지출예산 총괄표'!H31 -> 168,033 | E7: ='나. 지출예산 총괄표'!I31 -> 230,088 | F7: △62,055
C8: 휴양림 수탁 대행사업 | D8: ='나. 지출예산 총괄표'!H265+'나. 지출예산 총괄표'!H47 -> 299,424 | E8: ='나. 지출예산 총괄표'!I265+'나. 지출예산 총괄표'!I47 -> 299,424 | F8: 0
C9: 야영장 수탁 대행사업 | D9: ='나. 지출예산 총괄표'!H66+'나. 지출예산 총괄표'!H269 -> 200,000 | E9: ='나. 지출예산 총괄표'!I66+'나. 지출예산 총괄표'!I269 -> 0 | F9: 200,000
B10: 체육시설 대행사업 | C10: 계 | D10: =D11+D12+D13 -> 1,998,382 | E10: =E11+E12+E13 -> 2,024,994 | F10: △26,612
C11: 진남수영장 수탁 대행사업 | D11: ='나. 지출예산 총괄표'!H88+'나. 지출예산 총괄표'!H274 -> 1,024,056 | E11: ='나. 지출예산 총괄표'!I88+'나. 지출예산 총괄표'!I274 -> 1,032,834 | F11: △8,778
C12: 망마국민체육센터 수탁 대행사업 | D12: ='나. 지출예산 총괄표'!H108+'나. 지출예산 총괄표'!H278 -> 749,287 | E12: ='나. 지출예산 총괄표'!I108+'나. 지출예산 총괄표'!I278 -> 767,169 | F12: △17,882
C13: 장애인국님체육센터 수탁 대행사업 | D13: ='나. 지출예산 총괄표'!H124+'나. 지출예산 총괄표'!H282 -> 225,039 | E13: ='나. 지출예산 총괄표'!I124+'나. 지출예산 총괄표'!I282 -> 224,991 | F13: 48
B14: 환경대행사업 | C14: 계 | D14: =D15+D16+D17 -> 26,155,748 | E14: =E15+E16+E17 -> 29,125,117 | F14: △2,969,369
C15: 생활폐기물 수집운반∙가로청소 수탁 대행사업 | D15: ='나. 지출예산 총괄표'!H139+'나. 지출예산 총괄표'!H287 -> 22,246,757 | E15: ='나. 지출예산 총괄표'!I139+'나. 지출예산 총괄표'!I287 -> 22,493,349 | F15: △246,592
C16: 종량제물품 공급관리 수탁 대행사업 | D16: ='나. 지출예산 총괄표'!H163+'나. 지출예산 총괄표'!H294 -> 100,803 | E16: ='나. 지출예산 총괄표'!I163+'나. 지출예산 총괄표'!I294 -> 101,745 | F16: △942
C17: 도시형 폐기물 처리시설 수탁 대행사업 | D17: ='나. 지출예산 총괄표'!H178+'나. 지출예산 총괄표'!H298 -> 3,808,188 | E17: ='나. 지출예산 총괄표'!I178+'나. 지출예산 총괄표'!I298 -> 6,530,023 | F17: △2,721,835
B18: 행정운영활동 | C18: 계 | D18: =D19+D20 -> 16,162,050 | E18: =E19+E20 -> 15,922,581 | F18: 239,469
C19: 일반행정운영 관리 | D19: ='나. 지출예산 총괄표'!H203+'나. 지출예산 총괄표'!H309 -> 5,227,217 | E19: ='나. 지출예산 총괄표'!I203+'나. 지출예산 총괄표'!I309 -> 5,330,734 | F19: △103,517
C20: 인력운영비 | D20: ='나. 지출예산 총괄표'!H247 -> 10,934,833 | E20: ='나. 지출예산 총괄표'!I247 -> 10,591,847 | F20: 342,986
B21: 영업외활동 | D21: 0 | E21: 0 | F21: 0
B22: 법인세등 | D22: =D23 -> 0 | E22: =E23 -> 0 | F22: 0
C23: 법인세등 | D23: 0 | E23: 0 | F23: 0
B24: 무형자산및기타비유동자산취득 | D24: =D25 -> 0 | E24: =E25 -> 0 | F24: =D24-E24 -> 0
C25: 보증금 | D25: 0 | E25: 0 | F25: =D25-E25 -> 0
B26: 유동부채상환 | D26: =SUM(D27:D28) -> 0 | E26: =SUM(E27:E28) -> 0 | F26: =E26-D26 -> 0
C27: 선수금상환 | D27: 0 | E27: 0 | F27: 0
C28: 기타유동부채상환 | D28: 0 | E28: 0 | F28: 0
B29: 기타자본적지출 | D29: =D30 -> 0 | E29: 0 | F29: =D29-E29 -> 0
C30: 기타자본적지출 | D30: 0 | E30: 0 | F30: =D30-E30 -> 0
B31: 투자자산 | D31: =D32 -> 0 | E31: =SUM(E32) -> 0 | F31: 0
C32: 투자자산 | E32: 0 | F32: 0
B33: 예비비 | D33: =D34 -> 500,000 | E33: =E34 -> 500,000 | F33: =D33-E33 -> 0
C34: 자본예비비 | D34: 500,000 | E34: 500,000 | F34: =D34-E34 -> 0
B35: 전년이월금 | D35: =D36 -> 0 | E35: =E36 -> 0 | F35: =D35-E35 -> 0
C36: 사고이월금 | D36: 0 | E36: 0 | F36: =D36-E36 -> 0

Sheet 사고이월
A1: 2024년도 세출예산 사고이월 사업조서
L2: (단위 : 원)
E3: 사 업 명 | F3: 예 산 액 (A) | G3: 지출원인 행 위 액 (B) | H3: 지출(예정)액 (C ) | I3: 지출잔액 (A-C) | J3: 이월액 (D) | K3: 불용액 (A-C-D) | L3: 이월사유 (예산성립시기)
A4: 정 책 | B4: 단 위 | C4: 세 부 | D4: 목/세목
A5: 계 | F5: =F6+F11 -> 86,900,000 | G5: 84,923,700 | H5: 0 | I5: 86,900,000 | J5: 84,923,700 | K5: 1,976,300
A6: 환경대행사업(사업예산) | F6: =SUM(F7:F7) -> 21,900,000 | G6: =G7 -> 20,800,000 | H6: 0 | I6: 21,900,000 | J6: 20,800,000 | K6: 1,100,000
B7: 도시형 폐기물 처리시설 수탁 대행사업 | F7: 21,900,000 | G7: =G8 -> 20,800,000 | H7: 0 | I7: 21,900,000 | J7: 20,800,000 | K7: 1,100,000
C8: 도시형 폐기물 처리시설 유지보수 | F8: 21,900,000 | G8: =G9 -> 20,800,000 | H8: 0 | I8: 21,900,000 | J8: 20,800,000 | K8: 1,100,000
D9: 201 일반운영비 | F9: 21,900,000 | G9: =G10 -> 20,800,000 | H9: 0 | I9: 21,900,000 | J9: 20,800,000 | K9: 1,100,000
D10: 11 지급수수료 | E10: 여수시도시형폐기물종합처리시설 통합환경허가 변경신고 | F10: 21,900,000 | G10: 20,800,000 | H10: 0 | I10: =SUM(F10-H10) -> 21,900,000 | J10: 20,800,000 | K10: =F10-H10-J10 -> 1,100,000 | L10: ○ 환경부 통합허가제도과의 심사업무 증가로 연내 접수 불가 - 사업기간 변경 전 : 2024. 7. 11. ~ 2024. 12. 31. - 사업기간 변경 후 : 2024. 7. 11. ~ 2025. 6. 30.
A11: 체육시설 대행사업(사업예산) | F11: =F12+F16 -> 65,000,000 | G11: 64,123,700 | H11: 0 | I11: 65,000,000 | J11: 64,123,700 | K11: 876,300
B12: 진남수영장 수탁 대행사업 | F12: 20,000,000 | G12: =G13 -> 19,423,700 | H12: 0 | I12: 20,000,000 | J12: 19,423,700 | K12: 576,300
C13: 진남수영장 시설 유지보수 | F13: 20,000,000 | G13: =G14 -> 19,423,700 | H13: 0 | I13: 20,000,000 | J13: 19,423,700 | K13: 576,300
D14: 214수선유지교체비 | F14: 20,000,000 | G14: =G15 -> 19,423,700 | H14: 0 | I14: 20,000,000 | J14: 19,423,700 | K14: 576,300
D15: 02 수선유지비 | E15: 진남수영장 가스열펌프(GHP) 배출 가스 저감장치 | F15: 20,000,000 | G15: 19,423,700 | H15: 0 | I15: =SUM(F15-H15) -> 20,000,000 | J15: 19,423,700 | K15: =F15-H15-J15 -> 576,300 | L15: ○ 여수시 제3차 추경 교부일 : 2024. 12. 5. - 사업기간 : 2024. 12. ~ 2025. 7.
B16: 장애인국민체육센터 수탁 대행사업 | F16: 45,000,000 | G16: =G17 -> 44,700,000 | H16: 0 | I16: 45,000,000 | J16: 44,700,000 | K16: 300,000
C17: 장애인국민체육센터 시설 유지보수 | F17: 45,000,000 | G17: =G18 -> 44,700,000 | H17: 0 | I17: 45,000,000 | J17: 44,700,000 | K17: 300,000
D18: 214수선유지교체비 | F18: 45,000,000 | G18: =G19 -> 44,700,000 | H18: 0 | I18: 45,000,000 | J18: 44,700,000 | K18: 300,000
D19: 02 수선유지비 | E19: 장애인국민체육센터 가스열펌프(GHP) 배출 가스 저감장치 | F19: 45,000,000 | G19: 44,700,000 | H19: 0 | I19: =SUM(F19-H19) -> 45,000,000 | J19: 44,700,000 | K19: =F19-H19-J19 -> 300,000 | L19: ○ 여수시 제3차 추경 교부일 : 2024. 12. 5. - 사업기간 : 2024. 12. ~ 2025. 7.
